Workbook

Sheet ANASAYFA
A1: EKDERS ÜCRET ONAY PROGRAMI
A2: ONAY ALINACAK KURUM BİLGİLERİ | D2: KURUM PANSİYONLU MU | E2: İŞLETMELERDE BECERİ EĞİTİMİ VAR MI
A3: İL (İL MERKEZİNDE İSENİZ YAZINIZ) | D3: Evet | E3: Evet | L3: =IF(B3="",B4&" KAYMAKAMLIĞI",B3&" VALİLİĞİ") -> ULUBORLU KAYMAKAMLIĞI
A4: İLÇE ADI (İLÇEDE İSENİZ YAZINIZ) | B4: ULUBORLU | L4: =IF(B3="","İLÇE MİLLİ EĞİTİM MÜDÜRLÜĞÜ","İL MİLLİ EĞİTİM MÜDÜRLÜĞÜ") -> İLÇE MİLLİ EĞİTİM MÜDÜRLÜĞÜ
A5: OKULUN ADI | B5: ULUBORLU MESLEKİ VE TEKNİK ANADOLU LİSESİ | L5: =IF(B3="",B4&" İLÇE MİLLİ EĞİTİM MÜDÜRLÜĞÜ",B3&" İL MİLLİ EĞİTİM MÜDÜRLÜĞÜ") -> ULUBORLU İLÇE MİLLİ EĞİTİM MÜDÜRLÜĞÜ
A6: EĞİTİM ÖĞRETİM YILI | B6: 2019-2020 | L6: =CONCATENATE(PROPER((ANASAYFA!B5))," ","Müdürlüğü") -> Uluborlu Mesleki Ve Teknik Anadolu Lisesi Müdürlüğü
A7: DÖNEM | B7: 1 | L7: =L5&"NE" -> ULUBORLU İLÇE MİLLİ EĞİTİM MÜDÜRLÜĞÜNE
A8: MALİ YIL | B8: 2020
A9: AY | B9: OCAK
A10: KATSAYILAR
A11: MEMUR MAAŞ KAT SAYISI : | B11: 0.146061
A12: EKDERS GÖSTERGE (GÜNDÜZ) : | B12: 140
A13: EKDERS GÖSTERGE (GECE) : | B13: 150
A14: EKDERS GÖSTERGE (DYK GÜNDÜZ) : | B14: 280
A15: EKDERS GÖSTERGE (DYK GECE) : | B15: 300
A16: EKDERS GÖSTERGE (DYK H.SONU) : | B16: 300
A17: ÖZEL EĞİTİM EKDERS GÖSTERGESİ : | B17: 175
A18: Y.LİSANS ORANI | B18: 0.05
A19: DOKTORA ORANI | B19: 0.15
A20: TUTARLAR
A21: GÜNLÜK TUTAR (GÜNDÜZ) : | B21: =B11*B12 -> 20.44854
A22: GÜNLÜK TUTAR (DYK GÜNDÜZ) : | B22: =B11*B14 -> 40.89708
A23: GÜNLÜK TUTAR (DYK GECE) : | B23: =B15*B11 -> 43.8183
A24: GÜNLÜK TUTAR (DYK H SONU) : | B24: =B15*B11 -> 43.8183
A25: GÜNLÜK TUTAR ÖZEL EĞİTİM : | B25: =B11*B17 -> 25.560675
A26: TUTAR Y.LİSANS (GÜNDÜZ) | B26: =B21*B18+B21 -> 21.470967
A27: TUTAR DOKTORA (GÜNDÜZ) | B27: =B21*B19+B21 -> 23.515821
A28: Y LİSANS (DYK GÜNDÜZ) : | B28: =B11*B14+B11*B12*B18 -> 41.919507
A29: Y LİSANS (DYK GECE) : | B29: =B11*B15+B11*B13*B18 -> 44.9137575
A30: Y LİSANS (DYK H SONU) : | B30: =B11*B15+B11*B13*B18 -> 44.9137575
A31: DOKTORA (DYK GÜNDÜZ) : | B31: =B11*B14+B11*B12*B19 -> 43.964361
A32: DOKTORA (DYK GECE) : | B32: =B11*B15+B11*B13*B19 -> 47.1046725
A33: DOKTORA (DYK H SONU) : | B33: =B11*B15+B11*B13*B19 -> 47.1046725
A34: GÖREVLİLER | B34: ADI SOYADI | C34: ÜNVANI
A35: OKUL MÜDÜRÜ | B35: Ruhi İLHAN | C35: Okul Müdürü
A36: İLÇE MEM MÜDÜRÜ | B36: Mustafa KABASAKAL | C36: İlçe Milli Eğitim Müdürü
A37: ONAYLAYAN | B37: Şahin DEMİR | C37: Kaymakam
A38: BİRİM YETKİLİSİ : | B38: Ramazan GÜLMEZ | C38: Şube Müdürü
A39: DÜZENLEYEN :

Sheet veriler
AU1: =IF(AM5>0,IF(AR5>0,AM5-AR5,AM5),0) -> 0 | AV1: =IF(AL5>0,IF(AS5>0,AL5-AS5,AL5),0) -> 0
A2: 1 | B2: PERSONEL BİLGİLERİ | K2: Haftalık Okutacağı Ders Bilgileri | AW2: LİSANS | AZ2: Y.LİSANS | BC2: DOKTORA | CU2: =ANASAYFA!D3 -> Evet
C3: Adı Soyadı | D3: TC KİMLİK NO (DYK ÜCRET ONAYI İÇİN) | E3: BRANŞI | F3: GÖREVİ | G3: Öğrenim Durumu | H3: OKUTTUĞU SINIFLAR | I3: BAŞKA KURUMDAN BELLETMEN ÖĞRETMEN İSE SEÇİNİZ | J3: ÇALIŞTIĞI KURUM (FARKLI BİR KURUM İSE YAZINIZ) | K3: KENDİ OKULUNDA GİRDİĞİ DESR SAATİ | L3: BAŞKA OKULDA GİRDİĞİ DERS SAATİ | M3: DYK GÜNDÜZ | N3: DYK GECE | O3: DYK H.SONU | P3: FİİLEN GİRDİĞİ REHBERLİK SINIFI VAR MI | Q3: DDH TOPLAM DERS SAATİ (FORMÜL VARDIR ) | R3: TOPLAM DERS SAATİ (FORMÜL VARDIR) | S3: Özel Eğitim Sınıfı Ders Saati | U3: Öğr.Sos. Kiş.Hz. | V3: Ders Niteliğinde Yönetim Görevi Ücret Saati | W3: İkili Eğitim Ücret Saati (Yöneticiler için) | X3: Ders Dışı Egzersiz Görevi Ücreti Saati | Y3: Planlama ve Bakım / Onarım Görevi (Bölüm ve Atölye Şefleri ) | Z3: Haftalık Nöbet Ücreti Toplam Saati | AA3: Özel Eğitim Sınıf Ücretli Ders saati Toplamı | AB3: KENDİ OKULUNDAKİ ÖĞRETMENLERDEN BELLETMENLİK GÖREVİ VAR MI | AC3: KOORDİNATÖRLÜK GÖREVİ VAR MI | AD3: Toplam | AF3: MAAŞ KARŞILIĞI | AG3: BAŞKA OKULLARDAKİ MAAŞ KARŞILIĞI | AH3: MAAŞ DIŞINDAKİ EKDERS REHBERLİK DAHİL | AI3: REHBERLİK HARİÇ MAAŞ DIŞINDAKİ EKDERS | AJ3: NORMAL DERS | AL3: DYK | AO3: DYK MAAŞ | AQ3: DYK FORMUL | AR3: DYK FORMUL | AS3: DYK FORMUL | AT3: DYK GÜNDÜZ | AU3: DYK GECE | AV3: DYK H.SONU | AW3: DYK GÜNDÜZ | AX3: DYK GECE | AY3: DYK H.SONU | AZ3: DYK GÜNDÜZ | BA3: DYK GECE | BB3: DYK H.SONU | BC3: DYK GÜNDÜZ | BD3: DYK GECE | BE3: DYK H.SONU | BF3: ddh | BG3: Öğr.Sos. Kiş.Hz. | BH3: Ders Niteliğinde Yönetim Görevi Ücret Saati | BI3: Lisans | BJ3: Y.Lisans | BK3: Doktora | BL3: PANSİYON NÖBETİ | BM3: KOORDİNATÖRLÜK | BN3: KURUM BİRLEŞTİR | BO3: DİĞER OKULLARDAKİ FORMUL | BP3: DİĞER OKULLARDAKİ MAAŞ | BR3: DYK GİDRİĞİ TOPLAM | BU3: SADECE BELLETMEN
C4: 1 | E4: 2 | F4: 3 | G4: 4 | H4: 5 | J4: 7 | K4: 8 | L4: 9 | M4: 10 | N4: 11 | O4: 12 | P4: 13 | Q4: 12 | R4: 13 | S4: 14 | T4: 15 | U4: 15 | V4: 16 | W4: 17 | X4: 18 | Y4: 19 | Z4: 20 | AA4: 21 | AB4: 22 | AC4: 23 | AD4: 24 | AE4: 25
B5: 1 | C5: RUHİ İLHAN | E5: Coğrafya | F5: Müdür | G5: Lisans | H5: 9/A | AB5: Hayır | AC5: Hayır | AD5: =IF(OR(F5=$BX$5,F5=$BX$6,F5=$BX$7,F5=$BX$15,F5=$BX$11,F5=$BX$18,F5=$BX$19),SUM(K5:N5),IF(OR(F5=$BX$8,F5=$BX$9,F5=$BX$10,F5=$BX$12,F5=$BX$13,F5=$BX$16,F5=$BX$17),SUM(K5:N5)+IF(P5="Evet",1,0),"")) -> 0 | AE5: =SUM(K5:N5) -> 0 | AF5: =IF(OR(F5=$BX$5,F5=$BX$6,F5=$BX$7),IF(AE5<=6,AE5,6),IF(OR(F5=$BX$17,F5=$BX$8),IF(AE5<=15,AE5,15),IF(OR(F5=$BX$9,F5=$BX$10),IF(AE5<=18,AE5,18),IF(OR(F5=$BX$12,F5=$BX$13,F5=$BX$16,F5=$BX$18,F5=$BX$19),IF(AE5<=20,AE5,20),IF(OR(F5=$BX$15,F5=$BX$20),IF(AE5>0,0,0),""))))) -> 0 | AG5: =BP5 -> 0 | AH5: =IF(OR(F5=$BX$5,F5=$BX$6,F5=$BX$7),IF(AD5<=6,"",AD5-6),IF(OR(F5=$BX$17,F5=$BX$8),IF(AD5<=15,0,AD5-15),IF(OR(F5=$BX$9,F5=$BX$10),IF(AD5<=18,0,AD5-18),IF(OR(F5=$BX$12,F5=$BX$13,F5=$BX$16,F5=$BX$18,F5=$BX$19),IF(AD5<=20,"",AD5-20),IF(F5=$BX$15,IF(AD5>0,AD5,""),IF(F5=$BX$20,"")))))) ->  | AI5: =IF(OR(F5=$BX$5,F5=$BX$6,F5=$BX$7),IF(AE5<=6,0,AE5-6),IF(OR(F5=$BX$17,F5=$BX$8),IF(AE5<=15,0,AE5-15),IF(OR(F5=$BX$9,F5=$BX$10),IF(AE5<=18,0,AE5-18),IF(OR(F5=$BX$12,F5=$BX$13,F5=$BX$16,F5=$BX$18,F5=$BX$19),IF(AE5<=20,0,AE5-20),IF(F5=$BX$20,0,IF(F5=$BX$15,IF(AE5>0,AE5,0),0)))))) -> 0 | AJ5: =IF(AI5>0,IF(OR(M5>0,N5>0),IF(AI5>0,AI5-(M5+N5),0),IF(AI5>0,AI5-(M5+N5),0)),0) -> 0 | AK5: =IF(F5=$BX$20,0,IF(AJ5<0,AI5,0)) -> 0 | AL5: =IF(F5=$BX$20,SUM(M5:N5),IF(AK5>0,AK5,AI5-AJ5)) -> 0 | AM5: =AL5-AU5 -> 0 | AN5: =AM5-(AU5) -> 0 | AO5: =IF(AL5>=0,SUM(M5:N5)-AL5,0) -> 0 | AQ5: =IF(AM5>0,AM5,0) -> 0 | AR5: =IF(AM5>0,AM5-M5,0) -> 0 | AS5: =IF(AL5>0,AL5-N5,0) -> 0 | AT5: =AQ5 -> 0 | AU5: =IF(AL5>0,IF(AS5>0,AL5-AS5,AL5),0) -> 0 | AV5: =IF(O5>0,O5,0) -> 0 | AW5: =IF(G5=$CD$5,IF(AT5>0,AT5,0),0) -> 0 | AX5: =IF(G5=$CD$5,IF(AU5>0,AU5,0),0) -> 0 | AY5: =IF(G5=$CD$5,IF(AV5>0,AV5,0),0) -> 0 | AZ5: =IF(G5=$CD$6,IF(AT5>0,AT5,0),0) -> 0 | BA5: =IF(G5=$CD$6,IF(AU5>0,AU5,0),0) -> 0 | BB5: =IF(G5=$CD$6,IF(AV5>0,AV5,0),0) -> 0 | BC5: =IF(G5=$CD$7,IF(AT5>0,AT5,0),0) -> 0 | BD5: =IF(G5=$CD$7,IF(AU5>0,AU5,0),0) -> 0 | BE5: =IF(G5=$CD$7,IF(AV5>0,AV5,0),0) -> 0 | BF5: =IF(OR(F5=$BX$5,F5=$BX$6,F5=$BX$7,F5=$BX$15,F5=$BX$11),"",IF(OR(F5=$BX$8,F5=$BX$9,F5=$BX$12,F5=$BX$13,F5=$BX$16,F5=$BX$17,F5=$BX$10,,F5=$BX$18,F5=$BX$19),IF(AND(Q5>=10,Q5<20),1,IF(AND(Q5>=20,Q5<30),2,IF(AND(Q5>=30,Q5=30),3,IF(Q5>30,3,"")))),"")) ->  | BG5: =IF(OR(F5=$BX$6,F5=$BX$6,F5=$BX$7,F5=$BX$11,F5=$BX$15,F5=$BX$18,F5=$BX$19),"",IF(OR(F5=$BX$8,F5=$BX$9,F5=$BX$12,F5=$BX$13,F5=$BX$16,F5=$BX$17,F5=$BX$10),U5,"")) ->  | BH5: =IF(V5>0,V5,0) -> 0 | BI5: =IF(G5=$CD$5,IF(AJ5>0,AJ5,0),0) -> 0 | BJ5: =IF(G5=$CD$6,IF(AJ5>0,AJ5,0),0) -> 0 | BK5: =IF(G5=$CD$7,IF(AJ5>0,AJ5,0),0) -> 0 | BL5: =IFERROR(IF(OR(AB5="Evet",I5=$BZ$14),IF(C5>0,7,0),0),0) -> 0 | BM5: =IFERROR(IF(AC5="Evet",IF(C5>0,1,0),0),0) -> 0 | BN5: =IF(J5="","",CONCATENATE("(",J5,")")) ->  | BO5: =IF(AF5>=K5,AF5-K5,0) -> 0 | BP5: =IF(BO5>L5,L5,BO5) -> 0 | BQ5: =IF(SUM(K5:L5)>=AF5,AF5-(SUM(M5:O5)),SUM(K5:L5)) -> 0 | BR5: =IF(SUM(veriler!M5:O5)>0,SUM(veriler!M5:O5),0) -> 0 | BU5: =IF(I5=$BZ$14,"",IF(C5="","",1)) -> 1 | BV5: =IF(J5="","",CONCATENATE("(",J5,")")) ->  | BX5: Müdür | BY5: 6 | CD5: Lisans
B6: 2 | C6: A.AKİF KÖSE | E6: Elekt-Elektr. | F6: Müdür Baş Yard | G6: Y.Lisans | H6: 10/C-11/C | AB6: Hayır | AC6: Hayır | AD6: =IF(OR(F6=$BX$5,F6=$BX$6,F6=$BX$7,F6=$BX$15,F6=$BX$11,F6=$BX$18,F6=$BX$19),SUM(K6:N6),IF(OR(F6=$BX$8,F6=$BX$9,F6=$BX$10,F6=$BX$12,F6=$BX$13,F6=$BX$16,F6=$BX$17),SUM(K6:N6)+IF(P6="Evet",1,0),"")) -> 0 | AE6: =SUM(K6:N6) -> 0 | AF6: =IF(OR(F6=$BX$5,F6=$BX$6,F6=$BX$7),IF(AE6<=6,AE6,6),IF(OR(F6=$BX$17,F6=$BX$8),IF(AE6<=15,AE6,15),IF(OR(F6=$BX$9,F6=$BX$10),IF(AE6<=18,AE6,18),IF(OR(F6=$BX$12,F6=$BX$13,F6=$BX$16,F6=$BX$18,F6=$BX$19),IF(AE6<=20,AE6,20),IF(OR(F6=$BX$15,F6=$BX$20),IF(AE6>0,0,0),""))))) -> 0 | AG6: =BP6 -> 0 | AH6: =IF(OR(F6=$BX$5,F6=$BX$6,F6=$BX$7),IF(AD6<=6,"",AD6-6),IF(OR(F6=$BX$17,F6=$BX$8),IF(AD6<=15,0,AD6-15),IF(OR(F6=$BX$9,F6=$BX$10),IF(AD6<=18,0,AD6-18),IF(OR(F6=$BX$12,F6=$BX$13,F6=$BX$16,F6=$BX$18,F6=$BX$19),IF(AD6<=20,"",AD6-20),IF(F6=$BX$15,IF(AD6>0,AD6,""),IF(F6=$BX$20,"")))))) ->  | AI6: =IF(OR(F6=$BX$5,F6=$BX$6,F6=$BX$7),IF(AE6<=6,0,AE6-6),IF(OR(F6=$BX$17,F6=$BX$8),IF(AE6<=15,0,AE6-15),IF(OR(F6=$BX$9,F6=$BX$10),IF(AE6<=18,0,AE6-18),IF(OR(F6=$BX$12,F6=$BX$13,F6=$BX$16,F6=$BX$18,F6=$BX$19),IF(AE6<=20,0,AE6-20),IF(F6=$BX$20,0,IF(F6=$BX$15,IF(AE6>0,AE6,0),0)))))) -> 0 | AJ6: =IF(AI6>0,IF(OR(M6>0,N6>0),IF(AI6>0,AI6-(M6+N6),0),IF(AI6>0,AI6-(M6+N6),0)),0) -> 0 | AK6: =IF(F6=$BX$20,0,IF(AJ6<0,AI6,0)) -> 0 | AL6: =IF(F6=$BX$20,SUM(M6:N6),IF(AK6>0,AK6,AI6-AJ6)) -> 0 | AM6: =AL6-AU6 -> 0 | AN6: =AM6-(AU6) -> 0 | AO6: =IF(AL6>=0,SUM(M6:N6)-AL6,0) -> 0 | AQ6: =IF(AM6>0,AM6,0) -> 0 | AR6: =IF(AM6>0,AM6-M6,0) -> 0 | AS6: =IF(AL6>0,AL6-N6,0) -> 0 | AT6: =AQ6 -> 0 | AU6: =IF(AL6>0,IF(AS6>0,AL6-AS6,AL6),0) -> 0 | AV6: =IF(O6>0,O6,0) -> 0 | AW6: =IF(G6=$CD$5,IF(AT6>0,AT6,0),0) -> 0 | AX6: =IF(G6=$CD$5,IF(AU6>0,AU6,0),0) -> 0 | AY6: =IF(G6=$CD$5,IF(AV6>0,AV6,0),0) -> 0 | AZ6: =IF(G6=$CD$6,IF(AT6>0,AT6,0),0) -> 0 | BA6: =IF(G6=$CD$6,IF(AU6>0,AU6,0),0) -> 0 | BB6: =IF(G6=$CD$6,IF(AV6>0,AV6,0),0) -> 0 | BC6: =IF(G6=$CD$7,IF(AT6>0,AT6,0),0) -> 0 | BD6: =IF(G6=$CD$7,IF(AU6>0,AU6,0),0) -> 0 | BE6: =IF(G6=$CD$7,IF(AV6>0,AV6,0),0) -> 0 | BF6: =IF(OR(F6=$BX$5,F6=$BX$6,F6=$BX$7,F6=$BX$15,F6=$BX$11),"",IF(OR(F6=$BX$8,F6=$BX$9,F6=$BX$12,F6=$BX$13,F6=$BX$16,F6=$BX$17,F6=$BX$10,,F6=$BX$18,F6=$BX$19),IF(AND(Q6>=10,Q6<20),1,IF(AND(Q6>=20,Q6<30),2,IF(AND(Q6>=30,Q6=30),3,IF(Q6>30,3,"")))),"")) ->  | BG6: =IF(OR(F6=$BX$6,F6=$BX$6,F6=$BX$7,F6=$BX$11,F6=$BX$15,F6=$BX$18,F6=$BX$19),"",IF(OR(F6=$BX$8,F6=$BX$9,F6=$BX$12,F6=$BX$13,F6=$BX$16,F6=$BX$17,F6=$BX$10),U6,"")) ->  | BH6: =IF(V6>0,V6,0) -> 0 | BI6: =IF(G6=$CD$5,IF(AJ6>0,AJ6,0),0) -> 0 | BJ6: =IF(G6=$CD$6,IF(AJ6>0,AJ6,0),0) -> 0 | BK6: =IF(G6=$CD$7,IF(AJ6>0,AJ6,0),0) -> 0 | BL6: 0 | BM6: =IFERROR(IF(AC6="Evet",IF(C6>0,1,0),0),0) -> 0 | BN6: =IF(J6="","",CONCATENATE("(",J6,")")) ->  | BO6: =IF(AF6>=K6,AF6-K6,0) -> 0 | BP6: =IF(BO6>L6,L6,BO6) -> 0 | BQ6: =IF(SUM(K6:L6)>=AF6,AF6-(SUM(M6:O6)),SUM(K6:L6)) -> 0 | BR6: =IF(SUM(veriler!M6:O6)>0,SUM(veriler!M6:O6),0) -> 0 | BU6: =IF(I6=$BZ$14,"",IF(C6="","",1)) -> 1 | BX6: Müdür Baş Yard | BY6: 6 | CD6: Y.Lisans
B7: 3 | C7: ALİ OĞUR | E7: Bilgisayar | F7: Müdür Yardımcısı | G7: Lisans | H7: 11-C | AB7: Hayır | AC7: Hayır | AD7: 0 | AE7: 0 | AF7: 0 | AG7: 0 | AI7: 0 | AJ7: 0 | AK7: 0 | AL7: 0 | AM7: 0 | AN7: 0 | AO7: 0 | AQ7: 0 | AR7: 0 | AS7: 0 | AT7: 0 | AU7: 0 | AV7: 0 | AW7: 0 | AX7: 0 | AY7: 0 | AZ7: 0 | BA7: 0 | BB7: 0 | BC7: 0 | BD7: 0 | BE7: 0 | BH7: 0 | BI7: 0 | BJ7: 0 | BK7: 0 | BL7: 0 | BM7: 0 | BO7: 0 | BP7: 0 | BQ7: 0 | BR7: =IF(SUM(veriler!M7:O7)>0,SUM(veriler!M7:O7),0) -> 0 | BU7: 1 | BX7: Müdür Yardımcısı | BY7: 6 | CD7: Doktora
B8: 4 | C8: ZEKİ DERELİ | E8: Beden Eğitimi | F8: Müdür Yardımcısı | G8: Lisans | H8: 9/A-10/B-10/C-11/A-11/C | AB8: Hayır | AC8: Hayır | AD8: 0 | AE8: 0 | AF8: 0 | AG8: 0 | AI8: 0 | AJ8: 0 | AK8: 0 | AL8: 0 | AM8: 0 | AN8: 0 | AO8: 0 | AQ8: 0 | AR8: 0 | AS8: 0 | AT8: 0 | AU8: 0 | AV8: 0 | AW8: 0 | AX8: 0 | AY8: 0 | AZ8: 0 | BA8: 0 | BB8: 0 | BC8: 0 | BD8: 0 | BE8: 0 | BH8: 0 | BI8: 0 | BJ8: 0 | BK8: 0 | BL8: 0 | BM8: 0 | BO8: 0 | BP8: 0 | BQ8: 0 | BR8: =IF(SUM(veriler!M8:O8)>0,SUM(veriler!M8:O8),0) -> 0 | BU8: 1 | BX8: Öğretmen | BY8: 15
B9: 5 | C9: MUAMMER KAYAKUŞ | E9: Elekt-Elektr. | F9: Atölye/Lab Şefi | G9: Lisans | H9: 10/C-11/C | AB9: Evet | AC9: Evet | AD9: 0 | AE9: 0 | AF9: 0 | AG9: 0 | AI9: 0 | AJ9: 0 | AK9: 0 | AL9: 0 | AM9: 0 | AN9: 0 | AO9: 0 | AQ9: 0 | AR9: 0 | AS9: 0 | AT9: 0 | AU9: 0 | AV9: 0 | AW9: 0 | AX9: 0 | AY9: 0 | AZ9: 0 | BA9: 0 | BB9: 0 | BC9: 0 | BD9: 0 | BE9: 0 | BH9: 0 | BI9: 0 | BJ9: 0 | BK9: 0 | BL9: 7 | BM9: 1 | BO9: 0 | BP9: 0 | BQ9: 0 | BR9: =IF(SUM(veriler!M9:O9)>0,SUM(veriler!M9:O9),0) -> 0 | BU9: 1 | BX9: Sınıf Öğretmeni | BY9: 18
B10: 6 | C10: MEHMET GÜLAY | E10: Metal İşl. | F10: Alan Şefi | G10: Lisans | H10: 10/B-12/B | AB10: Evet | AC10: Evet | AD10: 0 | AE10: 0 | AF10: 0 | AG10: 0 | AI10: 0 | AJ10: 0 | AK10: 0 | AL10: 0 | AM10: 0 | AN10: 0 | AO10: 0 | AQ10: 0 | AR10: 0 | AS10: 0 | AT10: 0 | AU10: 0 | AV10: 0 | AW10: 0 | AX10: 0 | AY10: 0 | AZ10: 0 | BA10: 0 | BB10: 0 | BC10: 0 | BD10: 0 | BE10: 0 | BH10: 0 | BI10: 0 | BJ10: 0 | BK10: 0 | BL10: 7 | BM10: 1 | BO10: 0 | BP10: 0 | BQ10: 0 | BR10: =IF(SUM(veriler!M10:O10)>0,SUM(veriler!M10:O10),0) -> 0 | BU10: 1 | BX10: Sözleşmeli Sınıf Öğretmeni | BY10: 18
B11: 7 | C11: DEMET KAYA | E11: Matematik | F11: Öğretmen | G11: Y.Lisans | H11: 9/A-10/B-10/C-11/A-12/A-12/B | AB11: Hayır | AC11: Hayır | AD11: 0 | AE11: 0 | AF11: 0 | AG11: 0 | AH11: 0 | AI11: 0 | AJ11: 0 | AK11: 0 | AL11: 0 | AM11: 0 | AN11: 0 | AO11: 0 | AQ11: 0 | AR11: 0 | AS11: 0 | AT11: 0 | AU11: 0 | AV11: 0 | AW11: 0 | AX11: 0 | AY11: 0 | AZ11: 0 | BA11: 0 | BB11: 0 | BC11: 0 | BD11: 0 | BE11: 0 | BG11: 0 | BH11: 0 | BI11: 0 | BJ11: 0 | BK11: 0 | BL11: 0 | BM11: 0 | BO11: 0 | BP11: 0 | BQ11: 0 | BR11: =IF(SUM(veriler!M11:O11)>0,SUM(veriler!M11:O11),0) -> 0 | BU11: 1 | BX11: Rehber Öğretmen | BY11: 0
B12: 8 | C12: ALİ ÇINAR | E12: Fizik | F12: Öğretmen | G12: Lisans | H12: Keçiborlu AİHL de görevli | AB12: Hayır | AC12: Hayır | AD12: 0 | AE12: 0 | AF12: 0 | AG12: 0 | AH12: 0 | AI12: 0 | AJ12: 0 | AK12: 0 | AL12: 0 | AM12: 0 | AN12: 0 | AO12: 0 | AQ12: 0 | AR12: 0 | AS12: 0 | AT12: 0 | AU12: 0 | AV12: 0 | AW12: 0 | AX12: 0 | AY12: 0 | AZ12: 0 | BA12: 0 | BB12: 0 | BC12: 0 | BD12: 0 | BE12: 0 | BG12: 0 | BH12: 0 | BI12: 0 | BJ12: 0 | BK12: 0 | BL12: 0 | BM12: 0 | BO12: 0 | BP12: 0 | BQ12: 0 | BR12: =IF(SUM(veriler!M12:O12)>0,SUM(veriler!M12:O12),0) -> 0 | BU12: 1 | BX12: Atelye Öğretmeni | BY12: 20
B13: 9 | C13: NEVİN AKYOL | E13: Kimya | F13: Öğretmen | G13: Lisans | H13: 9/A-10/B-10/C | AB13: Hayır | AC13: Hayır | AD13: 0 | AE13: 0 | AF13: 0 | AG13: 0 | AH13: 0 | AI13: 0 | AJ13: 0 | AK13: 0 | AL13: 0 | AM13: 0 | AN13: 0 | AO13: 0 | AQ13: 0 | AR13: 0 | AS13: 0 | AT13: 0 | AU13: 0 | AV13: 0 | AW13: 0 | AX13: 0 | AY13: 0 | AZ13: 0 | BA13: 0 | BB13: 0 | BC13: 0 | BD13: 0 | BE13: 0 | BG13: 0 | BH13: 0 | BI13: 0 | BJ13: 0 | BK13: 0 | BL13: 0 | BM13: 0 | BO13: 0 | BP13: 0 | BQ13: 0 | BR13: =IF(SUM(veriler!M13:O13)>0,SUM(veriler!M13:O13),0) -> 0 | BU13: 1 | BX13: Laboratuvar Öğretmeni | BY13: 20
B14: 10 | C14: CENNET ÖZKAN | E14: İngilizce | F14: Öğretmen | G14: Lisans | H14: 9/A-10/B-10/C-11/A-11/C-12/A-12/B | AB14: Hayır | AC14: Hayır | AD14: 0 | AE14: 0 | AF14: 0 | AG14: 0 | AH14: 0 | AI14: 0 | AJ14: 0 | AK14: 0 | AL14: 0 | AM14: 0 | AN14: 0 | AO14: 0 | AQ14: 0 | AR14: 0 | AS14: 0 | AT14: 0 | AU14: 0 | AV14: 0 | AW14: 0 | AX14: 0 | AY14: 0 | AZ14: 0 | BA14: 0 | BB14: 0 | BC14: 0 | BD14: 0 | BE14: 0 | BG14: 0 | BH14: 0 | BI14: 0 | BJ14: 0 | BK14: 0 | BL14: 0 | BM14: 0 | BO14: 0 | BP14: 0 | BQ14: 0 | BR14: =IF(SUM(veriler!M14:O14)>0,SUM(veriler!M14:O14),0) -> 0 | BU14: 1 | BX14: Meslek Dersi Öğretmeni | BZ14: Belletmen Öğretmen
B15: 11 | C15: NACİYE ÇIN | E15: Din Kültürü Ve Ahl.Bilgisi | F15: Öğretmen | G15: Lisans | H15: 9/A-10/B-10/C-11/A-11/C-12/A-12/B | AB15: Hayır | AC15: Hayır | AD15: 0 | AE15: 0 | AF15: 0 | AG15: 0 | AH15: 0 | AI15: 0 | AJ15: 0 | AK15: 0 | AL15: 0 | AM15: 0 | AN15: 0 | AO15: 0 | AQ15: 0 | AR15: 0 | AS15: 0 | AT15: 0 | AU15: 0 | AV15: 0 | AW15: 0 | AX15: 0 | AY15: 0 | AZ15: 0 | BA15: 0 | BB15: 0 | BC15: 0 | BD15: 0 | BE15: 0 | BG15: 0 | BH15: 0 | BI15: 0 | BJ15: 0 | BK15: 0 | BL15: 0 | BM15: 0 | BO15: 0 | BP15: 0 | BQ15: 0 | BR15: =IF(SUM(veriler!M15:O15)>0,SUM(veriler!M15:O15),0) -> 0 | BU15: 1 | BX15: Ücretli Öğretmen | BY15: 0
B16: 12 | C16: KARDİYE KÖK | E16: Harita-Tapu-Kadastro | F16: Atelye Öğretmeni | G16: Lisans | H16: 11/A-12/A | AB16: Hayır | AC16: Evet | AD16: 0 | AE16: 0 | AF16: 0 | AG16: 0 | AI16: 0 | AJ16: 0 | AK16: 0 | AL16: 0 | AM16: 0 | AN16: 0 | AO16: 0 | AQ16: 0 | AR16: 0 | AS16: 0 | AT16: 0 | AU16: 0 | AV16: 0 | AW16: 0 | AX16: 0 | AY16: 0 | AZ16: 0 | BA16: 0 | BB16: 0 | BC16: 0 | BD16: 0 | BE16: 0 | BG16: 0 | BH16: 0 | BI16: 0 | BJ16: 0 | BK16: 0 | BL16: 0 | BM16: 1 | BO16: 0 | BP16: 0 | BQ16: 0 | BR16: =IF(SUM(veriler!M16:O16)>0,SUM(veriler!M16:O16),0) -> 0 | BU16: 1 | BX16: Sözleşmeli Meslek | BY16: 20
B17: 13 | C17: FİDAN ERBEYLİ | E17: Türk Dili ve Edebiyatı | F17: Öğretmen | G17: Y.Lisans | H17: 9/A-10/B-10/C-12/A-12/B | AB17: Hayır | AC17: Hayır | AD17: 0 | AE17: 0 | AF17: 0 | AG17: 0 | AH17: 0 | AI17: 0 | AJ17: 0 | AK17: 0 | AL17: 0 | AM17: 0 | AN17: 0 | AO17: 0 | AQ17: 0 | AR17: 0 | AS17: 0 | AT17: 0 | AU17: 0 | AV17: 0 | AW17: 0 | AX17: 0 | AY17: 0 | AZ17: 0 | BA17: 0 | BB17: 0 | BC17: 0 | BD17: 0 | BE17: 0 | BG17: 0 | BH17: 0 | BI17: 0 | BJ17: 0 | BK17: 0 | BL17: 0 | BM17: 0 | BO17: 0 | BP17: 0 | BQ17: 0 | BR17: =IF(SUM(veriler!M17:O17)>0,SUM(veriler!M17:O17),0) -> 0 | BU17: 1 | BX17: Sözleşmeli Öğretmen | BY17: 15
B18: 14 | C18: HATİCE UYSAL | E18: Metal İşl. | F18: Atelye Öğretmeni | G18: Lisans | H18: 9/A-10/B-10/C-12B | AB18: Hayır | AC18: Evet | AD18: 0 | AE18: 0 | AF18: 0 | AG18: 0 | AI18: 0 | AJ18: 0 | AK18: 0 | AL18: 0 | AM18: 0 | AN18: 0 | AO18: 0 | AQ18: 0 | AR18: 0 | AS18: 0 | AT18: 0 | AU18: 0 | AV18: 0 | AW18: 0 | AX18: 0 | AY18: 0 | AZ18: 0 | BA18: 0 | BB18: 0 | BC18: 0 | BD18: 0 | BE18: 0 | BG18: 0 | BH18: 0 | BI18: 0 | BJ18: 0 | BK18: 0 | BL18: 0 | BM18: 1 | BO18: 0 | BP18: 0 | BQ18: 0 | BR18: =IF(SUM(veriler!M18:O18)>0,SUM(veriler!M18:O18),0) -> 0 | BU18: 1 | BX18: Alan Şefi | BY18: 20
B19: 15 | C19: ÜMMÜ NUR ŞEN | E19: Fizik | F19: Ücretli Öğretmen | G19: Lisans | H19: 9/A-10/B-10C | AB19: Hayır | AC19: Hayır | AD19: 0 | AE19: 0 | AF19: 0 | AG19: 0 | AI19: 0 | AJ19: 0 | AK19: 0 | AL19: 0 | AM19: 0 | AN19: 0 | AO19: 0 | AQ19: 0 | AR19: 0 | AS19: 0 | AT19: 0 | AU19: 0 | AV19: 0 | AW19: 0 | AX19: 0 | AY19: 0 | AZ19: 0 | BA19: 0 | BB19: 0 | BC19: 0 | BD19: 0 | BE19: 0 | BH19: 0 | BI19: 0 | BJ19: 0 | BK19: 0 | BL19: 0 | BM19: 0 | BO19: 0 | BP19: 0 | BQ19: 0 | BR19: =IF(SUM(veriler!M19:O19)>0,SUM(veriler!M19:O19),0) -> 0 | BU19: 1 | BX19: Atölye/Lab Şefi | BY19: 20
B20: 16 | C20: SONER DOĞANAY | E20: Beden Eğitimi | F20: Sınıf Öğretmeni | G20: Lisans | I20: Belletmen Öğretmen | J20: Çakır Hasan Ortaokulu | AD20: 0 | AE20: 0 | AF20: 0 | AG20: 0 | AH20: 0 | AI20: 0 | AJ20: 0 | AK20: 0 | AL20: 0 | AM20: 0 | AN20: 0 | AO20: 0 | AQ20: 0 | AR20: 0 | AS20: 0 | AT20: 0 | AU20: 0 | AV20: 0 | AW20: 0 | AX20: 0 | AY20: 0 | AZ20: 0 | BA20: 0 | BB20: 0 | BC20: 0 | BD20: 0 | BE20: 0 | BG20: 0 | BH20: 0 | BI20: 0 | BJ20: 0 | BK20: 0 | BL20: =IFERROR(IF(OR(AB20="Evet",I20=$BZ$14),IF(C20>0,7,0),0),0) -> 7 | BM20: 0 | BN20: (Çakır Hasan Ortaokulu) | BO20: 0 | BP20: 0 | BQ20: 0 | BR20: =IF(SUM(veriler!M20:O20)>0,SUM(veriler!M20:O20),0) -> 0 | BV20: =IF(J20="","",CONCATENATE("(",J20,")")) -> (Çakır Hasan Ortaokulu) | BX20: B.T.Formatör Öğrt.
B21: 17 | AE21: 0 | AH21: FALSE | AI21: 0 | AJ21: 0 | AK21: 0 | AL21: 0 | AM21: 0 | AN21: 0 | AO21: 0 | AQ21: 0 | AR21: 0 | AS21: 0 | AT21: 0 | AU21: 0 | AV21: 0 | AW21: 0 | AX21: 0 | AY21: 0 | AZ21: 0 | BA21: 0 | BB21: 0 | BC21: 0 | BD21: 0 | BE21: 0 | BH21: 0 | BI21: 0 | BJ21: 0 | BK21: 0 | BL21: =IFERROR(IF(OR(AB21="Evet",I21=$BZ$14),IF(C21>0,7,0),0),0) -> 0 | BM21: 0 | BQ21: 0 | BR21: =IF(SUM(veriler!M21:O21)>0,SUM(veriler!M21:O21),0) -> 0 | BV21: =IF(J21="","",CONCATENATE("(",J21,")")) -> 
B22: 18 | AE22: 0 | AH22: FALSE | AI22: 0 | AJ22: 0 | AK22: 0 | AL22: 0 | AM22: 0 | AN22: 0 | AO22: 0 | AQ22: 0 | AR22: 0 | AS22: 0 | AT22: 0 | AU22: 0 | AV22: 0 | AW22: 0 | AX22: 0 | AY22: 0 | AZ22: 0 | BA22: 0 | BB22: 0 | BC22: 0 | BD22: 0 | BE22: 0 | BH22: 0 | BI22: 0 | BJ22: 0 | BK22: 0 | BL22: 0 | BM22: 0 | BQ22: 0 | BR22: =IF(SUM(veriler!M22:O22)>0,SUM(veriler!M22:O22),0) -> 0
B23: 19 | AE23: 0 | AH23: FALSE | AI23: 0 | AJ23: 0 | AK23: 0 | AL23: 0 | AM23: 0 | AN23: 0 | AO23: 0 | AQ23: 0 | AR23: 0 | AS23: 0 | AT23: 0 | AU23: 0 | AV23: 0 | AW23: 0 | AX23: 0 | AY23: 0 | AZ23: 0 | BA23: 0 | BB23: 0 | BC23: 0 | BD23: 0 | BE23: 0 | BH23: 0 | BI23: 0 | BJ23: 0 | BK23: 0 | BL23: 0 | BM23: 0 | BQ23: 0 | BR23: =IF(SUM(veriler!M23:O23)>0,SUM(veriler!M23:O23),0) -> 0
B24: 20 | AE24: 0 | AH24: FALSE | AI24: 0 | AJ24: 0 | AK24: 0 | AL24: 0 | AM24: 0 | AN24: 0 | AO24: 0 | AQ24: 0 | AR24: 0 | AS24: 0 | AT24: 0 | AU24: 0 | AV24: 0 | AW24: 0 | AX24: 0 | AY24: 0 | AZ24: 0 | BA24: 0 | BB24: 0 | BC24: 0 | BD24: 0 | BE24: 0 | BH24: 0 | BI24: 0 | BJ24: 0 | BK24: 0 | BL24: 0 | BM24: 0 | BQ24: 0 | BR24: =IF(SUM(veriler!M24:O24)>0,SUM(veriler!M24:O24),0) -> 0
B25: 21 | AE25: 0 | AH25: FALSE | AI25: 0 | AJ25: 0 | AK25: 0 | AL25: 0 | AM25: 0 | AN25: 0 | AO25: 0 | AQ25: 0 | AR25: 0 | AS25: 0 | AT25: 0 | AU25: 0 | AV25: 0 | AW25: 0 | AX25: 0 | AY25: 0 | AZ25: 0 | BA25: 0 | BB25: 0 | BC25: 0 | BD25: 0 | BE25: 0 | BH25: 0 | BI25: 0 | BJ25: 0 | BK25: 0 | BL25: 0 | BM25: 0 | BQ25: 0 | BR25: =IF(SUM(veriler!M25:O25)>0,SUM(veriler!M25:O25),0) -> 0
B26: 22 | AE26: 0 | AH26: FALSE | AI26: 0 | AJ26: 0 | AK26: 0 | AL26: 0 | AM26: 0 | AN26: 0 | AO26: 0 | AQ26: 0 | AR26: 0 | AS26: 0 | AT26: 0 | AU26: 0 | AV26: 0 | AW26: 0 | AX26: 0 | AY26: 0 | AZ26: 0 | BA26: 0 | BB26: 0 | BC26: 0 | BD26: 0 | BE26: 0 | BH26: 0 | BI26: 0 | BJ26: 0 | BK26: 0 | BL26: 0 | BM26: 0 | BQ26: 0 | BR26: =IF(SUM(veriler!M26:O26)>0,SUM(veriler!M26:O26),0) -> 0
B27: 23 | AE27: 0 | AH27: FALSE | AI27: 0 | AJ27: 0 | AK27: 0 | AL27: 0 | AM27: 0 | AN27: 0 | AO27: 0 | AQ27: 0 | AR27: 0 | AS27: 0 | AT27: 0 | AU27: 0 | AV27: 0 | AW27: 0 | AX27: 0 | AY27: 0 | AZ27: 0 | BA27: 0 | BB27: 0 | BC27: 0 | BD27: 0 | BE27: 0 | BH27: 0 | BI27: 0 | BJ27: 0 | BK27: 0 | BL27: 0 | BM27: 0 | BQ27: 0 | BR27: =IF(SUM(veriler!M27:O27)>0,SUM(veriler!M27:O27),0) -> 0
B28: 24 | AE28: 0 | AH28: FALSE | AI28: 0 | AJ28: 0 | AK28: 0 | AL28: 0 | AM28: 0 | AN28: 0 | AO28: 0 | AQ28: 0 | AR28: 0 | AS28: 0 | AT28: 0 | AU28: 0 | AV28: 0 | AW28: 0 | AX28: 0 | AY28: 0 | AZ28: 0 | BA28: 0 | BB28: 0 | BC28: 0 | BD28: 0 | BE28: 0 | BH28: 0 | BI28: 0 | BJ28: 0 | BK28: 0 | BL28: 0 | BM28: 0 | BQ28: 0 | BR28: =IF(SUM(veriler!M28:O28)>0,SUM(veriler!M28:O28),0) -> 0
B29: 25 | AE29: 0 | AH29: FALSE | AI29: 0 | AJ29: 0 | AK29: 0 | AL29: 0 | AM29: 0 | AN29: 0 | AO29: 0 | AQ29: 0 | AR29: 0 | AS29: 0 | AT29: 0 | AU29: 0 | AV29: 0 | AW29: 0 | AX29: 0 | AY29: 0 | AZ29: 0 | BA29: 0 | BB29: 0 | BC29: 0 | BD29: 0 | BE29: 0 | BH29: 0 | BI29: 0 | BJ29: 0 | BK29: 0 | BL29: 0 | BM29: 0 | BQ29: 0 | BR29: =IF(SUM(veriler!M29:O29)>0,SUM(veriler!M29:O29),0) -> 0
B30: 26 | AE30: 0 | AH30: FALSE | AI30: 0 | AJ30: 0 | AK30: 0 | AL30: 0 | AM30: 0 | AN30: 0 | AO30: 0 | AQ30: 0 | AR30: 0 | AS30: 0 | AT30: 0 | AU30: 0 | AV30: 0 | AW30: 0 | AX30: 0 | AY30: 0 | AZ30: 0 | BA30: 0 | BB30: 0 | BC30: 0 | BD30: 0 | BE30: 0 | BH30: 0 | BI30: 0 | BJ30: 0 | BK30: 0 | BL30: 0 | BM30: 0 | BQ30: 0 | BR30: =IF(SUM(veriler!M30:O30)>0,SUM(veriler!M30:O30),0) -> 0
B31: 27 | AE31: 0 | AH31: FALSE | AI31: 0 | AJ31: 0 | AK31: 0 | AL31: 0 | AM31: 0 | AN31: 0 | AO31: 0 | AQ31: 0 | AR31: 0 | AS31: 0 | AT31: 0 | AU31: 0 | AV31: 0 | AW31: 0 | AX31: 0 | AY31: 0 | AZ31: 0 | BA31: 0 | BB31: 0 | BC31: 0 | BD31: 0 | BE31: 0 | BH31: 0 | BI31: 0 | BJ31: 0 | BK31: 0 | BL31: 0 | BM31: 0 | BQ31: 0 | BR31: =IF(SUM(veriler!M31:O31)>0,SUM(veriler!M31:O31),0) -> 0
B32: 28 | AE32: 0 | AH32: FALSE | AI32: 0 | AJ32: 0 | AK32: 0 | AL32: 0 | AM32: 0 | AN32: 0 | AO32: 0 | AQ32: 0 | AR32: 0 | AS32: 0 | AT32: 0 | AU32: 0 | AV32: 0 | AW32: 0 | AX32: 0 | AY32: 0 | AZ32: 0 | BA32: 0 | BB32: 0 | BC32: 0 | BD32: 0 | BE32: 0 | BH32: 0 | BI32: 0 | BJ32: 0 | BK32: 0 | BL32: 0 | BM32: 0 | BQ32: 0 | BR32: =IF(SUM(veriler!M32:O32)>0,SUM(veriler!M32:O32),0) -> 0
B33: 29 | AE33: 0 | AH33: FALSE | AI33: 0 | AJ33: 0 | AK33: 0 | AL33: 0 | AM33: 0 | AN33: 0 | AO33: 0 | AQ33: 0 | AR33: 0 | AS33: 0 | AT33: 0 | AU33: 0 | AV33: 0 | AW33: 0 | AX33: 0 | AY33: 0 | AZ33: 0 | BA33: 0 | BB33: 0 | BC33: 0 | BD33: 0 | BE33: 0 | BH33: 0 | BI33: 0 | BJ33: 0 | BK33: 0 | BL33: 0 | BM33: 0 | BQ33: 0 | BR33: =IF(SUM(veriler!M33:O33)>0,SUM(veriler!M33:O33),0) -> 0
B34: 30 | AE34: 0 | AH34: FALSE | AI34: 0 | AJ34: 0 | AK34: 0 | AL34: 0 | AM34: 0 | AN34: 0 | AO34: 0 | AQ34: 0 | AR34: 0 | AS34: 0 | AT34: 0 | AU34: 0 | AV34: 0 | AW34: 0 | AX34: 0 | AY34: 0 | AZ34: 0 | BA34: 0 | BB34: 0 | BC34: 0 | BD34: 0 | BE34: 0 | BH34: 0 | BI34: 0 | BJ34: 0 | BK34: 0 | BL34: 0 | BM34: 0 | BQ34: 0 | BR34: =IF(SUM(veriler!M34:O34)>0,SUM(veriler!M34:O34),0) -> 0
A35: 2 | B35: 31
B36: 32

Sheet ücret onayı
B1: =CONCATENATE(ANASAYFA!B5," ",ANASAYFA!B6," ","ÖĞRETİM YILI"," ",ANASAYFA!B7,". DÖNEM"," ","ÜCRETLİ DERS OKUTAN YÖNETİCİ VE ÖĞRETMENLERİN EK DERS ÜCRETLERİNİ GÖSTERİR ÇİZELGE") -> ULUBORLU MESLEKİ VE TEKNİK ANADOLU LİSESİ 2019-2020 ÖĞRETİM YILI 1. DÖNEM ÜCRETLİ DERS OKUTAN YÖNETİCİ VE ÖĞRETMENLERİN EK DERS ÜCRETLERİNİ GÖSTERİR ÇİZELGE
B2: S.N | C2: Adı Soyadı | D2: Görevi ve Branşı | E2: ÖĞRENİM DURUMU | F2: Haftalık Okutacağı Derslerin | O2: Okuttuğu Sınıflar | P2: Ders Niteliğinde Yönetim Görevi Ücret Saati | Q2: İkili Eğitim Ücret Saati (Yöneticiler için) | R2: Ders Dışı Egzersiz Görevi Ücreti Saati | S2: Palanlama ve Bakım / Onarım Görevi (Bölüm ve Atölye Şefleri ) | T2: TTKB 25.06.2012 ve 69 sayılı İlköğretim Kurumları (İlkokul ve Ortaokul) Haftalık Ders Çizelgesi 7. Maddesi Gereği Sosyal, Kültürel, Sanatsal ve Sportif Faaliyetler Ücret Saati | U2: Haftalık Ücretli Ders Saati Toplamı | V2: Haftalık Nöbet Ücreti Toplam Saati | W2: Özel Eğitim Sınıf Ücretli Ders saati Toplamı | X2: Haftalık Ücretli Yüksek Lisans Ücretli Ders Saati Toplamı (%5) | Y2: Haftalık Ücretli Doktora Ücretli Ders Saati Toplamı (%15) | Z2: Ücretli Dersin Saat Başı Bürüt Ücreti | AA2: Ücretli Dersin ToplamBürüt Ücreti | AB2: Haftalık Nöbet Bürüt Üçreti | AC2: Özel Eğitim Sınıfı Ücretli Ders SaatiToplam Bürüt Ücreti (%25Fazlası) | AD2: Özel Eğitim Sınıfı Ücretli Ders Saati Başı Bürüt Ücreti (%25Fazlası) | AE2: Yüksek Lisans Ücretli Dersin Saat Başı Bürüt Ücreti (%5) | AF2: Yüksek Lisans Ücretli Dersin Saat Başı Bürüt Ücreti (%5 Fazlası) Toplam | AG2: Doktora Ücretli Dersin Saat Başı Bürüt Ücreti (%15 Fazlası) | AH2: Doktora Ücretli Dersin Toplam Bürüt Ücreti (%15 Fazlası) | AI2: Haftalık Ödenecek Ücret Tutarı | AJ2: =CONCATENATE("Mali Yıl:"," ",ANASAYFA!B8," ","Ay:"," ",ANASAYFA!B9) -> Mali Yıl: 2020 Ay: OCAK | AR2: İlçemiz
F3: Maaş Karşılığı | G3: Diğer Okullardaki Maaş Karşılığı | H3: Maaş Karşılığı DYK Toplamı | I3: Ücret Karşılığı DYK Toplamı | J3: Okulundaki /Diğer okullardaki Ücret Karşılığı toplamı | K3: Özel Eğitim Sınıfı Ders Saati | L3: Ders Dışı Hazırlık ve Planlama | M3: Öğr.Sos. Kiş.Hz. | N3: Toplam | AJ3: Açıklamalar | AR3: =PROPER((ANASAYFA!B5)) -> Uluborlu Mesleki Ve Teknik Anadolu Lisesi
C4: 1 | D4: 2 | E4: 3 | F4: 4 | G4: 5 | H4: 6 | I4: 7 | J4: 8 | K4: 9 | L4: 10 | M4: 11 | N4: 12 | O4: 13 | P4: 14 | Q4: 15 | R4: 16 | S4: 17 | T4: 18 | U4: 19 | V4: 20 | W4: 21 | X4: 22 | Y4: 23 | Z4: 24 | AA4: 25 | AB4: 26 | AC4: 27 | AD4: 28 | AE4: 29 | AF4: 30 | AG4: 31 | AH4: 32 | AI4: 33 | AJ4: 34
B5: =IF(ISBLANK(C5),"",ROUNDUP(ROWS($B$5:B5)/1,0)) -> 1 | C5: =IF(AO5>0,veriler!C5,"") -> RUHİ İLHAN | D5: =IF(C5>0,CONCATENATE(veriler!F5,"(",veriler!E5,")"),"") -> Müdür(Coğrafya) | E5: =IF(C5>0,veriler!G5,"") -> Lisans | F5: =IFERROR(IF(C5>0,IF(veriler!K5<veriler!AF5,veriler!K5,veriler!AF5)),"") -> 0 | G5: =IFERROR(IF(C5>0,veriler!AG5,0),"") -> 0 | H5: =IFERROR(IF(C5>0,veriler!AO5,0),"") -> 0 | I5: =IFERROR(IF(C5>0,veriler!AL5,0),"") -> 0 | J5: =IFERROR(IF(C5>0,IF(veriler!BI5>0,veriler!BI5,0)),0) -> 0 | L5: =IF(C5>0,veriler!BF5,0) ->  | M5: =IF(C5>0,veriler!BG5,0) ->  | N5: =SUM(F5:M5)+X5+Y5 -> 0 | O5: =IF(C5>0,veriler!H5,0) -> 9/A | P5: =IF(C5>0,veriler!V5,0) -> 0 | Q5: =IF(C5>0,veriler!W5,0) -> 0 | R5: =IF(C5>0,veriler!X5,0) -> 0 | S5: =IF(C5>0,veriler!Y5,0) -> 0 | U5: =IFERROR(SUM(J5:M5)+SUM(P5:T5),"") -> 0 | V5: =IF(C5>0,veriler!Z5,0) -> 0 | W5: =IF(C5>0,veriler!AA5,0) -> 0 | X5: =IF(C5>0,IF(veriler!BJ5>0,veriler!BJ5,0)) -> 0 | Y5: =IF(C5>0,IF(veriler!BK5>0,veriler!BK5,0)) -> 0 | Z5: =ANASAYFA!$B$21 -> 20.44854 | AA5: =IFERROR(IF(U5>0,U5*Z5,0),"") -> 0 | AB5: =IFERROR(IF(V5>0,V5*Z5,0),"") -> 0 | AC5: =ANASAYFA!$B$25 -> 25.560675 | AD5: =IF(W5>0,W5*AC5,0) -> 0 | AE5: =ANASAYFA!$B$26 -> 21.470967 | AF5: =IFERROR(IF(X5>0,X5*AE5,0),"") -> 0 | AG5: =ANASAYFA!$B$27 -> 23.515821 | AH5: =IFERROR(Y5*AG5,"") -> 0 | AI5: =SUM(AA5,AB5,AD5,AF5,AH5) -> 0 | AL5: 0 | AO5: 1 | AR5: ücretli ders okutan yönetici ve öğretmenlerin,durumu yukarıda çizelge halinde sunulmuştur. 439 sayılı Kanun ve MEB Yönetici ve Öğretmenlerin ders ve ek Ders saatlerine ilişkin esaslar doğrultusunda okutulan ücretli derslerin, ek ders ücreti olarak ödenmesine müsadelerinize arz ederim
B6: =IF(C6="",,COUNTIF($B$5:B5,">0")+1) -> 2 | C6: =IF(AO6>0,veriler!C6,"") -> A.AKİF KÖSE | D6: =IF(C6>0,CONCATENATE(veriler!F6,"(",veriler!E6,")"),"") -> Müdür Baş Yard(Elekt-Elektr.) | E6: =IF(C6>0,veriler!G6,"") -> Y.Lisans | F6: =IFERROR(IF(C6>0,IF(veriler!K6<veriler!AF6,veriler!K6,veriler!AF6)),"") -> 0 | G6: =IFERROR(IF(C6>0,veriler!AG6,0),"") -> 0 | H6: =IFERROR(IF(C6>0,veriler!AO6,0),"") -> 0 | I6: =IFERROR(IF(C6>0,veriler!AL6,0),"") -> 0 | J6: =IFERROR(IF(C6>0,IF(veriler!BI6>0,veriler!BI6,0)),0) -> 0 | L6: =IF(C6>0,veriler!BF6,0) ->  | M6: =IF(C6>0,veriler!BG6,0) ->  | N6: =SUM(F6:M6)+X6+Y6 -> 0 | O6: =IF(C6>0,veriler!H6,0) -> 10/C-11/C | P6: =IF(C6>0,veriler!V6,0) -> 0 | Q6: =IF(C6>0,veriler!W6,0) -> 0 | R6: =IF(C6>0,veriler!X6,0) -> 0 | S6: =IF(C6>0,veriler!Y6,0) -> 0 | U6: =IFERROR(SUM(J6:M6)+SUM(P6:T6),"") -> 0 | V6: =IF(C6>0,veriler!Z6,0) -> 0 | W6: =IF(C6>0,veriler!AA6,0) -> 0 | X6: =IF(C6>0,IF(veriler!BJ6>0,veriler!BJ6,0)) -> 0 | Y6: =IF(C6>0,IF(veriler!BK6>0,veriler!BK6,0)) -> 0 | Z6: =ANASAYFA!$B$21 -> 20.44854 | AA6: =IFERROR(IF(U6>0,U6*Z6,0),"") -> 0 | AB6: =IFERROR(IF(V6>0,V6*Z6,0),"") -> 0 | AC6: =ANASAYFA!$B$25 -> 25.560675 | AD6: =IF(W6>0,W6*AC6,0) -> 0 | AE6: =ANASAYFA!$B$26 -> 21.470967 | AF6: =IFERROR(IF(X6>0,X6*AE6,0),"") -> 0 | AG6: =ANASAYFA!$B$27 -> 23.515821 | AH6: =IFERROR(Y6*AG6,"") -> 0 | AI6: =SUM(AA6,AB6,AD6,AF6,AH6) -> 0 | AL6: 0 | AO6: 1
B7: =IF(C7="",,COUNTIF($B$5:B6,">0")+1) -> 3 | C7: =IF(AO7>0,veriler!C7,"") -> ALİ OĞUR | D7: =IF(C7>0,CONCATENATE(veriler!F7,"(",veriler!E7,")"),"") -> Müdür Yardımcısı(Bilgisayar) | E7: =IF(C7>0,veriler!G7,"") -> Lisans | F7: =IFERROR(IF(C7>0,IF(veriler!K7<veriler!AF7,veriler!K7,veriler!AF7)),"") -> 0 | G7: =IFERROR(IF(C7>0,veriler!AG7,0),"") -> 0 | H7: =IFERROR(IF(C7>0,veriler!AO7,0),"") -> 0 | I7: =IFERROR(IF(C7>0,veriler!AL7,0),"") -> 0 | J7: =IFERROR(IF(C7>0,IF(veriler!BI7>0,veriler!BI7,0)),0) -> 0 | L7: =IF(C7>0,veriler!BF7,0) ->  | M7: =IF(C7>0,veriler!BG7,0) ->  | N7: 0 | O7: =IF(C7>0,veriler!H7,0) -> 11-C | P7: =IF(C7>0,veriler!V7,0) -> 0 | Q7: =IF(C7>0,veriler!W7,0) -> 0 | R7: =IF(C7>0,veriler!X7,0) -> 0 | S7: =IF(C7>0,veriler!Y7,0) -> 0 | U7: 0 | V7: =IF(C7>0,veriler!Z7,0) -> 0 | W7: =IF(C7>0,veriler!AA7,0) -> 0 | X7: =IF(C7>0,IF(veriler!BJ7>0,veriler!BJ7,0)) -> 0 | Y7: =IF(C7>0,IF(veriler!BK7>0,veriler!BK7,0)) -> 0 | Z7: =ANASAYFA!$B$21 -> 20.44854 | AA7: 0 | AB7: 0 | AC7: =ANASAYFA!$B$25 -> 25.560675 | AD7: 0 | AE7: =ANASAYFA!$B$26 -> 21.470967 | AF7: 0 | AG7: =ANASAYFA!$B$27 -> 23.515821 | AH7: 0 | AI7: 0 | AL7: 0 | AO7: 1
B8: =IF(C8="",,COUNTIF($B$5:B7,">0")+1) -> 4 | C8: =IF(AO8>0,veriler!C8,"") -> ZEKİ DERELİ | D8: =IF(C8>0,CONCATENATE(veriler!F8,"(",veriler!E8,")"),"") -> Müdür Yardımcısı(Beden Eğitimi) | E8: =IF(C8>0,veriler!G8,"") -> Lisans | F8: =IFERROR(IF(C8>0,IF(veriler!K8<veriler!AF8,veriler!K8,veriler!AF8)),"") -> 0 | G8: =IFERROR(IF(C8>0,veriler!AG8,0),"") -> 0 | H8: =IFERROR(IF(C8>0,veriler!AO8,0),"") -> 0 | I8: =IFERROR(IF(C8>0,veriler!AL8,0),"") -> 0 | J8: =IFERROR(IF(C8>0,IF(veriler!BI8>0,veriler!BI8,0)),0) -> 0 | L8: =IF(C8>0,veriler!BF8,0) ->  | M8: =IF(C8>0,veriler!BG8,0) ->  | N8: 0 | O8: =IF(C8>0,veriler!H8,0) -> 9/A-10/B-10/C-11/A-11/C | P8: =IF(C8>0,veriler!V8,0) -> 0 | Q8: =IF(C8>0,veriler!W8,0) -> 0 | R8: =IF(C8>0,veriler!X8,0) -> 0 | S8: =IF(C8>0,veriler!Y8,0) -> 0 | U8: 0 | V8: =IF(C8>0,veriler!Z8,0) -> 0 | W8: =IF(C8>0,veriler!AA8,0) -> 0 | X8: =IF(C8>0,IF(veriler!BJ8>0,veriler!BJ8,0)) -> 0 | Y8: =IF(C8>0,IF(veriler!BK8>0,veriler!BK8,0)) -> 0 | Z8: =ANASAYFA!$B$21 -> 20.44854 | AA8: 0 | AB8: 0 | AC8: =ANASAYFA!$B$25 -> 25.560675 | AD8: 0 | AE8: =ANASAYFA!$B$26 -> 21.470967 | AF8: 0 | AG8: =ANASAYFA!$B$27 -> 23.515821 | AH8: 0 | AI8: 0 | AL8: 0 | AO8: 1
B9: =IF(C9="",,COUNTIF($B$5:B8,">0")+1) -> 5 | C9: =IF(AO9>0,veriler!C9,"") -> MUAMMER KAYAKUŞ | D9: =IF(C9>0,CONCATENATE(veriler!F9,"(",veriler!E9,")"),"") -> Atölye/Lab Şefi(Elekt-Elektr.) | E9: =IF(C9>0,veriler!G9,"") -> Lisans | F9: =IFERROR(IF(C9>0,IF(veriler!K9<veriler!AF9,veriler!K9,veriler!AF9)),"") -> 0 | G9: =IFERROR(IF(C9>0,veriler!AG9,0),"") -> 0 | H9: =IFERROR(IF(C9>0,veriler!AO9,0),"") -> 0 | I9: =IFERROR(IF(C9>0,veriler!AL9,0),"") -> 0 | J9: =IFERROR(IF(C9>0,IF(veriler!BI9>0,veriler!BI9,0)),0) -> 0 | L9: =IF(C9>0,veriler!BF9,0) ->  | M9: =IF(C9>0,veriler!BG9,0) ->  | N9: 0 | O9: =IF(C9>0,veriler!H9,0) -> 10/C-11/C | P9: =IF(C9>0,veriler!V9,0) -> 0 | Q9: =IF(C9>0,veriler!W9,0) -> 0 | R9: =IF(C9>0,veriler!X9,0) -> 0 | S9: =IF(C9>0,veriler!Y9,0) -> 0 | U9: =IFERROR(SUM(J9:M9)+SUM(P9:T9),"") -> 0 | V9: =IF(C9>0,veriler!Z9,0) -> 0 | W9: =IF(C9>0,veriler!AA9,0) -> 0 | X9: =IF(C9>0,IF(veriler!BJ9>0,veriler!BJ9,0)) -> 0 | Y9: =IF(C9>0,IF(veriler!BK9>0,veriler!BK9,0)) -> 0 | Z9: =ANASAYFA!$B$21 -> 20.44854 | AA9: 0 | AB9: 0 | AC9: =ANASAYFA!$B$25 -> 25.560675 | AD9: 0 | AE9: =ANASAYFA!$B$26 -> 21.470967 | AF9: 0 | AG9: =ANASAYFA!$B$27 -> 23.515821 | AH9: 0 | AI9: 0 | AL9: 0 | AO9: 1
B10: =IF(C10="",,COUNTIF($B$5:B9,">0")+1) -> 6 | C10: =IF(AO10>0,veriler!C10,"") -> MEHMET GÜLAY | D10: =IF(C10>0,CONCATENATE(veriler!F10,"(",veriler!E10,")"),"") -> Alan Şefi(Metal İşl. ) | E10: =IF(C10>0,veriler!G10,"") -> Lisans | F10: =IFERROR(IF(C10>0,IF(veriler!K10<veriler!AF10,veriler!K10,veriler!AF10)),"") -> 0 | G10: =IFERROR(IF(C10>0,veriler!AG10,0),"") -> 0 | H10: =IFERROR(IF(C10>0,veriler!AO10,0),"") -> 0 | I10: =IFERROR(IF(C10>0,veriler!AL10,0),"") -> 0 | J10: =IFERROR(IF(C10>0,IF(veriler!BI10>0,veriler!BI10,0)),0) -> 0 | L10: =IF(C10>0,veriler!BF10,0) ->  | M10: =IF(C10>0,veriler!BG10,0) ->  | N10: 0 | O10: =IF(C10>0,veriler!H10,0) -> 10/B-12/B | P10: =IF(C10>0,veriler!V10,0) -> 0 | Q10: =IF(C10>0,veriler!W10,0) -> 0 | R10: =IF(C10>0,veriler!X10,0) -> 0 | S10: =IF(C10>0,veriler!Y10,0) -> 0 | U10: 0 | V10: =IF(C10>0,veriler!Z10,0) -> 0 | W10: =IF(C10>0,veriler!AA10,0) -> 0 | X10: =IF(C10>0,IF(veriler!BJ10>0,veriler!BJ10,0)) -> 0 | Y10: =IF(C10>0,IF(veriler!BK10>0,veriler!BK10,0)) -> 0 | Z10: =ANASAYFA!$B$21 -> 20.44854 | AA10: 0 | AB10: 0 | AC10: =ANASAYFA!$B$25 -> 25.560675 | AD10: 0 | AE10: =ANASAYFA!$B$26 -> 21.470967 | AF10: 0 | AG10: =ANASAYFA!$B$27 -> 23.515821 | AH10: 0 | AI10: 0 | AL10: 0 | AO10: 1
B11: =IF(C11="",,COUNTIF($B$5:B10,">0")+1) -> 7 | C11: =IF(AO11>0,veriler!C11,"") -> DEMET KAYA | D11: =IF(C11>0,CONCATENATE(veriler!F11,"(",veriler!E11,")"),"") -> Öğretmen(Matematik) | E11: =IF(C11>0,veriler!G11,"") -> Y.Lisans | F11: =IFERROR(IF(C11>0,IF(veriler!K11<veriler!AF11,veriler!K11,veriler!AF11)),"") -> 0 | G11: =IFERROR(IF(C11>0,veriler!AG11,0),"") -> 0 | H11: =IFERROR(IF(C11>0,veriler!AO11,0),"") -> 0 | I11: =IFERROR(IF(C11>0,veriler!AL11,0),"") -> 0 | J11: =IFERROR(IF(C11>0,IF(veriler!BI11>0,veriler!BI11,0)),0) -> 0 | L11: =IF(C11>0,veriler!BF11,0) ->  | M11: =IF(C11>0,veriler!BG11,0) -> 0 | N11: 0 | O11: =IF(C11>0,veriler!H11,0) -> 9/A-10/B-10/C-11/A-12/A-12/B | P11: =IF(C11>0,veriler!V11,0) -> 0 | Q11: =IF(C11>0,veriler!W11,0) -> 0 | R11: =IF(C11>0,veriler!X11,0) -> 0 | S11: =IF(C11>0,veriler!Y11,0) -> 0 | U11: =IFERROR(SUM(J11:M11)+SUM(P11:T11),"") -> 0 | V11: =IF(C11>0,veriler!Z11,0) -> 0 | W11: =IF(C11>0,veriler!AA11,0) -> 0 | X11: =IF(C11>0,IF(veriler!BJ11>0,veriler!BJ11,0)) -> 0 | Y11: =IF(C11>0,IF(veriler!BK11>0,veriler!BK11,0)) -> 0 | Z11: =ANASAYFA!$B$21 -> 20.44854 | AA11: 0 | AB11: 0 | AC11: =ANASAYFA!$B$25 -> 25.560675 | AD11: 0 | AE11: =ANASAYFA!$B$26 -> 21.470967 | AF11: 0 | AG11: =ANASAYFA!$B$27 -> 23.515821 | AH11: 0 | AI11: 0 | AL11: 0 | AO11: 1
B12: =IF(C12="",,COUNTIF($B$5:B11,">0")+1) -> 8 | C12: =IF(AO12>0,veriler!C12,"") -> ALİ ÇINAR | D12: =IF(C12>0,CONCATENATE(veriler!F12,"(",veriler!E12,")"),"") -> Öğretmen(Fizik) | E12: =IF(C12>0,veriler!G12,"") -> Lisans | F12: =IFERROR(IF(C12>0,IF(veriler!K12<veriler!AF12,veriler!K12,veriler!AF12)),"") -> 0 | G12: =IFERROR(IF(C12>0,veriler!AG12,0),"") -> 0 | H12: =IFERROR(IF(C12>0,veriler!AO12,0),"") -> 0 | I12: =IFERROR(IF(C12>0,veriler!AL12,0),"") -> 0 | J12: =IFERROR(IF(C12>0,IF(veriler!BI12>0,veriler!BI12,0)),0) -> 0 | L12: =IF(C12>0,veriler!BF12,0) ->  | M12: =IF(C12>0,veriler!BG12,0) -> 0 | N12: 0 | O12: =IF(C12>0,veriler!H12,0) -> Keçiborlu AİHL de görevli | P12: =IF(C12>0,veriler!V12,0) -> 0 | Q12: =IF(C12>0,veriler!W12,0) -> 0 | R12: =IF(C12>0,veriler!X12,0) -> 0 | S12: =IF(C12>0,veriler!Y12,0) -> 0 | U12: 0 | V12: =IF(C12>0,veriler!Z12,0) -> 0 | W12: =IF(C12>0,veriler!AA12,0) -> 0 | X12: =IF(C12>0,IF(veriler!BJ12>0,veriler!BJ12,0)) -> 0 | Y12: =IF(C12>0,IF(veriler!BK12>0,veriler!BK12,0)) -> 0 | Z12: =ANASAYFA!$B$21 -> 20.44854 | AA12: 0 | AB12: 0 | AC12: =ANASAYFA!$B$25 -> 25.560675 | AD12: 0 | AE12: =ANASAYFA!$B$26 -> 21.470967 | AF12: 0 | AG12: =ANASAYFA!$B$27 -> 23.515821 | AH12: 0 | AI12: 0 | AO12: 1
B13: =IF(C13="",,COUNTIF($B$5:B12,">0")+1) -> 9 | C13: =IF(AO13>0,veriler!C13,"") -> NEVİN AKYOL | D13: =IF(C13>0,CONCATENATE(veriler!F13,"(",veriler!E13,")"),"") -> Öğretmen(Kimya) | E13: =IF(C13>0,veriler!G13,"") -> Lisans | F13: =IFERROR(IF(C13>0,IF(veriler!K13<veriler!AF13,veriler!K13,veriler!AF13)),"") -> 0 | G13: =IFERROR(IF(C13>0,veriler!AG13,0),"") -> 0 | H13: =IFERROR(IF(C13>0,veriler!AO13,0),"") -> 0 | I13: =IFERROR(IF(C13>0,veriler!AL13,0),"") -> 0 | J13: =IFERROR(IF(C13>0,IF(veriler!BI13>0,veriler!BI13,0)),0) -> 0 | L13: =IF(C13>0,veriler!BF13,0) ->  | M13: =IF(C13>0,veriler!BG13,0) -> 0 | N13: 0 | O13: =IF(C13>0,veriler!H13,0) -> 9/A-10/B-10/C | P13: =IF(C13>0,veriler!V13,0) -> 0 | Q13: =IF(C13>0,veriler!W13,0) -> 0 | R13: =IF(C13>0,veriler!X13,0) -> 0 | S13: =IF(C13>0,veriler!Y13,0) -> 0 | U13: 0 | V13: =IF(C13>0,veriler!Z13,0) -> 0 | W13: =IF(C13>0,veriler!AA13,0) -> 0 | X13: =IF(C13>0,IF(veriler!BJ13>0,veriler!BJ13,0)) -> 0 | Y13: =IF(C13>0,IF(veriler!BK13>0,veriler!BK13,0)) -> 0 | Z13: =ANASAYFA!$B$21 -> 20.44854 | AA13: 0 | AB13: 0 | AC13: =ANASAYFA!$B$25 -> 25.560675 | AD13: 0 | AE13: =ANASAYFA!$B$26 -> 21.470967 | AF13: 0 | AG13: =ANASAYFA!$B$27 -> 23.515821 | AH13: 0 | AI13: 0 | AO13: 1
B14: =IF(C14="",,COUNTIF($B$5:B13,">0")+1) -> 10 | C14: =IF(AO14>0,veriler!C14,"") -> CENNET ÖZKAN | D14: =IF(C14>0,CONCATENATE(veriler!F14,"(",veriler!E14,")"),"") -> Öğretmen(İngilizce) | E14: =IF(C14>0,veriler!G14,"") -> Lisans | F14: =IFERROR(IF(C14>0,IF(veriler!K14<veriler!AF14,veriler!K14,veriler!AF14)),"") -> 0 | G14: =IFERROR(IF(C14>0,veriler!AG14,0),"") -> 0 | H14: =IFERROR(IF(C14>0,veriler!AO14,0),"") -> 0 | I14: =IFERROR(IF(C14>0,veriler!AL14,0),"") -> 0 | J14: =IFERROR(IF(C14>0,IF(veriler!BI14>0,veriler!BI14,0)),0) -> 0 | L14: =IF(C14>0,veriler!BF14,0) ->  | M14: =IF(C14>0,veriler!BG14,0) -> 0 | N14: 0 | O14: =IF(C14>0,veriler!H14,0) -> 9/A-10/B-10/C-11/A-11/C-12/A-12/B | P14: =IF(C14>0,veriler!V14,0) -> 0 | Q14: =IF(C14>0,veriler!W14,0) -> 0 | R14: =IF(C14>0,veriler!X14,0) -> 0 | S14: =IF(C14>0,veriler!Y14,0) -> 0 | U14: 0 | V14: =IF(C14>0,veriler!Z14,0) -> 0 | W14: =IF(C14>0,veriler!AA14,0) -> 0 | X14: =IF(C14>0,IF(veriler!BJ14>0,veriler!BJ14,0)) -> 0 | Y14: =IF(C14>0,IF(veriler!BK14>0,veriler!BK14,0)) -> 0 | Z14: =ANASAYFA!$B$21 -> 20.44854 | AA14: 0 | AB14: 0 | AC14: =ANASAYFA!$B$25 -> 25.560675 | AD14: 0 | AE14: =ANASAYFA!$B$26 -> 21.470967 | AF14: 0 | AG14: =ANASAYFA!$B$27 -> 23.515821 | AH14: 0 | AI14: 0 | AL14: 0 | AO14: 1
B15: =IF(C15="",,COUNTIF($B$5:B14,">0")+1) -> 11 | C15: =IF(AO15>0,veriler!C15,"") -> NACİYE ÇIN | D15: =IF(C15>0,CONCATENATE(veriler!F15,"(",veriler!E15,")"),"") -> Öğretmen(Din Kültürü Ve Ahl.Bilgisi) | E15: =IF(C15>0,veriler!G15,"") -> Lisans | F15: =IFERROR(IF(C15>0,IF(veriler!K15<veriler!AF15,veriler!K15,veriler!AF15)),"") -> 0 | G15: =IFERROR(IF(C15>0,veriler!AG15,0),"") -> 0 | H15: =IFERROR(IF(C15>0,veriler!AO15,0),"") -> 0 | I15: =IFERROR(IF(C15>0,veriler!AL15,0),"") -> 0 | J15: =IFERROR(IF(C15>0,IF(veriler!BI15>0,veriler!BI15,0)),0) -> 0 | L15: =IF(C15>0,veriler!BF15,0) ->  | M15: =IF(C15>0,veriler!BG15,0) -> 0 | N15: 0 | O15: =IF(C15>0,veriler!H15,0) -> 9/A-10/B-10/C-11/A-11/C-12/A-12/B | P15: =IF(C15>0,veriler!V15,0) -> 0 | Q15: =IF(C15>0,veriler!W15,0) -> 0 | R15: =IF(C15>0,veriler!X15,0) -> 0 | S15: =IF(C15>0,veriler!Y15,0) -> 0 | U15: 0 | V15: =IF(C15>0,veriler!Z15,0) -> 0 | W15: =IF(C15>0,veriler!AA15,0) -> 0 | X15: =IF(C15>0,IF(veriler!BJ15>0,veriler!BJ15,0)) -> 0 | Y15: =IF(C15>0,IF(veriler!BK15>0,veriler!BK15,0)) -> 0 | Z15: =ANASAYFA!$B$21 -> 20.44854 | AA15: 0 | AB15: 0 | AC15: =ANASAYFA!$B$25 -> 25.560675 | AD15: 0 | AE15: =ANASAYFA!$B$26 -> 21.470967 | AF15: 0 | AG15: =ANASAYFA!$B$27 -> 23.515821 | AH15: 0 | AI15: 0 | AL15: 0 | AO15: 1
B16: =IF(C16="",,COUNTIF($B$5:B15,">0")+1) -> 12 | C16: =IF(AO16>0,veriler!C16,"") -> KARDİYE KÖK | D16: =IF(C16>0,CONCATENATE(veriler!F16,"(",veriler!E16,")"),"") -> Atelye Öğretmeni(Harita-Tapu-Kadastro) | E16: =IF(C16>0,veriler!G16,"") -> Lisans | F16: =IFERROR(IF(C16>0,IF(veriler!K16<veriler!AF16,veriler!K16,veriler!AF16)),"") -> 0 | G16: =IFERROR(IF(C16>0,veriler!AG16,0),"") -> 0 | H16: =IFERROR(IF(C16>0,veriler!AO16,0),"") -> 0 | I16: =IFERROR(IF(C16>0,veriler!AL16,0),"") -> 0 | J16: =IFERROR(IF(C16>0,IF(veriler!BI16>0,veriler!BI16,0)),0) -> 0 | L16: =IF(C16>0,veriler!BF16,0) ->  | M16: =IF(C16>0,veriler!BG16,0) -> 0 | N16: 0 | O16: =IF(C16>0,veriler!H16,0) -> 11/A-12/A | P16: =IF(C16>0,veriler!V16,0) -> 0 | Q16: =IF(C16>0,veriler!W16,0) -> 0 | R16: =IF(C16>0,veriler!X16,0) -> 0 | S16: =IF(C16>0,veriler!Y16,0) -> 0 | U16: 0 | V16: =IF(C16>0,veriler!Z16,0) -> 0 | W16: =IF(C16>0,veriler!AA16,0) -> 0 | X16: =IF(C16>0,IF(veriler!BJ16>0,veriler!BJ16,0)) -> 0 | Y16: =IF(C16>0,IF(veriler!BK16>0,veriler!BK16,0)) -> 0 | Z16: =ANASAYFA!$B$21 -> 20.44854 | AA16: 0 | AB16: 0 | AC16: =ANASAYFA!$B$25 -> 25.560675 | AD16: 0 | AE16: =ANASAYFA!$B$26 -> 21.470967 | AF16: 0 | AG16: =ANASAYFA!$B$27 -> 23.515821 | AH16: 0 | AI16: 0 | AL16: 0 | AO16: 1
B17: =IF(C17="",,COUNTIF($B$5:B16,">0")+1) -> 13 | C17: =IF(AO17>0,veriler!C17,"") -> FİDAN ERBEYLİ | D17: =IF(C17>0,CONCATENATE(veriler!F17,"(",veriler!E17,")"),"") -> Öğretmen(Türk Dili ve Edebiyatı) | E17: =IF(C17>0,veriler!G17,"") -> Y.Lisans | F17: =IFERROR(IF(C17>0,IF(veriler!K17<veriler!AF17,veriler!K17,veriler!AF17)),"") -> 0 | G17: =IFERROR(IF(C17>0,veriler!AG17,0),"") -> 0 | H17: =IFERROR(IF(C17>0,veriler!AO17,0),"") -> 0 | I17: =IFERROR(IF(C17>0,veriler!AL17,0),"") -> 0 | J17: =IFERROR(IF(C17>0,IF(veriler!BI17>0,veriler!BI17,0)),0) -> 0 | L17: =IF(C17>0,veriler!BF17,0) ->  | M17: =IF(C17>0,veriler!BG17,0) -> 0 | N17: 0 | O17: =IF(C17>0,veriler!H17,0) -> 9/A-10/B-10/C-12/A-12/B | P17: =IF(C17>0,veriler!V17,0) -> 0 | Q17: =IF(C17>0,veriler!W17,0) -> 0 | R17: =IF(C17>0,veriler!X17,0) -> 0 | S17: =IF(C17>0,veriler!Y17,0) -> 0 | U17: 0 | V17: =IF(C17>0,veriler!Z17,0) -> 0 | W17: =IF(C17>0,veriler!AA17,0) -> 0 | X17: =IF(C17>0,IF(veriler!BJ17>0,veriler!BJ17,0)) -> 0 | Y17: =IF(C17>0,IF(veriler!BK17>0,veriler!BK17,0)) -> 0 | Z17: =ANASAYFA!$B$21 -> 20.44854 | AA17: 0 | AB17: 0 | AC17: =ANASAYFA!$B$25 -> 25.560675 | AD17: 0 | AE17: =ANASAYFA!$B$26 -> 21.470967 | AF17: 0 | AG17: =ANASAYFA!$B$27 -> 23.515821 | AH17: 0 | AI17: 0 | AL17: 0 | AO17: 1
B18: =IF(C18="",,COUNTIF($B$5:B17,">0")+1) -> 14 | C18: =IF(AO18>0,veriler!C18,"") -> HATİCE UYSAL | D18: =IF(C18>0,CONCATENATE(veriler!F18,"(",veriler!E18,")"),"") -> Atelye Öğretmeni(Metal İşl. ) | E18: =IF(C18>0,veriler!G18,"") -> Lisans | F18: =IFERROR(IF(C18>0,IF(veriler!K18<veriler!AF18,veriler!K18,veriler!AF18)),"") -> 0 | G18: =IFERROR(IF(C18>0,veriler!AG18,0),"") -> 0 | H18: =IFERROR(IF(C18>0,veriler!AO18,0),"") -> 0 | I18: =IFERROR(IF(C18>0,veriler!AL18,0),"") -> 0 | J18: =IFERROR(IF(C18>0,IF(veriler!BI18>0,veriler!BI18,0)),0) -> 0 | L18: =IF(C18>0,veriler!BF18,0) ->  | M18: =IF(C18>0,veriler!BG18,0) -> 0 | N18: 0 | O18: =IF(C18>0,veriler!H18,0) -> 9/A-10/B-10/C-12B | P18: =IF(C18>0,veriler!V18,0) -> 0 | Q18: =IF(C18>0,veriler!W18,0) -> 0 | R18: =IF(C18>0,veriler!X18,0) -> 0 | S18: =IF(C18>0,veriler!Y18,0) -> 0 | U18: 0 | V18: =IF(C18>0,veriler!Z18,0) -> 0 | W18: =IF(C18>0,veriler!AA18,0) -> 0 | X18: =IF(C18>0,IF(veriler!BJ18>0,veriler!BJ18,0)) -> 0 | Y18: =IF(C18>0,IF(veriler!BK18>0,veriler!BK18,0)) -> 0 | Z18: =ANASAYFA!$B$21 -> 20.44854 | AA18: 0 | AB18: 0 | AC18: =ANASAYFA!$B$25 -> 25.560675 | AD18: 0 | AE18: =ANASAYFA!$B$26 -> 21.470967 | AF18: 0 | AG18: =ANASAYFA!$B$27 -> 23.515821 | AH18: 0 | AI18: 0 | AL18: 0 | AO18: 1
B19: =IF(C19="",,COUNTIF($B$5:B18,">0")+1) -> 15 | C19: =IF(AO19>0,veriler!C19,"") -> ÜMMÜ NUR ŞEN | D19: =IF(C19>0,CONCATENATE(veriler!F19,"(",veriler!E19,")"),"") -> Ücretli Öğretmen(Fizik) | E19: =IF(C19>0,veriler!G19,"") -> Lisans | F19: =IFERROR(IF(C19>0,IF(veriler!K19<veriler!AF19,veriler!K19,veriler!AF19)),"") -> 0 | G19: =IFERROR(IF(C19>0,veriler!AG19,0),"") -> 0 | H19: =IFERROR(IF(C19>0,veriler!AO19,0),"") -> 0 | I19: =IFERROR(IF(C19>0,veriler!AL19,0),"") -> 0 | J19: =IFERROR(IF(C19>0,IF(veriler!BI19>0,veriler!BI19,0)),0) -> 0 | L19: =IF(C19>0,veriler!BF19,0) ->  | M19: =IF(C19>0,veriler!BG19,0) ->  | N19: 0 | O19: =IF(C19>0,veriler!H19,0) -> 9/A-10/B-10C | P19: =IF(C19>0,veriler!V19,0) -> 0 | Q19: =IF(C19>0,veriler!W19,0) -> 0 | R19: =IF(C19>0,veriler!X19,0) -> 0 | S19: =IF(C19>0,veriler!Y19,0) -> 0 | U19: 0 | V19: =IF(C19>0,veriler!Z19,0) -> 0 | W19: =IF(C19>0,veriler!AA19,0) -> 0 | X19: =IF(C19>0,IF(veriler!BJ19>0,veriler!BJ19,0)) -> 0 | Y19: =IF(C19>0,IF(veriler!BK19>0,veriler!BK19,0)) -> 0 | Z19: =ANASAYFA!$B$21 -> 20.44854 | AA19: 0 | AB19: 0 | AC19: =ANASAYFA!$B$25 -> 25.560675 | AD19: 0 | AE19: =ANASAYFA!$B$26 -> 21.470967 | AF19: 0 | AG19: =ANASAYFA!$B$27 -> 23.515821 | AH19: 0 | AI19: 0 | AL19: 0 | AO19: 1
B20: =IF(C20="",,COUNTIF($B$5:B19,">0")+1) -> 0 | C20: =IF(AO20>0,veriler!C20,"") ->  | D20: =IF(C20>0,CONCATENATE(veriler!F20,"(",veriler!E20,")"),"") -> Sınıf Öğretmeni(Beden Eğitimi) | E20: =IF(C20>0,veriler!G20,"") -> Lisans | F20: =IFERROR(IF(C20>0,IF(veriler!K20<veriler!AF20,veriler!K20,veriler!AF20)),"") -> 0 | G20: =IFERROR(IF(C20>0,veriler!AG20,0),"") -> 0 | H20: =IFERROR(IF(C20>0,veriler!AO20,0),"") -> 0 | I20: =IFERROR(IF(C20>0,veriler!AL20,0),"") -> 0 | J20: =IFERROR(IF(C20>0,IF(veriler!BI20>0,veriler!BI20,0)),0) -> 0 | L20: =IF(C20>0,veriler!BF20,0) ->  | M20: =IF(C20>0,veriler!BG20,0) -> 0 | N20: 0 | O20: =IF(C20>0,veriler!H20,0) -> 0 | P20: =IF(C20>0,veriler!V20,0) -> 0 | Q20: =IF(C20>0,veriler!W20,0) -> 0 | R20: =IF(C20>0,veriler!X20,0) -> 0 | S20: =IF(C20>0,veriler!Y20,0) -> 0 | U20: 0 | V20: =IF(C20>0,veriler!Z20,0) -> 0 | W20: =IF(C20>0,veriler!AA20,0) -> 0 | X20: =IF(C20>0,IF(veriler!BJ20>0,veriler!BJ20,0)) -> 0 | Y20: =IF(C20>0,IF(veriler!BK20>0,veriler!BK20,0)) -> 0 | Z20: =ANASAYFA!$B$21 -> 20.44854 | AA20: 0 | AB20: 0 | AC20: =ANASAYFA!$B$25 -> 25.560675 | AD20: 0 | AE20: =ANASAYFA!$B$26 -> 21.470967 | AF20: 0 | AG20: =ANASAYFA!$B$27 -> 23.515821 | AH20: 0 | AI20: 0 | AL20: 0
B21: =IF(C21="",,COUNTIF($B$5:B20,">0")+1) -> 0 | C21: =IF(AO21>0,veriler!C21,"") ->  | D21: =IF(C21>0,CONCATENATE(veriler!F21,"(",veriler!E21,")"),"") -> () | E21: =IF(C21>0,veriler!G21,"") -> 0 | F21: =IFERROR(IF(C21>0,IF(veriler!K21<veriler!AF21,veriler!K21,veriler!AF21)),"") ->  | G21: =IFERROR(IF(C21>0,veriler!AG21,0),"") ->  | H21: =IFERROR(IF(C21>0,veriler!AO21,0),"") -> 0 | I21: =IFERROR(IF(C21>0,veriler!AL21,0),"") -> 0 | J21: =IFERROR(IF(C21>0,IF(veriler!BI21>0,veriler!BI21,0)),0) -> 0 | L21: =IF(C21>0,veriler!BF21,0) ->  | M21: =IF(C21>0,veriler!BG21,0) ->  | N21: 0 | O21: =IF(C21>0,veriler!H21,0) -> 0 | P21: =IF(C21>0,veriler!V21,0) -> 0 | Q21: =IF(C21>0,veriler!W21,0) -> 0 | R21: =IF(C21>0,veriler!X21,0) -> 0 | S21: =IF(C21>0,veriler!Y21,0) -> 0 | U21: 0 | V21: =IF(C21>0,veriler!Z21,0) -> 0 | W21: =IF(C21>0,veriler!AA21,0) -> 0 | X21: =IF(C21>0,IF(veriler!BJ21>0,veriler!BJ21,0)) -> 0 | Y21: =IF(C21>0,IF(veriler!BK21>0,veriler!BK21,0)) -> 0 | Z21: =ANASAYFA!$B$21 -> 20.44854 | AA21: 0 | AB21: 0 | AC21: =ANASAYFA!$B$25 -> 25.560675 | AD21: 0 | AE21: =ANASAYFA!$B$26 -> 21.470967 | AF21: 0 | AG21: =ANASAYFA!$B$27 -> 23.515821 | AH21: 0 | AI21: 0
B22: =IF(C22="",,COUNTIF($B$5:B21,">0")+1) -> 0 | C22: =IF(AO22>0,veriler!C22,"") ->  | D22: =IF(C22>0,CONCATENATE(veriler!F22,"(",veriler!E22,")"),"") -> () | E22: =IF(C22>0,veriler!G22,"") -> 0 | F22: =IFERROR(IF(C22>0,IF(veriler!K22<veriler!AF22,veriler!K22,veriler!AF22)),"") ->  | G22: =IFERROR(IF(C22>0,veriler!AG22,0),"") ->  | H22: =IFERROR(IF(C22>0,veriler!AO22,0),"") -> 0 | I22: =IFERROR(IF(C22>0,veriler!AL22,0),"") -> 0 | J22: =IFERROR(IF(C22>0,IF(veriler!BI22>0,veriler!BI22,0)),0) -> 0 | L22: =IF(C22>0,veriler!BF22,0) ->  | M22: =IF(C22>0,veriler!BG22,0) ->  | N22: 0 | O22: =IF(C22>0,veriler!H22,0) -> 0 | P22: =IF(C22>0,veriler!V22,0) -> 0 | Q22: =IF(C22>0,veriler!W22,0) -> 0 | R22: =IF(C22>0,veriler!X22,0) -> 0 | S22: =IF(C22>0,veriler!Y22,0) -> 0 | U22: 0 | V22: =IF(C22>0,veriler!Z22,0) -> 0 | W22: =IF(C22>0,veriler!AA22,0) -> 0 | X22: =IF(C22>0,IF(veriler!BJ22>0,veriler!BJ22,0)) -> 0 | Y22: =IF(C22>0,IF(veriler!BK22>0,veriler!BK22,0)) -> 0 | Z22: =ANASAYFA!$B$21 -> 20.44854 | AA22: 0 | AB22: 0 | AC22: =ANASAYFA!$B$25 -> 25.560675 | AD22: 0 | AE22: =ANASAYFA!$B$26 -> 21.470967 | AF22: 0 | AG22: =ANASAYFA!$B$27 -> 23.515821 | AH22: 0 | AI22: 0
B23: =IF(C23="",,COUNTIF($B$5:B22,">0")+1) -> 0 | C23: =IF(AO23>0,veriler!C23,"") ->  | D23: =IF(C23>0,CONCATENATE(veriler!F23,"(",veriler!E23,")"),"") -> () | E23: =IF(C23>0,veriler!G23,"") -> 0 | F23: =IFERROR(IF(C23>0,IF(veriler!K23<veriler!AF23,veriler!K23,veriler!AF23)),"") ->  | G23: =IFERROR(IF(C23>0,veriler!AG23,0),"") ->  | H23: =IFERROR(IF(C23>0,veriler!AO23,0),"") -> 0 | I23: =IFERROR(IF(C23>0,veriler!AL23,0),"") -> 0 | J23: =IFERROR(IF(C23>0,IF(veriler!BI23>0,veriler!BI23,0)),0) -> 0 | L23: =IF(C23>0,veriler!BF23,0) ->  | M23: =IF(C23>0,veriler!BG23,0) ->  | N23: 0 | O23: =IF(C23>0,veriler!H23,0) -> 0 | P23: =IF(C23>0,veriler!V23,0) -> 0 | Q23: =IF(C23>0,veriler!W23,0) -> 0 | R23: =IF(C23>0,veriler!X23,0) -> 0 | S23: =IF(C23>0,veriler!Y23,0) -> 0 | U23: 0 | V23: =IF(C23>0,veriler!Z23,0) -> 0 | W23: =IF(C23>0,veriler!AA23,0) -> 0 | X23: =IF(C23>0,IF(veriler!BJ23>0,veriler!BJ23,0)) -> 0 | Y23: =IF(C23>0,IF(veriler!BK23>0,veriler!BK23,0)) -> 0 | Z23: =ANASAYFA!$B$21 -> 20.44854 | AA23: 0 | AB23: 0 | AC23: =ANASAYFA!$B$25 -> 25.560675 | AD23: 0 | AE23: =ANASAYFA!$B$26 -> 21.470967 | AF23: 0 | AG23: =ANASAYFA!$B$27 -> 23.515821 | AH23: 0 | AI23: 0
B24: =IF(C24="",,COUNTIF($B$5:B23,">0")+1) -> 0 | C24: =IF(AO24>0,veriler!C24,"") ->  | D24: =IF(C24>0,CONCATENATE(veriler!F24,"(",veriler!E24,")"),"") -> () | E24: =IF(C24>0,veriler!G24,"") -> 0 | F24: =IFERROR(IF(C24>0,IF(veriler!K24<veriler!AF24,veriler!K24,veriler!AF24)),"") ->  | G24: =IFERROR(IF(C24>0,veriler!AG24,0),"") ->  | H24: =IFERROR(IF(C24>0,veriler!AO24,0),"") -> 0 | I24: =IFERROR(IF(C24>0,veriler!AL24,0),"") -> 0 | J24: =IFERROR(IF(C24>0,IF(veriler!BI24>0,veriler!BI24,0)),0) -> 0 | L24: =IF(C24>0,veriler!BF24,0) ->  | M24: =IF(C24>0,veriler!BG24,0) ->  | N24: 0 | O24: =IF(C24>0,veriler!H24,0) -> 0 | P24: =IF(C24>0,veriler!V24,0) -> 0 | Q24: =IF(C24>0,veriler!W24,0) -> 0 | R24: =IF(C24>0,veriler!X24,0) -> 0 | S24: =IF(C24>0,veriler!Y24,0) -> 0 | U24: 0 | V24: =IF(C24>0,veriler!Z24,0) -> 0 | W24: =IF(C24>0,veriler!AA24,0) -> 0 | X24: =IF(C24>0,IF(veriler!BJ24>0,veriler!BJ24,0)) -> 0 | Y24: =IF(C24>0,IF(veriler!BK24>0,veriler!BK24,0)) -> 0 | Z24: =ANASAYFA!$B$21 -> 20.44854 | AA24: 0 | AB24: 0 | AC24: =ANASAYFA!$B$25 -> 25.560675 | AD24: 0 | AE24: =ANASAYFA!$B$26 -> 21.470967 | AF24: 0 | AG24: =ANASAYFA!$B$27 -> 23.515821 | AH24: 0 | AI24: 0
B25: =IF(C25="",,COUNTIF($B$5:B24,">0")+1) -> 0 | C25: =IF(AO25>0,veriler!C25,"") ->  | D25: =IF(C25>0,CONCATENATE(veriler!F25,"(",veriler!E25,")"),"") -> () | E25: =IF(C25>0,veriler!G25,"") -> 0 | F25: =IFERROR(IF(C25>0,IF(veriler!K25<veriler!AF25,veriler!K25,veriler!AF25)),"") ->  | G25: =IFERROR(IF(C25>0,veriler!AG25,0),"") ->  | H25: =IFERROR(IF(C25>0,veriler!AO25,0),"") -> 0 | I25: =IFERROR(IF(C25>0,veriler!AL25,0),"") -> 0 | J25: =IFERROR(IF(C25>0,IF(veriler!BI25>0,veriler!BI25,0)),0) -> 0 | L25: =IF(C25>0,veriler!BF25,0) ->  | M25: =IF(C25>0,veriler!BG25,0) ->  | N25: 0 | O25: =IF(C25>0,veriler!H25,0) -> 0 | P25: =IF(C25>0,veriler!V25,0) -> 0 | Q25: =IF(C25>0,veriler!W25,0) -> 0 | R25: =IF(C25>0,veriler!X25,0) -> 0 | S25: =IF(C25>0,veriler!Y25,0) -> 0 | U25: 0 | V25: =IF(C25>0,veriler!Z25,0) -> 0 | W25: =IF(C25>0,veriler!AA25,0) -> 0 | X25: =IF(C25>0,IF(veriler!BJ25>0,veriler!BJ25,0)) -> 0 | Y25: =IF(C25>0,IF(veriler!BK25>0,veriler!BK25,0)) -> 0 | Z25: =ANASAYFA!$B$21 -> 20.44854 | AA25: 0 | AB25: 0 | AC25: =ANASAYFA!$B$25 -> 25.560675 | AD25: 0 | AE25: =ANASAYFA!$B$26 -> 21.470967 | AF25: 0 | AG25: =ANASAYFA!$B$27 -> 23.515821 | AH25: 0 | AI25: 0
B26: =IF(C26="",,COUNTIF($B$5:B25,">0")+1) -> 0 | C26: =IF(AO26>0,veriler!C26,"") ->  | D26: =IF(C26>0,CONCATENATE(veriler!F26,"(",veriler!E26,")"),"") -> () | E26: =IF(C26>0,veriler!G26,"") -> 0 | F26: =IFERROR(IF(C26>0,IF(veriler!K26<veriler!AF26,veriler!K26,veriler!AF26)),"") ->  | G26: =IFERROR(IF(C26>0,veriler!AG26,0),"") ->  | H26: =IFERROR(IF(C26>0,veriler!AO26,0),"") -> 0 | I26: =IFERROR(IF(C26>0,veriler!AL26,0),"") -> 0 | J26: =IFERROR(IF(C26>0,IF(veriler!BI26>0,veriler!BI26,0)),0) -> 0 | L26: =IF(C26>0,veriler!BF26,0) ->  | M26: =IF(C26>0,veriler!BG26,0) ->  | N26: 0 | O26: =IF(C26>0,veriler!H26,0) -> 0 | P26: =IF(C26>0,veriler!V26,0) -> 0 | Q26: =IF(C26>0,veriler!W26,0) -> 0 | R26: =IF(C26>0,veriler!X26,0) -> 0 | S26: =IF(C26>0,veriler!Y26,0) -> 0 | U26: 0 | V26: =IF(C26>0,veriler!Z26,0) -> 0 | W26: =IF(C26>0,veriler!AA26,0) -> 0 | X26: =IF(C26>0,IF(veriler!BJ26>0,veriler!BJ26,0)) -> 0 | Y26: =IF(C26>0,IF(veriler!BK26>0,veriler!BK26,0)) -> 0 | Z26: =ANASAYFA!$B$21 -> 20.44854 | AA26: 0 | AB26: 0 | AC26: =ANASAYFA!$B$25 -> 25.560675 | AD26: 0 | AE26: =ANASAYFA!$B$26 -> 21.470967 | AF26: 0 | AG26: =ANASAYFA!$B$27 -> 23.515821 | AH26: 0 | AI26: 0
B27: =IF(C27="",,COUNTIF($B$5:B26,">0")+1) -> 0 | C27: =IF(AO27>0,veriler!C27,"") ->  | D27: =IF(C27>0,CONCATENATE(veriler!F27,"(",veriler!E27,")"),"") -> () | E27: =IF(C27>0,veriler!G27,"") -> 0 | F27: =IFERROR(IF(C27>0,IF(veriler!K27<veriler!AF27,veriler!K27,veriler!AF27)),"") ->  | G27: =IFERROR(IF(C27>0,veriler!AG27,0),"") ->  | H27: =IFERROR(IF(C27>0,veriler!AO27,0),"") -> 0 | I27: =IFERROR(IF(C27>0,veriler!AL27,0),"") -> 0 | J27: =IFERROR(IF(C27>0,IF(veriler!BI27>0,veriler!BI27,0)),0) -> 0 | L27: =IF(C27>0,veriler!BF27,0) ->  | M27: =IF(C27>0,veriler!BG27,0) ->  | N27: 0 | O27: =IF(C27>0,veriler!H27,0) -> 0 | P27: =IF(C27>0,veriler!V27,0) -> 0 | Q27: =IF(C27>0,veriler!W27,0) -> 0 | R27: =IF(C27>0,veriler!X27,0) -> 0 | S27: =IF(C27>0,veriler!Y27,0) -> 0 | U27: 0 | V27: =IF(C27>0,veriler!Z27,0) -> 0 | W27: =IF(C27>0,veriler!AA27,0) -> 0 | X27: =IF(C27>0,IF(veriler!BJ27>0,veriler!BJ27,0)) -> 0 | Y27: =IF(C27>0,IF(veriler!BK27>0,veriler!BK27,0)) -> 0 | Z27: =ANASAYFA!$B$21 -> 20.44854 | AA27: 0 | AB27: 0 | AC27: =ANASAYFA!$B$25 -> 25.560675 | AD27: 0 | AE27: =ANASAYFA!$B$26 -> 21.470967 | AF27: 0 | AG27: =ANASAYFA!$B$27 -> 23.515821 | AH27: 0 | AI27: 0
B28: =IF(C28="",,COUNTIF($B$5:B27,">0")+1) -> 0 | C28: =IF(AO28>0,veriler!C28,"") ->  | D28: =IF(C28>0,CONCATENATE(veriler!F28,"(",veriler!E28,")"),"") -> () | E28: =IF(C28>0,veriler!G28,"") -> 0 | F28: =IFERROR(IF(C28>0,IF(veriler!K28<veriler!AF28,veriler!K28,veriler!AF28)),"") ->  | G28: =IFERROR(IF(C28>0,veriler!AG28,0),"") ->  | H28: =IFERROR(IF(C28>0,veriler!AO28,0),"") -> 0 | I28: =IFERROR(IF(C28>0,veriler!AL28,0),"") -> 0 | J28: =IFERROR(IF(C28>0,IF(veriler!BI28>0,veriler!BI28,0)),0) -> 0 | L28: =IF(C28>0,veriler!BF28,0) ->  | M28: =IF(C28>0,veriler!BG28,0) ->  | N28: 0 | O28: =IF(C28>0,veriler!H28,0) -> 0 | P28: =IF(C28>0,veriler!V28,0) -> 0 | Q28: =IF(C28>0,veriler!W28,0) -> 0 | R28: =IF(C28>0,veriler!X28,0) -> 0 | S28: =IF(C28>0,veriler!Y28,0) -> 0 | U28: 0 | V28: =IF(C28>0,veriler!Z28,0) -> 0 | W28: =IF(C28>0,veriler!AA28,0) -> 0 | X28: =IF(C28>0,IF(veriler!BJ28>0,veriler!BJ28,0)) -> 0 | Y28: =IF(C28>0,IF(veriler!BK28>0,veriler!BK28,0)) -> 0 | Z28: =ANASAYFA!$B$21 -> 20.44854 | AA28: 0 | AB28: 0 | AC28: =ANASAYFA!$B$25 -> 25.560675 | AD28: 0 | AE28: =ANASAYFA!$B$26 -> 21.470967 | AF28: 0 | AG28: =ANASAYFA!$B$27 -> 23.515821 | AH28: 0 | AI28: 0
B29: =IF(C29="",,COUNTIF($B$5:B28,">0")+1) -> 0 | C29: =IF(AO29>0,veriler!C29,"") ->  | D29: =IF(C29>0,CONCATENATE(veriler!F29,"(",veriler!E29,")"),"") -> () | E29: =IF(C29>0,veriler!G29,"") -> 0 | F29: =IFERROR(IF(C29>0,IF(veriler!K29<veriler!AF29,veriler!K29,veriler!AF29)),"") ->  | G29: =IFERROR(IF(C29>0,veriler!AG29,0),"") ->  | H29: =IFERROR(IF(C29>0,veriler!AO29,0),"") -> 0 | I29: =IFERROR(IF(C29>0,veriler!AL29,0),"") -> 0 | J29: =IFERROR(IF(C29>0,IF(veriler!BI29>0,veriler!BI29,0)),0) -> 0 | L29: =IF(C29>0,veriler!BF29,0) ->  | M29: =IF(C29>0,veriler!BG29,0) ->  | N29: 0 | O29: =IF(C29>0,veriler!H29,0) -> 0 | P29: =IF(C29>0,veriler!V29,0) -> 0 | Q29: =IF(C29>0,veriler!W29,0) -> 0 | R29: =IF(C29>0,veriler!X29,0) -> 0 | S29: =IF(C29>0,veriler!Y29,0) -> 0 | U29: 0 | V29: =IF(C29>0,veriler!Z29,0) -> 0 | W29: =IF(C29>0,veriler!AA29,0) -> 0 | X29: =IF(C29>0,IF(veriler!BJ29>0,veriler!BJ29,0)) -> 0 | Y29: =IF(C29>0,IF(veriler!BK29>0,veriler!BK29,0)) -> 0 | Z29: =ANASAYFA!$B$21 -> 20.44854 | AA29: 0 | AB29: 0 | AC29: =ANASAYFA!$B$25 -> 25.560675 | AD29: 0 | AE29: =ANASAYFA!$B$26 -> 21.470967 | AF29: 0 | AG29: =ANASAYFA!$B$27 -> 23.515821 | AH29: 0 | AI29: 0
B30: =IF(C30="",,COUNTIF($B$5:B29,">0")+1) -> 0 | C30: =IF(AO30>0,veriler!C30,"") ->  | D30: =IF(C30>0,CONCATENATE(veriler!F30,"(",veriler!E30,")"),"") -> () | E30: =IF(C30>0,veriler!G30,"") -> 0 | F30: =IFERROR(IF(C30>0,IF(veriler!K30<veriler!AF30,veriler!K30,veriler!AF30)),"") ->  | G30: =IFERROR(IF(C30>0,veriler!AG30,0),"") ->  | H30: =IFERROR(IF(C30>0,veriler!AO30,0),"") -> 0 | I30: =IFERROR(IF(C30>0,veriler!AL30,0),"") -> 0 | J30: =IFERROR(IF(C30>0,IF(veriler!BI30>0,veriler!BI30,0)),0) -> 0 | L30: =IF(C30>0,veriler!BF30,0) ->  | M30: =IF(C30>0,veriler!BG30,0) ->  | N30: 0 | O30: =IF(C30>0,veriler!H30,0) -> 0 | P30: =IF(C30>0,veriler!V30,0) -> 0 | Q30: =IF(C30>0,veriler!W30,0) -> 0 | R30: =IF(C30>0,veriler!X30,0) -> 0 | S30: =IF(C30>0,veriler!Y30,0) -> 0 | U30: 0 | V30: =IF(C30>0,veriler!Z30,0) -> 0 | W30: =IF(C30>0,veriler!AA30,0) -> 0 | X30: =IF(C30>0,IF(veriler!BJ30>0,veriler!BJ30,0)) -> 0 | Y30: =IF(C30>0,IF(veriler!BK30>0,veriler!BK30,0)) -> 0 | Z30: =ANASAYFA!$B$21 -> 20.44854 | AA30: 0 | AB30: 0 | AC30: =ANASAYFA!$B$25 -> 25.560675 | AD30: 0 | AE30: =ANASAYFA!$B$26 -> 21.470967 | AF30: 0 | AG30: =ANASAYFA!$B$27 -> 23.515821 | AH30: 0 | AI30: 0
B31: =IF(C31="",,COUNTIF($B$5:B30,">0")+1) -> 0 | C31: =IF(AO31>0,veriler!C31,"") ->  | D31: =IF(C31>0,CONCATENATE(veriler!F31,"(",veriler!E31,")"),"") -> () | E31: =IF(C31>0,veriler!G31,"") -> 0 | F31: =IFERROR(IF(C31>0,IF(veriler!K31<veriler!AF31,veriler!K31,veriler!AF31)),"") ->  | G31: =IFERROR(IF(C31>0,veriler!AG31,0),"") ->  | H31: =IFERROR(IF(C31>0,veriler!AO31,0),"") -> 0 | I31: =IFERROR(IF(C31>0,veriler!AL31,0),"") -> 0 | J31: =IFERROR(IF(C31>0,IF(veriler!BI31>0,veriler!BI31,0)),0) -> 0 | L31: =IF(C31>0,veriler!BF31,0) ->  | M31: =IF(C31>0,veriler!BG31,0) ->  | N31: 0 | O31: =IF(C31>0,veriler!H31,0) -> 0 | P31: =IF(C31>0,veriler!V31,0) -> 0 | Q31: =IF(C31>0,veriler!W31,0) -> 0 | R31: =IF(C31>0,veriler!X31,0) -> 0 | S31: =IF(C31>0,veriler!Y31,0) -> 0 | U31: 0 | V31: =IF(C31>0,veriler!Z31,0) -> 0 | W31: =IF(C31>0,veriler!AA31,0) -> 0 | X31: =IF(C31>0,IF(veriler!BJ31>0,veriler!BJ31,0)) -> 0 | Y31: =IF(C31>0,IF(veriler!BK31>0,veriler!BK31,0)) -> 0 | Z31: =ANASAYFA!$B$21 -> 20.44854 | AA31: 0 | AB31: 0 | AC31: =ANASAYFA!$B$25 -> 25.560675 | AD31: 0 | AE31: =ANASAYFA!$B$26 -> 21.470967 | AF31: 0 | AG31: =ANASAYFA!$B$27 -> 23.515821 | AH31: 0 | AI31: 0
B32: =IF(C32="",,COUNTIF($B$5:B31,">0")+1) -> 0 | C32: =IF(AO32>0,veriler!C32,"") ->  | D32: =IF(C32>0,CONCATENATE(veriler!F32,"(",veriler!E32,")"),"") -> () | E32: =IF(C32>0,veriler!G32,"") -> 0 | F32: =IFERROR(IF(C32>0,IF(veriler!K32<veriler!AF32,veriler!K32,veriler!AF32)),"") ->  | G32: =IFERROR(IF(C32>0,veriler!AG32,0),"") ->  | H32: =IFERROR(IF(C32>0,veriler!AO32,0),"") -> 0 | I32: =IFERROR(IF(C32>0,veriler!AL32,0),"") -> 0 | J32: =IFERROR(IF(C32>0,IF(veriler!BI32>0,veriler!BI32,0)),0) -> 0 | L32: =IF(C32>0,veriler!BF32,0) ->  | M32: =IF(C32>0,veriler!BG32,0) ->  | N32: 0 | O32: =IF(C32>0,veriler!H32,0) -> 0 | P32: =IF(C32>0,veriler!V32,0) -> 0 | Q32: =IF(C32>0,veriler!W32,0) -> 0 | R32: =IF(C32>0,veriler!X32,0) -> 0 | S32: =IF(C32>0,veriler!Y32,0) -> 0 | U32: 0 | V32: =IF(C32>0,veriler!Z32,0) -> 0 | W32: =IF(C32>0,veriler!AA32,0) -> 0 | X32: =IF(C32>0,IF(veriler!BJ32>0,veriler!BJ32,0)) -> 0 | Y32: =IF(C32>0,IF(veriler!BK32>0,veriler!BK32,0)) -> 0 | Z32: =ANASAYFA!$B$21 -> 20.44854 | AA32: 0 | AB32: 0 | AC32: =ANASAYFA!$B$25 -> 25.560675 | AD32: 0 | AE32: =ANASAYFA!$B$26 -> 21.470967 | AF32: 0 | AG32: =ANASAYFA!$B$27 -> 23.515821 | AH32: 0 | AI32: 0
B33: =IF(C33="",,COUNTIF($B$5:B32,">0")+1) -> 0 | C33: =IF(AO33>0,veriler!C33,"") ->  | D33: =IF(C33>0,CONCATENATE(veriler!F33,"(",veriler!E33,")"),"") -> () | E33: =IF(C33>0,veriler!G33,"") -> 0 | F33: =IFERROR(IF(C33>0,IF(veriler!K33<veriler!AF33,veriler!K33,veriler!AF33)),"") ->  | G33: =IFERROR(IF(C33>0,veriler!AG33,0),"") ->  | H33: =IFERROR(IF(C33>0,veriler!AO33,0),"") -> 0 | I33: =IFERROR(IF(C33>0,veriler!AL33,0),"") -> 0 | J33: =IFERROR(IF(C33>0,IF(veriler!BI33>0,veriler!BI33,0)),0) -> 0 | L33: =IF(C33>0,veriler!BF33,0) ->  | M33: =IF(C33>0,veriler!BG33,0) ->  | N33: 0 | O33: =IF(C33>0,veriler!H33,0) -> 0 | P33: =IF(C33>0,veriler!V33,0) -> 0 | Q33: =IF(C33>0,veriler!W33,0) -> 0 | R33: =IF(C33>0,veriler!X33,0) -> 0 | S33: =IF(C33>0,veriler!Y33,0) -> 0 | U33: 0 | V33: =IF(C33>0,veriler!Z33,0) -> 0 | W33: =IF(C33>0,veriler!AA33,0) -> 0 | X33: =IF(C33>0,IF(veriler!BJ33>0,veriler!BJ33,0)) -> 0 | Y33: =IF(C33>0,IF(veriler!BK33>0,veriler!BK33,0)) -> 0 | Z33: =ANASAYFA!$B$21 -> 20.44854 | AA33: 0 | AB33: 0 | AC33: =ANASAYFA!$B$25 -> 25.560675 | AD33: 0 | AE33: =ANASAYFA!$B$26 -> 21.470967 | AF33: 0 | AG33: =ANASAYFA!$B$27 -> 23.515821 | AH33: 0 | AI33: 0
B34: =IF(C34="",,COUNTIF($B$5:B33,">0")+1) -> 0 | C34: =IF(AO34>0,veriler!C34,"") ->  | D34: =IF(C34>0,CONCATENATE(veriler!F34,"(",veriler!E34,")"),"") -> () | E34: =IF(C34>0,veriler!G34,"") -> 0 | F34: =IFERROR(IF(C34>0,IF(veriler!K34<veriler!AF34,veriler!K34,veriler!AF34)),"") ->  | G34: =IFERROR(IF(C34>0,veriler!AG34,0),"") ->  | H34: =IFERROR(IF(C34>0,veriler!AO34,0),"") -> 0 | I34: =IFERROR(IF(C34>0,veriler!AL34,0),"") -> 0 | J34: =IFERROR(IF(C34>0,IF(veriler!BI34>0,veriler!BI34,0)),0) -> 0 | L34: =IF(C34>0,veriler!BF34,0) ->  | M34: =IF(C34>0,veriler!BG34,0) ->  | N34: 0 | O34: =IF(C34>0,veriler!H34,0) -> 0 | P34: =IF(C34>0,veriler!V34,0) -> 0 | Q34: =IF(C34>0,veriler!W34,0) -> 0 | R34: =IF(C34>0,veriler!X34,0) -> 0 | S34: =IF(C34>0,veriler!Y34,0) -> 0 | U34: 0 | V34: =IF(C34>0,veriler!Z34,0) -> 0 | W34: =IF(C34>0,veriler!AA34,0) -> 0 | X34: =IF(C34>0,IF(veriler!BJ34>0,veriler!BJ34,0)) -> 0 | Y34: =IF(C34>0,IF(veriler!BK34>0,veriler!BK34,0)) -> 0 | Z34: =ANASAYFA!$B$21 -> 20.44854 | AA34: 0 | AB34: 0 | AC34: =ANASAYFA!$B$25 -> 25.560675 | AD34: 0 | AE34: =ANASAYFA!$B$26 -> 21.470967 | AF34: 0 | AG34: =ANASAYFA!$B$27 -> 23.515821 | AH34: 0 | AI34: 0
B36: TC | R36: TC
B37: =ANASAYFA!L3 -> ULUBORLU KAYMAKAMLIĞI | R37: =ANASAYFA!L3 -> ULUBORLU KAYMAKAMLIĞI
B38: =ANASAYFA!L6 -> Uluborlu Mesleki Ve Teknik Anadolu Lisesi Müdürlüğü | R38: =ANASAYFA!L5 -> ULUBORLU İLÇE MİLLİ EĞİTİM MÜDÜRLÜĞÜ
B40: Sayı : | C40: 82452652-20-E.476807 | O40: 2020-01-08 | R40: Sayı : | S40: 84303886- 020/ | AI40: …./…/2020
B41: Konu: | C41: Ek Ders Ücret Onayı | R41: Konu: | S41: Ek Ders Ücret Onayı
B44: ULUBORLU İLÇE MİLLİ EĞİTİM MÜDÜRLÜĞÜNE | R44: KAYMAKAMLIK MAKAMINA
R45: ULUBORLU
B47: =" "&B38&"nde, ücretli ders okutan Yönetici ve öğretmenlerin durumu yukarıya çıkartılmıştır. Bilgilerinizi ve gerekli olurun verilmesini arz ederim." -> Uluborlu Mesleki Ve Teknik Anadolu Lisesi Müdürlüğünde, ücretli ders okutan Yönetici ve öğretmenlerin durumu yukarıya çıkartılmıştır. Bilgilerinizi ve gerekli olurun verilmesini arz ederim. | R47: =CONCATENATE(" ",AR2," ",AR3," ",AR5) -> İlçemiz Uluborlu Mesleki Ve Teknik Anadolu Lisesi ücretli ders okutan yönetici ve öğretmenlerin,durumu yukarıda çizelge halinde sunulmuştur. 439 sayılı Kanun ve MEB Yönetici ve Öğretmenlerin ders ve ek Ders saatlerine ilişkin esaslar doğrultusunda okutulan ücretli derslerin, ek ders ücreti olarak ödenmesine müsadelerinize arz ederim
O53: =ANASAYFA!B35 -> Ruhi İLHAN | AI53: =ANASAYFA!B36 -> Mustafa KABASAKAL
O54: =ANASAYFA!C35 -> Okul Müdürü | AI54: =ANASAYFA!C36 -> İlçe Milli Eğitim Müdürü
R58: …../…../2020
R59: UYGUNDUR
R61: =ANASAYFA!B37 -> Şahin DEMİR
R62: =ANASAYFA!C37 -> Kaymakam

Sheet Pansiyon
B1: =CONCATENATE(ANASAYFA!B5," ",ANASAYFA!B6,"EĞİTİM ÖĞRETİM YILI"," ",ANASAYFA!B7,"."," ","DÖNEM"," ","PANSİYONDA NÖBET TUTAN ÖĞRETMENLERİN EK DERS ÜCRETLERİNİ GÖSTERİR ÜCRET ONAY ÇİZELGESİ ") -> ULUBORLU MESLEKİ VE TEKNİK ANADOLU LİSESİ 2019-2020EĞİTİM ÖĞRETİM YILI 1. DÖNEM PANSİYONDA NÖBET TUTAN ÖĞRETMENLERİN EK DERS ÜCRETLERİNİ GÖSTERİR ÜCRET ONAY ÇİZELGESİ
B2: S. No | C2: Adı ve Soyadı | D2: Görevi ve Branşı | E2: Belletmenlik Nöbet Saati | F2: Belletmenlik Bürüt Ücret Tutarı | G2: Nöbet Başına Ödenecek Bürüt Ücret Tutarı | H2: Ücretli Ders Görevinin Başladığı Tarih | I2: =CONCATENATE("Mali Yıl :",ANASAYFA!B8," ","Ay : ",ANASAYFA!B9) -> Mali Yıl :2020 Ay : OCAK
I3: Açıklamalar
B6: =IF(C6="",,ROUNDUP(ROWS($B$6:B6)/1,0)) -> 0 | C6: =IF(E6>0,veriler!C5,"") ->  | D6: =IF(C6>0,CONCATENATE(veriler!F5,veriler!BV5),"") -> Müdür | E6: 0 | F6: =ANASAYFA!$B$21 -> 20.44854 | G6: =E6*F6 -> 0 | H6: 2019-09-08
B7: =IF(C7="",,COUNTIF($B$6:B6,">0")+1) -> 0 | C7: =IF(E7>0,veriler!C6,"") ->  | D7: =IF(C7>0,CONCATENATE(veriler!F6,veriler!BV6),"") -> Müdür Baş Yard | E7: 0 | F7: =ANASAYFA!$B$21 -> 20.44854 | G7: 0 | H7: 2019-09-08
B8: =IF(C8="",,COUNTIF($B$6:B7,">0")+1) -> 0 | C8: =IF(E8>0,veriler!C7,"") ->  | D8: =IF(C8>0,CONCATENATE(veriler!F7,veriler!BV7),"") -> Müdür Yardımcısı | E8: 0 | F8: =ANASAYFA!$B$21 -> 20.44854 | G8: 0 | H8: 2019-09-08
B9: =IF(C9="",,COUNTIF($B$6:B8,">0")+1) -> 0 | C9: =IF(E9>0,veriler!C8,"") ->  | D9: =IF(C9>0,CONCATENATE(veriler!F8,veriler!BV8),"") -> Müdür Yardımcısı | E9: 0 | F9: =ANASAYFA!$B$21 -> 20.44854 | G9: 0 | H9: 2019-09-08
B10: =IF(C10="",,COUNTIF($B$6:B9,">0")+1) -> 1 | C10: =IF(E10>0,veriler!C9,"") -> MUAMMER KAYAKUŞ | D10: =IF(C10>0,CONCATENATE(veriler!F9,veriler!BV9),"") -> Atölye/Lab Şefi | E10: 7 | F10: =ANASAYFA!$B$21 -> 20.44854 | G10: 143.13978 | H10: 2019-09-08
B11: =IF(C11="",,COUNTIF($B$6:B10,">0")+1) -> 2 | C11: =IF(E11>0,veriler!C10,"") -> MEHMET GÜLAY | D11: =IF(C11>0,CONCATENATE(veriler!F10,veriler!BV10),"") -> Alan Şefi | E11: 7 | F11: =ANASAYFA!$B$21 -> 20.44854 | G11: 143.13978 | H11: 2019-09-08
B12: =IF(C12="",,COUNTIF($B$6:B11,">0")+1) -> 0 | C12: =IF(E12>0,veriler!C11,"") ->  | D12: =IF(C12>0,CONCATENATE(veriler!F11,veriler!BV11),"") -> Öğretmen | E12: 0 | F12: =ANASAYFA!$B$21 -> 20.44854 | G12: 0 | H12: 2019-09-08
B13: =IF(C13="",,COUNTIF($B$6:B12,">0")+1) -> 0 | C13: =IF(E13>0,veriler!C12,"") ->  | D13: =IF(C13>0,CONCATENATE(veriler!F12,veriler!BV12),"") -> Öğretmen | E13: 0 | F13: =ANASAYFA!$B$21 -> 20.44854 | G13: 0 | H13: 2019-09-08
B14: =IF(C14="",,COUNTIF($B$6:B13,">0")+1) -> 0 | C14: =IF(E14>0,veriler!C13,"") ->  | D14: =IF(C14>0,CONCATENATE(veriler!F13,veriler!BV13),"") -> Öğretmen | E14: 0 | F14: =ANASAYFA!$B$21 -> 20.44854 | G14: 0 | H14: 2019-09-08
B15: =IF(C15="",,COUNTIF($B$6:B14,">0")+1) -> 0 | C15: =IF(E15>0,veriler!C14,"") ->  | D15: =IF(C15>0,CONCATENATE(veriler!F14,veriler!BV14),"") -> Öğretmen | E15: 0 | F15: =ANASAYFA!$B$21 -> 20.44854 | G15: 0 | H15: 2019-09-08
B16: =IF(C16="",,COUNTIF($B$6:B15,">0")+1) -> 0 | C16: =IF(E16>0,veriler!C15,"") ->  | D16: =IF(C16>0,CONCATENATE(veriler!F15,veriler!BV15),"") -> Öğretmen | E16: 0 | F16: =ANASAYFA!$B$21 -> 20.44854 | G16: 0 | H16: 2019-09-08
B17: =IF(C17="",,COUNTIF($B$6:B16,">0")+1) -> 0 | C17: =IF(E17>0,veriler!C16,"") ->  | D17: =IF(C17>0,CONCATENATE(veriler!F16,veriler!BV16),"") -> Atelye Öğretmeni | E17: 0 | F17: =ANASAYFA!$B$21 -> 20.44854 | G17: 0 | H17: 2019-09-08
B18: =IF(C18="",,COUNTIF($B$6:B17,">0")+1) -> 0 | C18: =IF(E18>0,veriler!C17,"") ->  | D18: =IF(C18>0,CONCATENATE(veriler!F17,veriler!BV17),"") -> Öğretmen | E18: 0 | F18: =ANASAYFA!$B$21 -> 20.44854 | G18: 0 | H18: 2019-09-08
B19: =IF(C19="",,COUNTIF($B$6:B18,">0")+1) -> 0 | C19: =IF(E19>0,veriler!C18,"") ->  | D19: =IF(C19>0,CONCATENATE(veriler!F18,veriler!BV18),"") -> Atelye Öğretmeni | E19: 0 | F19: =ANASAYFA!$B$21 -> 20.44854 | G19: 0 | H19: 2019-09-08
B20: =IF(C20="",,COUNTIF($B$6:B19,">0")+1) -> 0 | C20: =IF(E20>0,veriler!C19,"") ->  | D20: =IF(C20>0,CONCATENATE(veriler!F19,veriler!BV19),"") -> Ücretli Öğretmen | E20: 0 | F20: =ANASAYFA!$B$21 -> 20.44854 | G20: 0 | H20: 2019-09-08
B21: =IF(C21="",,COUNTIF($B$6:B20,">0")+1) -> 3 | C21: =IF(E21>0,veriler!C20,"") -> SONER DOĞANAY | D21: =IF(C21>0,CONCATENATE(veriler!F20,veriler!BV20),"") -> Sınıf Öğretmeni(Çakır Hasan Ortaokulu) | E21: 7 | F21: =ANASAYFA!$B$21 -> 20.44854 | G21: 143.13978 | H21: 2019-09-08
B22: =IF(C22="",,COUNTIF($B$6:B21,">0")+1) -> 0 | C22: =IF(E22>0,veriler!C21,"") ->  | D22: =IF(C22>0,CONCATENATE(veriler!F21,veriler!BV21),"") ->  | E22: 0 | F22: =ANASAYFA!$B$21 -> 20.44854 | G22: 0 | H22: 2019-09-08
B23: =IF(C23="",,COUNTIF($B$6:B22,">0")+1) -> 0 | C23: =IF(E23>0,veriler!C22,"") ->  | D23: =IF(C23>0,CONCATENATE(veriler!F22,veriler!BV22),"") ->  | E23: 0 | F23: =ANASAYFA!$B$21 -> 20.44854 | G23: 0 | H23: 2019-09-08
B24: =IF(C24="",,COUNTIF($B$6:B23,">0")+1) -> 0 | C24: =IF(E24>0,veriler!C23,"") ->  | D24: =IF(C24>0,CONCATENATE(veriler!F23,veriler!BV23),"") ->  | E24: 0 | F24: =ANASAYFA!$B$21 -> 20.44854 | G24: 0 | H24: 2019-09-08
B25: =IF(C25="",,COUNTIF($B$6:B24,">0")+1) -> 0 | C25: =IF(E25>0,veriler!C24,"") ->  | D25: =IF(C25>0,CONCATENATE(veriler!F24,veriler!BV24),"") ->  | E25: 0 | F25: =ANASAYFA!$B$21 -> 20.44854 | G25: 0 | H25: 2019-09-08
B26: =IF(C26="",,COUNTIF($B$6:B25,">0")+1) -> 0 | C26: =IF(E26>0,veriler!C25,"") ->  | D26: =IF(C26>0,CONCATENATE(veriler!F25,veriler!BV25),"") ->  | E26: 0 | F26: =ANASAYFA!$B$21 -> 20.44854 | G26: 0 | H26: 2019-09-08
B27: =IF(C27="",,COUNTIF($B$6:B26,">0")+1) -> 0 | C27: =IF(E27>0,veriler!C26,"") ->  | D27: =IF(C27>0,CONCATENATE(veriler!F26,veriler!BV26),"") ->  | E27: 0 | F27: =ANASAYFA!$B$21 -> 20.44854 | G27: 0 | H27: 2019-09-08
B28: =IF(C28="",,COUNTIF($B$6:B27,">0")+1) -> 0 | C28: =IF(E28>0,veriler!C27,"") ->  | D28: =IF(C28>0,CONCATENATE(veriler!F27,veriler!BV27),"") ->  | E28: 0 | F28: =ANASAYFA!$B$21 -> 20.44854 | G28: 0 | H28: 2019-09-08
B29: =IF(C29="",,COUNTIF($B$6:B28,">0")+1) -> 0 | C29: =IF(E29>0,veriler!C28,"") ->  | D29: =IF(C29>0,CONCATENATE(veriler!F28,veriler!BV28),"") ->  | E29: 0 | F29: =ANASAYFA!$B$21 -> 20.44854 | G29: 0 | H29: 2019-09-08
B30: =IF(C30="",,COUNTIF($B$6:B29,">0")+1) -> 0 | C30: =IF(E30>0,veriler!C29,"") ->  | D30: =IF(C30>0,CONCATENATE(veriler!F29,veriler!BV29),"") ->  | E30: 0 | F30: =ANASAYFA!$B$21 -> 20.44854 | G30: 0 | H30: 2019-09-08
B31: =IF(C31="",,COUNTIF($B$6:B30,">0")+1) -> 0 | C31: =IF(E31>0,veriler!C30,"") ->  | D31: =IF(C31>0,CONCATENATE(veriler!F30,veriler!BV30),"") ->  | E31: 0 | F31: =ANASAYFA!$B$21 -> 20.44854 | G31: 0 | H31: 2019-09-08
B32: =IF(C32="",,COUNTIF($B$6:B31,">0")+1) -> 0 | C32: =IF(E32>0,veriler!C31,"") ->  | D32: =IF(C32>0,CONCATENATE(veriler!F31,veriler!BV31),"") ->  | E32: 0 | F32: =ANASAYFA!$B$21 -> 20.44854 | G32: 0 | H32: 2019-09-08
B33: =IF(C33="",,COUNTIF($B$6:B32,">0")+1) -> 0 | C33: =IF(E33>0,veriler!C32,"") ->  | D33: =IF(C33>0,CONCATENATE(veriler!F32,veriler!BV32),"") ->  | E33: 0 | F33: =ANASAYFA!$B$21 -> 20.44854 | G33: 0 | H33: 2019-09-08
B34: =IF(C34="",,COUNTIF($B$6:B33,">0")+1) -> 0 | C34: =IF(E34>0,veriler!C33,"") ->  | D34: =IF(C34>0,CONCATENATE(veriler!F33,veriler!BV33),"") ->  | E34: 0 | F34: =ANASAYFA!$B$21 -> 20.44854 | G34: 0 | H34: 2019-09-08
B35: =IF(C35="",,COUNTIF($B$6:B34,">0")+1) -> 0 | C35: =IF(E35>0,veriler!C34,"") ->  | D35: =IF(C35>0,CONCATENATE(veriler!F34,veriler!BV34),"") ->  | E35: 0 | F35: =ANASAYFA!$B$21 -> 20.44854 | G35: 0 | H35: 2019-09-08
B37: T.C. | G37: T.C
B38: =ANASAYFA!L3 -> ULUBORLU KAYMAKAMLIĞI | G38: =ANASAYFA!L3 -> ULUBORLU KAYMAKAMLIĞI
B39: =ANASAYFA!L6 -> Uluborlu Mesleki Ve Teknik Anadolu Lisesi Müdürlüğü | G39: =ANASAYFA!L4 -> İLÇE MİLLİ EĞİTİM MÜDÜRLÜĞÜ
B41: Sayı: | C41: 82452652-20-E.476807 | E41: 2020-01-08 | G41: Sayı:84303886- 020/ | I41: …./01/2020
B42: Konu: | C42: Pansiyon Ücret Onayı | G42: Konu: Pansiyon Ücret Onayı
B44: ULUBORLU İLÇE MİLLİ EĞİTİM MÜDÜRLÜĞÜNE | G44: ULUBORLU KAYMAKAMLIK MAKAMINA
B46: Uluborlu Mesleki ve Teknik Anadolu Lisesi Müdürlüğü pansiyonunda nöbet tutan öğretmenlere ait pansiyon ücret durumu yukarıya çıkarılmıştır. Bilgilerinizi ve gerekli Kaymakamlık olurunun alınmasını arz ederim. | G46: Okulumuz Uluborlu Mesleki ve Teknik Anadolu Lisesi Müdürlüğü pansiyonunda nöbet tutan öğretmenlerin durumu yukarıya çizelge halinde sunulmuştur.Milli Eğitim Bakanlığı Ders ve Ekders saatlerine İlişkin Kararın "Belleticilik görevi" başlıklı 13.maddesi hükümlerine göre ve 25 Ağustos 2017 tarih ve 30165 sayılı Resmi Gazete'de yayımlanan "Kamu Görevlilerinin Geneline ve Hizmet Kollarına İlişkin Toplu Sözleşme" başlıklı kımındaki Belleticilik görevi verilen öğretmenlerin ekders ücreti başlıklı 12.maddesi doğrultusunda tutulan ücretli nöbetlerin ,ek ders ücreti olarak ödenmesini tasviplerinize arz ederim.
E55: =ANASAYFA!B35 -> Ruhi İLHAN | I55: =ANASAYFA!B36 -> Mustafa KABASAKAL
E56: =ANASAYFA!C35 -> Okul Müdürü | I56: =ANASAYFA!C36 -> İlçe Milli Eğitim Müdürü
G58: …./01/2020
G59: UYGUNDUR
G61: =ANASAYFA!B37 -> Şahin DEMİR
G62: =ANASAYFA!C37 -> Kaymakam

Sheet işletme
B1: =CONCATENATE(ANASAYFA!B5," ","MÜDÜRLÜĞÜ"," ",ANASAYFA!B6," ","ÖĞRETİM YILI"," ",ANASAYFA!B7,".","DÖNEM DÖNEM ÖĞRETMENLERİN İŞLETMELERDE MESLEKİ EĞİTİMİ EK DERS ÜCRETLERİNİ GÖSTERİR ÇİZELGE") -> ULUBORLU MESLEKİ VE TEKNİK ANADOLU LİSESİ MÜDÜRLÜĞÜ 2019-2020 ÖĞRETİM YILI 1.DÖNEM DÖNEM ÖĞRETMENLERİN İŞLETMELERDE MESLEKİ EĞİTİMİ EK DERS ÜCRETLERİNİ GÖSTERİR ÇİZELGE
B2: S.N | C2: Adı Soyadı | D2: Görevi ve Branşı | E2: Haftalık Okutacağı Derslerin | H2: Öğrencilerin Staj Yaptığı İşletmeler | J2: Ders Dışı Egzersiz Görevi Ücreti Saati | K2: İşletmelerde Haftalık Ücretli Ders Saati Toplamı | L2: İşletmelerde Ücretli Dersin Saat Başı Bürüt Ücreti | M2: Haftalık Ödenecek Ücret Tutarı | N2: =CONCATENATE("Mali Yıl:"," ",ANASAYFA!B8," ","Ay:"," ",ANASAYFA!B9) -> Mali Yıl: 2020 Ay: OCAK
E3: Maaş Karşılığı | F3: İşletmede Mesleki Eğitim Ücret Karşılığı | G3: Toplam | N3: Açıklamalar
C4: 1 | D4: 2 | E4: 3 | F4: 4 | G4: 5 | H4: 6 | J4: 13 | K4: 7 | L4: 8 | M4: 9 | N4: 10
B5: =IF(C5="",,ROUNDUP(ROWS($B$5:B5)/1,0)) -> 0 | C5: =IF(P5>0,veriler!C5,"") ->  | D5: =IF(C5>0,CONCATENATE(veriler!F5,"(",veriler!E5,")"),"") -> Müdür(Coğrafya) | E5: =IF(C5>0,veriler!AF5,"") -> 0 | F5: 5 | G5: =SUM(E5:F5) -> 5 | H5: Dolunay Harita, Çak Metal, Asil Harita, Alp Harita | K5: =F5 -> 5 | L5: =ANASAYFA!$B$21 -> 20.44854 | M5: =K5*L5 -> 102.2427 | P5: 0
B6: =IF(C6="",,COUNTIF($B$5:B5,">0")+1) -> 0 | C6: =IF(P6>0,veriler!C6,"") ->  | D6: =IF(C6>0,CONCATENATE(veriler!F6,"(",veriler!E6,")"),"") -> Müdür Baş Yard(Elekt-Elektr.) | E6: =IF(C6>0,veriler!AF6,"") -> 0 | F6: 10 | G6: =SUM(E6:F6) -> 10 | H6: Keçiborlu Belediyesi, Hak Gülyağı Fab., Altıntaş Demnir Doğrama, Topçuoğlu Demir Doğrama | K6: =F6 -> 10 | L6: =ANASAYFA!$B$21 -> 20.44854 | M6: =K6*L6 -> 204.4854 | P6: 0
B7: =IF(C7="",,COUNTIF($B$5:B6,">0")+1) -> 0 | C7: =IF(P7>0,veriler!C7,"") ->  | D7: =IF(C7>0,CONCATENATE(veriler!F7,"(",veriler!E7,")"),"") -> Müdür Yardımcısı(Bilgisayar) | E7: =IF(C7>0,veriler!AF7,"") -> 0 | G7: =SUM(E7:F7) -> 0 | H7: Göltaş Çimento - BLS Makine Fabrikası | K7: 0 | L7: =ANASAYFA!$B$21 -> 20.44854 | M7: 0 | P7: 0
B8: =IF(C8="",,COUNTIF($B$5:B7,">0")+1) -> 0 | C8: =IF(P8>0,veriler!C8,"") ->  | D8: =IF(C8>0,CONCATENATE(veriler!F8,"(",veriler!E8,")"),"") -> Müdür Yardımcısı(Beden Eğitimi) | E8: =IF(C8>0,veriler!AF8,"") -> 0 | F8: 5 | G8: =SUM(E8:F8) -> 5 | H8: Güner Demir Doğrama, Uluborlu Belediyesi | K8: 5 | L8: =ANASAYFA!$B$21 -> 20.44854 | M8: 102.2427 | P8: 0
B9: =IF(C9="",,COUNTIF($B$5:B8,">0")+1) -> 1 | C9: =IF(P9>0,veriler!C9,"") -> MUAMMER KAYAKUŞ | D9: =IF(C9>0,CONCATENATE(veriler!F9,"(",veriler!E9,")"),"") -> Atölye/Lab Şefi(Elekt-Elektr.) | E9: =IF(C9>0,veriler!AF9,"") -> 0 | F9: 1 | G9: 1 | K9: 1 | L9: =ANASAYFA!$B$21 -> 20.44854 | M9: 20.44854 | P9: 1
B10: =IF(C10="",,COUNTIF($B$5:B9,">0")+1) -> 2 | C10: =IF(P10>0,veriler!C10,"") -> MEHMET GÜLAY | D10: =IF(C10>0,CONCATENATE(veriler!F10,"(",veriler!E10,")"),"") -> Alan Şefi(Metal İşl. ) | E10: =IF(C10>0,veriler!AF10,"") -> 0 | G10: 0 | K10: 0 | L10: =ANASAYFA!$B$21 -> 20.44854 | M10: 0 | P10: 1
B11: =IF(C11="",,COUNTIF($B$5:B10,">0")+1) -> 0 | C11: =IF(P11>0,veriler!C11,"") ->  | D11: =IF(C11>0,CONCATENATE(veriler!F11,"(",veriler!E11,")"),"") -> Öğretmen(Matematik) | E11: =IF(C11>0,veriler!AF11,"") -> 0 | G11: 0 | K11: 0 | L11: =ANASAYFA!$B$21 -> 20.44854 | M11: 0 | P11: 0
B12: =IF(C12="",,COUNTIF($B$5:B11,">0")+1) -> 0 | C12: =IF(P12>0,veriler!C12,"") ->  | D12: =IF(C12>0,CONCATENATE(veriler!F12,"(",veriler!E12,")"),"") -> Öğretmen(Fizik) | E12: =IF(C12>0,veriler!AF12,"") -> 0 | G12: 0 | K12: 0 | L12: =ANASAYFA!$B$21 -> 20.44854 | M12: 0 | P12: 0
B13: =IF(C13="",,COUNTIF($B$5:B12,">0")+1) -> 0 | C13: =IF(P13>0,veriler!C13,"") ->  | D13: =IF(C13>0,CONCATENATE(veriler!F13,"(",veriler!E13,")"),"") -> Öğretmen(Kimya) | E13: =IF(C13>0,veriler!AF13,"") -> 0 | G13: 0 | K13: 0 | L13: =ANASAYFA!$B$21 -> 20.44854 | M13: 0 | P13: 0
B14: =IF(C14="",,COUNTIF($B$5:B13,">0")+1) -> 0 | C14: =IF(P14>0,veriler!C14,"") ->  | D14: =IF(C14>0,CONCATENATE(veriler!F14,"(",veriler!E14,")"),"") -> Öğretmen(İngilizce) | E14: =IF(C14>0,veriler!AF14,"") -> 0 | G14: 0 | K14: 0 | L14: =ANASAYFA!$B$21 -> 20.44854 | M14: 0 | P14: 0
B15: =IF(C15="",,COUNTIF($B$5:B14,">0")+1) -> 0 | C15: =IF(P15>0,veriler!C15,"") ->  | D15: =IF(C15>0,CONCATENATE(veriler!F15,"(",veriler!E15,")"),"") -> Öğretmen(Din Kültürü Ve Ahl.Bilgisi) | E15: =IF(C15>0,veriler!AF15,"") -> 0 | G15: 0 | K15: 0 | L15: =ANASAYFA!$B$21 -> 20.44854 | M15: 0 | P15: 0
B16: =IF(C16="",,COUNTIF($B$5:B15,">0")+1) -> 3 | C16: =IF(P16>0,veriler!C16,"") -> KARDİYE KÖK | D16: =IF(C16>0,CONCATENATE(veriler!F16,"(",veriler!E16,")"),"") -> Atelye Öğretmeni(Harita-Tapu-Kadastro) | E16: =IF(C16>0,veriler!AF16,"") -> 0 | G16: 0 | K16: 0 | L16: =ANASAYFA!$B$21 -> 20.44854 | M16: 0 | P16: 1
B17: =IF(C17="",,COUNTIF($B$5:B16,">0")+1) -> 0 | C17: =IF(P17>0,veriler!C17,"") ->  | D17: =IF(C17>0,CONCATENATE(veriler!F17,"(",veriler!E17,")"),"") -> Öğretmen(Türk Dili ve Edebiyatı) | E17: =IF(C17>0,veriler!AF17,"") -> 0 | G17: 0 | K17: 0 | L17: =ANASAYFA!$B$21 -> 20.44854 | M17: 0 | P17: 0
B18: =IF(C18="",,COUNTIF($B$5:B17,">0")+1) -> 4 | C18: =IF(P18>0,veriler!C18,"") -> HATİCE UYSAL | D18: =IF(C18>0,CONCATENATE(veriler!F18,"(",veriler!E18,")"),"") -> Atelye Öğretmeni(Metal İşl. ) | E18: =IF(C18>0,veriler!AF18,"") -> 0 | G18: 0 | K18: 0 | L18: =ANASAYFA!$B$21 -> 20.44854 | M18: 0 | P18: 1
B19: =IF(C19="",,COUNTIF($B$5:B18,">0")+1) -> 0 | C19: =IF(P19>0,veriler!C19,"") ->  | D19: =IF(C19>0,CONCATENATE(veriler!F19,"(",veriler!E19,")"),"") -> Ücretli Öğretmen(Fizik) | E19: =IF(C19>0,veriler!AF19,"") -> 0 | G19: 0 | K19: 0 | L19: =ANASAYFA!$B$21 -> 20.44854 | M19: 0 | P19: 0
B20: =IF(C20="",,COUNTIF($B$5:B19,">0")+1) -> 0 | C20: =IF(P20>0,veriler!C20,"") ->  | D20: =IF(C20>0,CONCATENATE(veriler!F20,"(",veriler!E20,")"),"") -> Sınıf Öğretmeni(Beden Eğitimi) | E20: =IF(C20>0,veriler!AF20,"") -> 0 | G20: 0 | K20: 0 | L20: =ANASAYFA!$B$21 -> 20.44854 | M20: 0 | P20: 0
B21: =IF(C21="",,COUNTIF($B$5:B20,">0")+1) -> 0 | C21: =IF(P21>0,veriler!C21,"") ->  | D21: =IF(C21>0,CONCATENATE(veriler!F21,"(",veriler!E21,")"),"") -> () | E21: =IF(C21>0,veriler!AF21,"") ->  | G21: 0 | K21: 0 | L21: =ANASAYFA!$B$21 -> 20.44854 | M21: 0 | P21: 0
B22: =IF(C22="",,COUNTIF($B$5:B21,">0")+1) -> 0 | C22: =IF(P22>0,veriler!C22,"") ->  | D22: =IF(C22>0,CONCATENATE(veriler!F22,"(",veriler!E22,")"),"") -> () | E22: =IF(C22>0,veriler!AF22,"") ->  | G22: 0 | K22: 0 | L22: =ANASAYFA!$B$21 -> 20.44854 | M22: 0 | P22: 0
B23: =IF(C23="",,COUNTIF($B$5:B22,">0")+1) -> 0 | C23: =IF(P23>0,veriler!C23,"") ->  | D23: =IF(C23>0,CONCATENATE(veriler!F23,"(",veriler!E23,")"),"") -> () | E23: =IF(C23>0,veriler!AF23,"") ->  | G23: 0 | K23: 0 | L23: =ANASAYFA!$B$21 -> 20.44854 | M23: 0 | P23: 0
B24: =IF(C24="",,COUNTIF($B$5:B23,">0")+1) -> 0 | C24: =IF(P24>0,veriler!C24,"") ->  | D24: =IF(C24>0,CONCATENATE(veriler!F24,"(",veriler!E24,")"),"") -> () | E24: =IF(C24>0,veriler!AF24,"") ->  | G24: 0 | K24: 0 | L24: =ANASAYFA!$B$21 -> 20.44854 | M24: 0 | P24: 0
B25: =IF(C25="",,COUNTIF($B$5:B24,">0")+1) -> 0 | C25: =IF(P25>0,veriler!C25,"") ->  | D25: =IF(C25>0,CONCATENATE(veriler!F25,"(",veriler!E25,")"),"") -> () | E25: =IF(C25>0,veriler!AF25,"") ->  | G25: 0 | K25: 0 | L25: =ANASAYFA!$B$21 -> 20.44854 | M25: 0 | P25: 0
B26: =IF(C26="",,COUNTIF($B$5:B25,">0")+1) -> 0 | C26: =IF(P26>0,veriler!C26,"") ->  | D26: =IF(C26>0,CONCATENATE(veriler!F26,"(",veriler!E26,")"),"") -> () | E26: =IF(C26>0,veriler!AF26,"") ->  | G26: 0 | K26: 0 | L26: =ANASAYFA!$B$21 -> 20.44854 | M26: 0 | P26: 0
B27: =IF(C27="",,COUNTIF($B$5:B26,">0")+1) -> 0 | C27: =IF(P27>0,veriler!C27,"") ->  | D27: =IF(C27>0,CONCATENATE(veriler!F27,"(",veriler!E27,")"),"") -> () | E27: =IF(C27>0,veriler!AF27,"") ->  | G27: 0 | K27: 0 | L27: =ANASAYFA!$B$21 -> 20.44854 | M27: 0 | P27: 0
B28: =IF(C28="",,COUNTIF($B$5:B27,">0")+1) -> 0 | C28: =IF(P28>0,veriler!C28,"") ->  | D28: =IF(C28>0,CONCATENATE(veriler!F28,"(",veriler!E28,")"),"") -> () | E28: =IF(C28>0,veriler!AF28,"") ->  | G28: 0 | K28: 0 | L28: =ANASAYFA!$B$21 -> 20.44854 | M28: 0 | P28: 0
B29: =IF(C29="",,COUNTIF($B$5:B28,">0")+1) -> 0 | C29: =IF(P29>0,veriler!C29,"") ->  | D29: =IF(C29>0,CONCATENATE(veriler!F29,"(",veriler!E29,")"),"") -> () | E29: =IF(C29>0,veriler!AF29,"") ->  | G29: 0 | K29: 0 | L29: =ANASAYFA!$B$21 -> 20.44854 | M29: 0 | P29: 0
B30: =IF(C30="",,COUNTIF($B$5:B29,">0")+1) -> 0 | C30: =IF(P30>0,veriler!C30,"") ->  | D30: =IF(C30>0,CONCATENATE(veriler!F30,"(",veriler!E30,")"),"") -> () | E30: =IF(C30>0,veriler!AF30,"") ->  | G30: 0 | K30: 0 | L30: =ANASAYFA!$B$21 -> 20.44854 | M30: 0 | P30: 0
B31: =IF(C31="",,COUNTIF($B$5:B30,">0")+1) -> 0 | C31: =IF(P31>0,veriler!C31,"") ->  | D31: =IF(C31>0,CONCATENATE(veriler!F31,"(",veriler!E31,")"),"") -> () | E31: =IF(C31>0,veriler!AF31,"") ->  | G31: 0 | K31: 0 | L31: =ANASAYFA!$B$21 -> 20.44854 | M31: 0 | P31: 0
B32: =IF(C32="",,COUNTIF($B$5:B31,">0")+1) -> 0 | C32: =IF(P32>0,veriler!C32,"") ->  | D32: =IF(C32>0,CONCATENATE(veriler!F32,"(",veriler!E32,")"),"") -> () | E32: =IF(C32>0,veriler!AF32,"") ->  | G32: 0 | K32: 0 | L32: =ANASAYFA!$B$21 -> 20.44854 | M32: 0 | P32: 0
B33: =IF(C33="",,COUNTIF($B$5:B32,">0")+1) -> 0 | C33: =IF(P33>0,veriler!C33,"") ->  | D33: =IF(C33>0,CONCATENATE(veriler!F33,"(",veriler!E33,")"),"") -> () | E33: =IF(C33>0,veriler!AF33,"") ->  | G33: 0 | K33: 0 | L33: =ANASAYFA!$B$21 -> 20.44854 | M33: 0 | P33: 0
B34: =IF(C34="",,COUNTIF($B$5:B33,">0")+1) -> 0 | C34: =IF(P34>0,veriler!C34,"") ->  | D34: =IF(C34>0,CONCATENATE(veriler!F34,"(",veriler!E34,")"),"") -> () | E34: =IF(C34>0,veriler!AF34,"") ->  | G34: 0 | K34: 0 | L34: =ANASAYFA!$B$21 -> 20.44854 | M34: 0 | P34: 0
B36: T.C. | I36: T.C.
B37: ULUBORLU KAYMAKAMLIĞI | I37: =B37 -> ULUBORLU KAYMAKAMLIĞI
B38: ULUBORLU MESLEKİ VE TEKNİK ANADOLU LİSESİ MÜDÜRLÜĞÜ | I38: İLÇE MİLLİ EĞİTİM MÜDÜRLÜĞÜ
B42: Sayı : | C42: 82452652-20-E.476807 | F42: 2020-01-08 | I42: Sayı :84303886- 020/ | N42: …../01/2020
B43: Konu : | C43: Koordinatörlük Görevi Ücret Onayı | I43: Konu : Koordinatörlük Görevi Ücret Onayı
B45: ULUBORLU İLÇE MİLLİ EĞİTİM MÜDÜRLÜĞÜNE | I45: KAYMAKAMLIK MAKAMINA
I46: ULUBORLU
C50: Uluborlu Mesleki ve Teknik Anadolu Lisesi'nde İşletmelerde Mesleki Eğitimi ücretli | I50: İlçemiz Uluborlu Mesleki ve Teknik Anadolu Lisesi öğretmenlerinden İşletmelerde Mesleki Eğitimi
B51: ders okutan öğretmenlerin durumu yukarıya çıkartılmıştır. | I51: Ücretli Ders Okutan öğretmenlerin durumu yukarıda çizelge halinde sunulmuştur. 439 sayılı Kanun ve MEB Yönetici ve
C52: Bilgilerinizi ve gerekli olurun verilmesini arz ederim. | I52: öğretmenlerin ders ve ek Ders saatlerine ilişkin esaslar doğrultusunda okutulan ücretli derslerin, ek ders ücreti
I53: olarak ödenmesine müsadelerinize arz ederim
E58: =ANASAYFA!B35 -> Ruhi İLHAN | N58: =ANASAYFA!B36 -> Mustafa KABASAKAL
E59: =ANASAYFA!C35 -> Okul Müdürü | N59: =ANASAYFA!C36 -> İlçe Milli Eğitim Müdürü
I67: …./01/2020
I68: UYGUNDUR
I70: =ANASAYFA!B37 -> Şahin DEMİR
I71: =ANASAYFA!C37 -> Kaymakam

Sheet DYK
B1: =CONCATENATE(ANASAYFA!B5," ","MÜDÜRLÜĞÜ"," ",ANASAYFA!B6," ","ÖĞRETİM YILI YÖNETİCİ VE ÖĞRETMENLERİNE AİT"," ","ÖRGÜN VE YAYGIN EĞİTİMİ DESTEKLEME VE YETİŞTİRME KURSU ÜCRET ONAY ÇİZELGESİ") -> ULUBORLU MESLEKİ VE TEKNİK ANADOLU LİSESİ MÜDÜRLÜĞÜ 2019-2020 ÖĞRETİM YILI YÖNETİCİ VE ÖĞRETMENLERİNE AİT ÖRGÜN VE YAYGIN EĞİTİMİ DESTEKLEME VE YETİŞTİRME KURSU ÜCRET ONAY ÇİZELGESİ
B4: Mali Yılı : | D4: =ANASAYFA!B8 -> 2020
B5: Ay : | D5: =ANASAYFA!B9 -> OCAK
B7: S.NO | C7: TC. Numarası | D7: Adı ve Soyadı | E7: Görevi | F7: Branşı | G7: Öğrenim Durumu | H7: Açılan Kursun Adı Ve Okutulan Sınıflar | I7: Okullardaki Maaş Karşılığı | J7: Okullardaki Haftalık Ücretli Ders Saati Toplamı | K7: Ders Niteliğinde Yönetim Görevi Ücret Saati | L7: Okullardaki Haftalık Kurs Saati Toplamı | M7: Toplam | N7: Maaş Karşılığı Girdiği Kurs Toplamı | O7: Okullardaki Haftalık Ödenecek Kurs Saati Toplamı | P7: Gündüz Okuttuğu Kurs Saati | Q7: Gece ve Hafta Sonu Okuttuğu Kurs Saati | R7: Başlama ve Bitiş Tarihi | S7: Kursun Açılma Şekli | T7: Kursun Yapıldığı Gün | U7: Gündüz Saat Başı Bürüt Ücret | V7: Haftalık Ödenecek Gündüz Ücret | W7: Gece Saat Başı Bürüt Ücret | X7: Haftalık Ödenecek Haftas Sonu ve Gece Ücreti | Y7: Çalışma Saatleri
B9: =IF(L9>0,ROUNDUP(ROWS($B$9:B9)/1,0),0) -> 0 | C9: =IF(L9>0,veriler!D5,"") ->  | D9: =IF(L9>0,veriler!C5,"") ->  | E9: =IF(L9>0,veriler!F5,"") ->  | F9: =IF(L9>0,veriler!E5,"") ->  | G9: =IF(L9>0,veriler!G5,"") ->  | H9: Matematik 11 | I9: =IFERROR(IF(L9>0,IF(veriler!K5<veriler!AF5,veriler!K5+veriler!AG5,veriler!AF5),0),"") -> 0 | J9: =IF(L9>0,IF(veriler!AJ5>0,veriler!AJ5,""),0) -> 0 | K9: =IF(L9>0,veriler!V5,0) -> 0 | L9: 0 | M9: =SUM(I9:L9) -> 0 | N9: =IFERROR(IF(L9>0,veriler!AO5,0),"") -> 0 | O9: =IF(L9>0,veriler!AL5+veriler!O5,"") ->  | P9: =IF(L9>0,veriler!AT5,"") ->  | Q9: =IF(L9>0,veriler!AU5+veriler!AV5,"") ->  | R9: 03.10.2019 04.06.2020 | S9: Destekleme ve Yetiştirme Kursu | T9: Perşembe | U9: =IF(G9=$AC$9,ANASAYFA!$B$22,IF(G9=$AC$10,ANASAYFA!$B$28,IF(G9=$AC$11,ANASAYFA!$B$31,""))) ->  | V9: =IF(P9>0,P9*U9,"") ->  | W9: =IF(G9=$AC$9,ANASAYFA!$B$23,IF(G9=$AC$10,ANASAYFA!$B$29,IF(G9=$AC$11,ANASAYFA!$B$32,""))) ->  | X9: =IF(Q9>0,Q9*W9,"") ->  | Y9: 15:25-16:05 16:15-16:55 | AC9: Lisans
B10: =IF(L10>0,COUNTIF($B$9:B9,">0")+1,0) -> 0 | C10: =IF(L10>0,veriler!D6,"") ->  | D10: =IF(L10>0,veriler!C6,"") ->  | E10: =IF(L10>0,veriler!F6,"") ->  | F10: =IF(L10>0,veriler!E6,"") ->  | G10: =IF(L10>0,veriler!G6,"") ->  | H10: İngilizce 9,İngilizce 11 | I10: =IFERROR(IF(L10>0,IF(veriler!K6<veriler!AF6,veriler!K6+veriler!AG6,veriler!AF6),0),"") -> 0 | J10: =IF(L10>0,IF(veriler!AJ6>0,veriler!AJ6,""),0) -> 0 | K10: =IF(L10>0,veriler!V6,0) -> 0 | L10: 0 | M10: =SUM(I10:L10) -> 0 | N10: =IFERROR(IF(L10>0,veriler!AO6,0),"") -> 0 | O10: =IF(L10>0,veriler!AL6+veriler!O6,"") ->  | P10: =IF(L10>0,veriler!AT6,"") ->  | Q10: =IF(L10>0,veriler!AU6+veriler!AV6,"") ->  | R10: 03.10.2019 05.06.2020 | S10: Destekleme ve Yetiştirme Kursu | T10: Perşembe Cuma | U10: =IF(G10=$AC$9,ANASAYFA!$B$22,IF(G10=$AC$10,ANASAYFA!$B$28,IF(G10=$AC$11,ANASAYFA!$B$31,""))) ->  | V10: =IFERROR(IF(P10>0,P10*U10,""),"") ->  | W10: =IF(G10=$AC$9,ANASAYFA!$B$23,IF(G10=$AC$10,ANASAYFA!$B$29,IF(G10=$AC$11,ANASAYFA!$B$32,""))) ->  | X10: =IFERROR(IF(Q10>0,Q10*W10,""),"") ->  | Y10: 15:25-16:05 16:15-16:55 | AC10: Y.Lisans
B11: =IF(L11>0,COUNTIF($B$9:B10,">0")+1,0) -> 0 | C11: =IF(L11>0,veriler!D7,"") ->  | D11: =IF(L11>0,veriler!C7,"") ->  | E11: =IF(L11>0,veriler!F7,"") ->  | F11: =IF(L11>0,veriler!E7,"") ->  | G11: =IF(L11>0,veriler!G7,"") ->  | H11: Matematik 12 | I11: =IFERROR(IF(L11>0,IF(veriler!K7<veriler!AF7,veriler!K7+veriler!AG7,veriler!AF7),0),"") -> 0 | J11: =IF(L11>0,IF(veriler!AJ7>0,veriler!AJ7,""),0) -> 0 | K11: =IF(L11>0,veriler!V7,0) -> 0 | L11: 0 | M11: 0 | N11: =IFERROR(IF(L11>0,veriler!AO7,0),"") -> 0 | O11: =IF(L11>0,veriler!AL7+veriler!O7,"") ->  | P11: =IF(L11>0,veriler!AT7,"") ->  | Q11: =IF(L11>0,veriler!AU7+veriler!AV7,"") ->  | R11: 03.10.2019 04.06.2021 | S11: Destekleme ve Yetiştirme Kursu | T11: Cuma | U11: =IF(G11=$AC$9,ANASAYFA!$B$22,IF(G11=$AC$10,ANASAYFA!$B$28,IF(G11=$AC$11,ANASAYFA!$B$31,""))) ->  | W11: =IF(G11=$AC$9,ANASAYFA!$B$23,IF(G11=$AC$10,ANASAYFA!$B$29,IF(G11=$AC$11,ANASAYFA!$B$32,""))) ->  | Y11: 15:25-16:05 16:15-16:55 | AC11: Doktora
B12: =IF(L12>0,COUNTIF($B$9:B11,">0")+1,0) -> 0 | C12: =IF(L12>0,veriler!D8,"") ->  | D12: =IF(L12>0,veriler!C8,"") ->  | E12: =IF(L12>0,veriler!F8,"") ->  | F12: =IF(L12>0,veriler!E8,"") ->  | G12: =IF(L12>0,veriler!G8,"") ->  | H12: İngilizce 9,İngilizce 12 | I12: =IFERROR(IF(L12>0,IF(veriler!K8<veriler!AF8,veriler!K8+veriler!AG8,veriler!AF8),0),"") -> 0 | J12: =IF(L12>0,IF(veriler!AJ8>0,veriler!AJ8,""),0) -> 0 | K12: =IF(L12>0,veriler!V8,0) -> 0 | L12: 0 | M12: 0 | N12: =IFERROR(IF(L12>0,veriler!AO8,0),"") -> 0 | O12: =IF(L12>0,veriler!AL8+veriler!O8,"") ->  | P12: =IF(L12>0,veriler!AT8,"") ->  | Q12: =IF(L12>0,veriler!AU8+veriler!AV8,"") ->  | R12: 03.10.2019 05.06.2021 | S12: Destekleme ve Yetiştirme Kursu | T12: Perşembe Cuma | U12: =IF(G12=$AC$9,ANASAYFA!$B$22,IF(G12=$AC$10,ANASAYFA!$B$28,IF(G12=$AC$11,ANASAYFA!$B$31,""))) ->  | W12: =IF(G12=$AC$9,ANASAYFA!$B$23,IF(G12=$AC$10,ANASAYFA!$B$29,IF(G12=$AC$11,ANASAYFA!$B$32,""))) ->  | Y12: 15:25-16:05 16:15-16:55
B13: =IF(L13>0,COUNTIF($B$9:B12,">0")+1,0) -> 0 | C13: =IF(L13>0,veriler!D9,"") ->  | D13: =IF(L13>0,veriler!C9,"") ->  | E13: =IF(L13>0,veriler!F9,"") ->  | F13: =IF(L13>0,veriler!E9,"") ->  | G13: =IF(L13>0,veriler!G9,"") ->  | H13: Matematik 13 | I13: =IFERROR(IF(L13>0,IF(veriler!K9<veriler!AF9,veriler!K9+veriler!AG9,veriler!AF9),0),"") -> 0 | J13: =IF(L13>0,IF(veriler!AJ9>0,veriler!AJ9,""),0) -> 0 | K13: =IF(L13>0,veriler!V9,0) -> 0 | L13: 0 | M13: 0 | N13: =IFERROR(IF(L13>0,veriler!AO9,0),"") -> 0 | O13: =IF(L13>0,veriler!AL9+veriler!O9,"") ->  | P13: =IF(L13>0,veriler!AT9,"") ->  | Q13: =IF(L13>0,veriler!AU9+veriler!AV9,"") ->  | R13: 03.10.2019 04.06.2022 | S13: Destekleme ve Yetiştirme Kursu | T13: Cumartesi | U13: =IF(G13=$AC$9,ANASAYFA!$B$22,IF(G13=$AC$10,ANASAYFA!$B$28,IF(G13=$AC$11,ANASAYFA!$B$31,""))) ->  | W13: =IF(G13=$AC$9,ANASAYFA!$B$23,IF(G13=$AC$10,ANASAYFA!$B$29,IF(G13=$AC$11,ANASAYFA!$B$32,""))) ->  | Y13: 15:25-16:05 16:15-16:55
B14: =IF(L14>0,COUNTIF($B$9:B13,">0")+1,0) -> 0 | C14: =IF(L14>0,veriler!D10,"") ->  | D14: =IF(L14>0,veriler!C10,"") ->  | E14: =IF(L14>0,veriler!F10,"") ->  | F14: =IF(L14>0,veriler!E10,"") ->  | G14: =IF(L14>0,veriler!G10,"") ->  | H14: İngilizce 9,İngilizce 13 | I14: =IFERROR(IF(L14>0,IF(veriler!K10<veriler!AF10,veriler!K10+veriler!AG10,veriler!AF10),0),"") -> 0 | J14: =IF(L14>0,IF(veriler!AJ10>0,veriler!AJ10,""),0) -> 0 | K14: =IF(L14>0,veriler!V10,0) -> 0 | L14: 0 | M14: 0 | N14: =IFERROR(IF(L14>0,veriler!AO10,0),"") -> 0 | O14: =IF(L14>0,veriler!AL10+veriler!O10,"") ->  | P14: =IF(L14>0,veriler!AT10,"") ->  | Q14: =IF(L14>0,veriler!AU10+veriler!AV10,"") ->  | R14: 03.10.2019 05.06.2022 | S14: Destekleme ve Yetiştirme Kursu | T14: Perşembe Cuma | U14: =IF(G14=$AC$9,ANASAYFA!$B$22,IF(G14=$AC$10,ANASAYFA!$B$28,IF(G14=$AC$11,ANASAYFA!$B$31,""))) ->  | W14: =IF(G14=$AC$9,ANASAYFA!$B$23,IF(G14=$AC$10,ANASAYFA!$B$29,IF(G14=$AC$11,ANASAYFA!$B$32,""))) ->  | Y14: 15:25-16:05 16:15-16:55
B15: =IF(L15>0,COUNTIF($B$9:B14,">0")+1,0) -> 1 | C15: =IF(L15>0,veriler!D11,"") -> 0 | D15: =IF(L15>0,veriler!C11,"") -> DEMET KAYA | E15: =IF(L15>0,veriler!F11,"") -> Öğretmen | F15: =IF(L15>0,veriler!E11,"") -> Matematik | G15: =IF(L15>0,veriler!G11,"") -> Y.Lisans | H15: Matematik 14 | I15: =IFERROR(IF(L15>0,IF(veriler!K11<veriler!AF11,veriler!K11+veriler!AG11,veriler!AF11),0),"") -> 0 | J15: =IF(L15>0,IF(veriler!AJ11>0,veriler!AJ11,""),0) ->  | K15: =IF(L15>0,veriler!V11,0) -> 0 | L15: 2 | M15: 2 | N15: =IFERROR(IF(L15>0,veriler!AO11,0),"") -> 0 | O15: =IF(L15>0,veriler!AL11+veriler!O11,"") -> 0 | P15: =IF(L15>0,veriler!AT11,"") -> 0 | Q15: =IF(L15>0,veriler!AU11+veriler!AV11,"") -> 0 | R15: 03.10.2019 04.06.2023 | S15: Destekleme ve Yetiştirme Kursu | T15: Pazar | U15: =IF(G15=$AC$9,ANASAYFA!$B$22,IF(G15=$AC$10,ANASAYFA!$B$28,IF(G15=$AC$11,ANASAYFA!$B$31,""))) -> 41.919507 | W15: =IF(G15=$AC$9,ANASAYFA!$B$23,IF(G15=$AC$10,ANASAYFA!$B$29,IF(G15=$AC$11,ANASAYFA!$B$32,""))) -> 44.9137575 | Y15: 15:25-16:05 16:15-16:55
B16: =IF(L16>0,COUNTIF($B$9:B15,">0")+1,0) -> 0 | C16: =IF(L16>0,veriler!D12,"") ->  | D16: =IF(L16>0,veriler!C12,"") ->  | E16: =IF(L16>0,veriler!F12,"") ->  | F16: =IF(L16>0,veriler!E12,"") ->  | G16: =IF(L16>0,veriler!G12,"") ->  | H16: İngilizce 9,İngilizce 14 | I16: =IFERROR(IF(L16>0,IF(veriler!K12<veriler!AF12,veriler!K12+veriler!AG12,veriler!AF12),0),"") -> 0 | J16: =IF(L16>0,IF(veriler!AJ12>0,veriler!AJ12,""),0) -> 0 | K16: =IF(L16>0,veriler!V12,0) -> 0 | L16: 0 | M16: 0 | N16: =IFERROR(IF(L16>0,veriler!AO12,0),"") -> 0 | O16: =IF(L16>0,veriler!AL12+veriler!O12,"") ->  | P16: =IF(L16>0,veriler!AT12,"") ->  | Q16: =IF(L16>0,veriler!AU12+veriler!AV12,"") ->  | R16: 03.10.2019 05.06.2023 | S16: Destekleme ve Yetiştirme Kursu | T16: Perşembe Cuma | U16: =IF(G16=$AC$9,ANASAYFA!$B$22,IF(G16=$AC$10,ANASAYFA!$B$28,IF(G16=$AC$11,ANASAYFA!$B$31,""))) ->  | W16: =IF(G16=$AC$9,ANASAYFA!$B$23,IF(G16=$AC$10,ANASAYFA!$B$29,IF(G16=$AC$11,ANASAYFA!$B$32,""))) ->  | Y16: 15:25-16:05 16:15-16:55
B17: =IF(L17>0,COUNTIF($B$9:B16,">0")+1,0) -> 0 | C17: =IF(L17>0,veriler!D13,"") ->  | D17: =IF(L17>0,veriler!C13,"") ->  | E17: =IF(L17>0,veriler!F13,"") ->  | F17: =IF(L17>0,veriler!E13,"") ->  | G17: =IF(L17>0,veriler!G13,"") ->  | H17: Matematik 15 | I17: =IFERROR(IF(L17>0,IF(veriler!K13<veriler!AF13,veriler!K13+veriler!AG13,veriler!AF13),0),"") -> 0 | J17: =IF(L17>0,IF(veriler!AJ13>0,veriler!AJ13,""),0) -> 0 | K17: =IF(L17>0,veriler!V13,0) -> 0 | L17: 0 | M17: 0 | N17: =IFERROR(IF(L17>0,veriler!AO13,0),"") -> 0 | O17: =IF(L17>0,veriler!AL13+veriler!O13,"") ->  | P17: =IF(L17>0,veriler!AT13,"") ->  | Q17: =IF(L17>0,veriler!AU13+veriler!AV13,"") ->  | R17: 03.10.2019 04.06.2024 | S17: Destekleme ve Yetiştirme Kursu | T17: Pazartesi | U17: =IF(G17=$AC$9,ANASAYFA!$B$22,IF(G17=$AC$10,ANASAYFA!$B$28,IF(G17=$AC$11,ANASAYFA!$B$31,""))) ->  | W17: =IF(G17=$AC$9,ANASAYFA!$B$23,IF(G17=$AC$10,ANASAYFA!$B$29,IF(G17=$AC$11,ANASAYFA!$B$32,""))) ->  | Y17: 15:25-16:05 16:15-16:55
B18: =IF(L18>0,COUNTIF($B$9:B17,">0")+1,0) -> 2 | C18: =IF(L18>0,veriler!D14,"") -> 0 | D18: =IF(L18>0,veriler!C14,"") -> CENNET ÖZKAN | E18: =IF(L18>0,veriler!F14,"") -> Öğretmen | F18: =IF(L18>0,veriler!E14,"") -> İngilizce | G18: =IF(L18>0,veriler!G14,"") -> Lisans | H18: İngilizce 9,İngilizce 15 | I18: =IFERROR(IF(L18>0,IF(veriler!K14<veriler!AF14,veriler!K14+veriler!AG14,veriler!AF14),0),"") -> 0 | J18: =IF(L18>0,IF(veriler!AJ14>0,veriler!AJ14,""),0) ->  | K18: =IF(L18>0,veriler!V14,0) -> 0 | L18: 4 | M18: 4 | N18: =IFERROR(IF(L18>0,veriler!AO14,0),"") -> 0 | O18: =IF(L18>0,veriler!AL14+veriler!O14,"") -> 0 | P18: =IF(L18>0,veriler!AT14,"") -> 0 | Q18: =IF(L18>0,veriler!AU14+veriler!AV14,"") -> 0 | R18: 03.10.2019 05.06.2024 | S18: Destekleme ve Yetiştirme Kursu | T18: Perşembe Cuma | U18: =IF(G18=$AC$9,ANASAYFA!$B$22,IF(G18=$AC$10,ANASAYFA!$B$28,IF(G18=$AC$11,ANASAYFA!$B$31,""))) -> 40.89708 | W18: =IF(G18=$AC$9,ANASAYFA!$B$23,IF(G18=$AC$10,ANASAYFA!$B$29,IF(G18=$AC$11,ANASAYFA!$B$32,""))) -> 43.8183 | Y18: 15:25-16:05 16:15-16:55
B19: =IF(L19>0,COUNTIF($B$9:B18,">0")+1,0) -> 0 | C19: =IF(L19>0,veriler!D15,"") ->  | D19: =IF(L19>0,veriler!C15,"") ->  | E19: =IF(L19>0,veriler!F15,"") ->  | F19: =IF(L19>0,veriler!E15,"") ->  | G19: =IF(L19>0,veriler!G15,"") ->  | H19: Matematik 16 | I19: =IFERROR(IF(L19>0,IF(veriler!K15<veriler!AF15,veriler!K15+veriler!AG15,veriler!AF15),0),"") -> 0 | J19: =IF(L19>0,IF(veriler!AJ15>0,veriler!AJ15,""),0) -> 0 | K19: =IF(L19>0,veriler!V15,0) -> 0 | L19: 0 | M19: 0 | N19: =IFERROR(IF(L19>0,veriler!AO15,0),"") -> 0 | O19: =IF(L19>0,veriler!AL15+veriler!O15,"") ->  | P19: =IF(L19>0,veriler!AT15,"") ->  | Q19: =IF(L19>0,veriler!AU15+veriler!AV15,"") ->  | R19: 03.10.2019 04.06.2025 | S19: Destekleme ve Yetiştirme Kursu | T19: Salı | U19: =IF(G19=$AC$9,ANASAYFA!$B$22,IF(G19=$AC$10,ANASAYFA!$B$28,IF(G19=$AC$11,ANASAYFA!$B$31,""))) ->  | W19: =IF(G19=$AC$9,ANASAYFA!$B$23,IF(G19=$AC$10,ANASAYFA!$B$29,IF(G19=$AC$11,ANASAYFA!$B$32,""))) ->  | Y19: 15:25-16:05 16:15-16:55
B20: =IF(L20>0,COUNTIF($B$9:B19,">0")+1,0) -> 0 | C20: =IF(L20>0,veriler!D16,"") ->  | D20: =IF(L20>0,veriler!C16,"") ->  | E20: =IF(L20>0,veriler!F16,"") ->  | F20: =IF(L20>0,veriler!E16,"") ->  | G20: =IF(L20>0,veriler!G16,"") ->  | H20: İngilizce 9,İngilizce 16 | I20: =IFERROR(IF(L20>0,IF(veriler!K16<veriler!AF16,veriler!K16+veriler!AG16,veriler!AF16),0),"") -> 0 | J20: =IF(L20>0,IF(veriler!AJ16>0,veriler!AJ16,""),0) -> 0 | K20: =IF(L20>0,veriler!V16,0) -> 0 | L20: 0 | M20: 0 | N20: =IFERROR(IF(L20>0,veriler!AO16,0),"") -> 0 | O20: =IF(L20>0,veriler!AL16+veriler!O16,"") ->  | P20: =IF(L20>0,veriler!AT16,"") ->  | Q20: =IF(L20>0,veriler!AU16+veriler!AV16,"") ->  | R20: 03.10.2019 05.06.2025 | S20: Destekleme ve Yetiştirme Kursu | T20: Perşembe Cuma | U20: =IF(G20=$AC$9,ANASAYFA!$B$22,IF(G20=$AC$10,ANASAYFA!$B$28,IF(G20=$AC$11,ANASAYFA!$B$31,""))) ->  | W20: =IF(G20=$AC$9,ANASAYFA!$B$23,IF(G20=$AC$10,ANASAYFA!$B$29,IF(G20=$AC$11,ANASAYFA!$B$32,""))) ->  | Y20: 15:25-16:05 16:15-16:55
B21: =IF(L21>0,COUNTIF($B$9:B20,">0")+1,0) -> 0 | C21: =IF(L21>0,veriler!D17,"") ->  | D21: =IF(L21>0,veriler!C17,"") ->  | E21: =IF(L21>0,veriler!F17,"") ->  | F21: =IF(L21>0,veriler!E17,"") ->  | G21: =IF(L21>0,veriler!G17,"") ->  | H21: Matematik 17 | I21: =IFERROR(IF(L21>0,IF(veriler!K17<veriler!AF17,veriler!K17+veriler!AG17,veriler!AF17),0),"") -> 0 | J21: =IF(L21>0,IF(veriler!AJ17>0,veriler!AJ17,""),0) -> 0 | K21: =IF(L21>0,veriler!V17,0) -> 0 | L21: 0 | M21: 0 | N21: =IFERROR(IF(L21>0,veriler!AO17,0),"") -> 0 | O21: =IF(L21>0,veriler!AL17+veriler!O17,"") ->  | P21: =IF(L21>0,veriler!AT17,"") ->  | Q21: =IF(L21>0,veriler!AU17+veriler!AV17,"") ->  | R21: 03.10.2019 04.06.2026 | S21: Destekleme ve Yetiştirme Kursu | T21: Çarşamba | U21: =IF(G21=$AC$9,ANASAYFA!$B$22,IF(G21=$AC$10,ANASAYFA!$B$28,IF(G21=$AC$11,ANASAYFA!$B$31,""))) ->  | W21: =IF(G21=$AC$9,ANASAYFA!$B$23,IF(G21=$AC$10,ANASAYFA!$B$29,IF(G21=$AC$11,ANASAYFA!$B$32,""))) ->  | Y21: 15:25-16:05 16:15-16:55
B22: =IF(L22>0,COUNTIF($B$9:B21,">0")+1,0) -> 0 | C22: =IF(L22>0,veriler!D18,"") ->  | D22: =IF(L22>0,veriler!C18,"") ->  | E22: =IF(L22>0,veriler!F18,"") ->  | F22: =IF(L22>0,veriler!E18,"") ->  | G22: =IF(L22>0,veriler!G18,"") ->  | H22: İngilizce 9,İngilizce 17 | I22: =IFERROR(IF(L22>0,IF(veriler!K18<veriler!AF18,veriler!K18+veriler!AG18,veriler!AF18),0),"") -> 0 | J22: =IF(L22>0,IF(veriler!AJ18>0,veriler!AJ18,""),0) -> 0 | K22: =IF(L22>0,veriler!V18,0) -> 0 | L22: 0 | M22: 0 | N22: =IFERROR(IF(L22>0,veriler!AO18,0),"") -> 0 | O22: =IF(L22>0,veriler!AL18+veriler!O18,"") ->  | P22: =IF(L22>0,veriler!AT18,"") ->  | Q22: =IF(L22>0,veriler!AU18+veriler!AV18,"") ->  | R22: 03.10.2019 05.06.2026 | S22: Destekleme ve Yetiştirme Kursu | T22: Perşembe Cuma | U22: =IF(G22=$AC$9,ANASAYFA!$B$22,IF(G22=$AC$10,ANASAYFA!$B$28,IF(G22=$AC$11,ANASAYFA!$B$31,""))) ->  | W22: =IF(G22=$AC$9,ANASAYFA!$B$23,IF(G22=$AC$10,ANASAYFA!$B$29,IF(G22=$AC$11,ANASAYFA!$B$32,""))) ->  | Y22: 15:25-16:05 16:15-16:55
B23: =IF(L23>0,COUNTIF($B$9:B22,">0")+1,0) -> 0 | C23: =IF(L23>0,veriler!D19,"") ->  | D23: =IF(L23>0,veriler!C19,"") ->  | E23: =IF(L23>0,veriler!F19,"") ->  | F23: =IF(L23>0,veriler!E19,"") ->  | G23: =IF(L23>0,veriler!G19,"") ->  | H23: Matematik 18 | I23: =IFERROR(IF(L23>0,IF(veriler!K19<veriler!AF19,veriler!K19+veriler!AG19,veriler!AF19),0),"") -> 0 | J23: =IF(L23>0,IF(veriler!AJ19>0,veriler!AJ19,""),0) -> 0 | K23: =IF(L23>0,veriler!V19,0) -> 0 | L23: 0 | M23: 0 | N23: =IFERROR(IF(L23>0,veriler!AO19,0),"") -> 0 | O23: =IF(L23>0,veriler!AL19+veriler!O19,"") ->  | P23: =IF(L23>0,veriler!AT19,"") ->  | Q23: =IF(L23>0,veriler!AU19+veriler!AV19,"") ->  | R23: 03.10.2019 04.06.2027 | S23: Destekleme ve Yetiştirme Kursu | T23: Perşembe | U23: =IF(G23=$AC$9,ANASAYFA!$B$22,IF(G23=$AC$10,ANASAYFA!$B$28,IF(G23=$AC$11,ANASAYFA!$B$31,""))) ->  | W23: =IF(G23=$AC$9,ANASAYFA!$B$23,IF(G23=$AC$10,ANASAYFA!$B$29,IF(G23=$AC$11,ANASAYFA!$B$32,""))) ->  | Y23: 15:25-16:05 16:15-16:55
B24: =IF(L24>0,COUNTIF($B$9:B23,">0")+1,0) -> 0 | C24: =IF(L24>0,veriler!D20,"") ->  | D24: =IF(L24>0,veriler!C20,"") ->  | E24: =IF(L24>0,veriler!F20,"") ->  | F24: =IF(L24>0,veriler!E20,"") ->  | G24: =IF(L24>0,veriler!G20,"") ->  | H24: İngilizce 9,İngilizce 18 | I24: =IFERROR(IF(L24>0,IF(veriler!K20<veriler!AF20,veriler!K20+veriler!AG20,veriler!AF20),0),"") -> 0 | J24: =IF(L24>0,IF(veriler!AJ20>0,veriler!AJ20,""),0) -> 0 | K24: =IF(L24>0,veriler!V20,0) -> 0 | L24: 0 | M24: 0 | N24: =IFERROR(IF(L24>0,veriler!AO20,0),"") -> 0 | O24: =IF(L24>0,veriler!AL20+veriler!O20,"") ->  | P24: =IF(L24>0,veriler!AT20,"") ->  | Q24: =IF(L24>0,veriler!AU20+veriler!AV20,"") ->  | R24: 03.10.2019 05.06.2027 | S24: Destekleme ve Yetiştirme Kursu | T24: Perşembe Cuma | U24: =IF(G24=$AC$9,ANASAYFA!$B$22,IF(G24=$AC$10,ANASAYFA!$B$28,IF(G24=$AC$11,ANASAYFA!$B$31,""))) ->  | W24: =IF(G24=$AC$9,ANASAYFA!$B$23,IF(G24=$AC$10,ANASAYFA!$B$29,IF(G24=$AC$11,ANASAYFA!$B$32,""))) ->  | Y24: 15:25-16:05 16:15-16:55
B25: =IF(L25>0,COUNTIF($B$9:B24,">0")+1,0) -> 0 | C25: =IF(L25>0,veriler!D21,"") ->  | D25: =IF(L25>0,veriler!C21,"") ->  | E25: =IF(L25>0,veriler!F21,"") ->  | F25: =IF(L25>0,veriler!E21,"") ->  | G25: =IF(L25>0,veriler!G21,"") ->  | H25: Matematik 19 | I25: =IFERROR(IF(L25>0,IF(veriler!K21<veriler!AF21,veriler!K21+veriler!AG21,veriler!AF21),0),"") -> 0 | J25: =IF(L25>0,IF(veriler!AJ21>0,veriler!AJ21,""),0) -> 0 | K25: =IF(L25>0,veriler!V21,0) -> 0 | L25: 0 | M25: 0 | N25: =IFERROR(IF(L25>0,veriler!AO21,0),"") -> 0 | O25: =IF(L25>0,veriler!AL21+veriler!O21,"") ->  | P25: =IF(L25>0,veriler!AT21,"") ->  | Q25: =IF(L25>0,veriler!AU21+veriler!AV21,"") ->  | R25: 03.10.2019 04.06.2028 | S25: Destekleme ve Yetiştirme Kursu | T25: Cuma | U25: =IF(G25=$AC$9,ANASAYFA!$B$22,IF(G25=$AC$10,ANASAYFA!$B$28,IF(G25=$AC$11,ANASAYFA!$B$31,""))) ->  | W25: =IF(G25=$AC$9,ANASAYFA!$B$23,IF(G25=$AC$10,ANASAYFA!$B$29,IF(G25=$AC$11,ANASAYFA!$B$32,""))) ->  | Y25: 15:25-16:05 16:15-16:55
B26: =IF(L26>0,COUNTIF($B$9:B25,">0")+1,0) -> 0 | C26: =IF(L26>0,veriler!D22,"") ->  | D26: =IF(L26>0,veriler!C22,"") ->  | E26: =IF(L26>0,veriler!F22,"") ->  | F26: =IF(L26>0,veriler!E22,"") ->  | G26: =IF(L26>0,veriler!G22,"") ->  | H26: İngilizce 9,İngilizce 19 | I26: =IFERROR(IF(L26>0,IF(veriler!K22<veriler!AF22,veriler!K22+veriler!AG22,veriler!AF22),0),"") -> 0 | J26: =IF(L26>0,IF(veriler!AJ22>0,veriler!AJ22,""),0) -> 0 | K26: =IF(L26>0,veriler!V22,0) -> 0 | L26: 0 | M26: 0 | N26: =IFERROR(IF(L26>0,veriler!AO22,0),"") -> 0 | O26: =IF(L26>0,veriler!AL22+veriler!O22,"") ->  | P26: =IF(L26>0,veriler!AT22,"") ->  | Q26: =IF(L26>0,veriler!AU22+veriler!AV22,"") ->  | R26: 03.10.2019 05.06.2028 | S26: Destekleme ve Yetiştirme Kursu | T26: Perşembe Cuma | U26: =IF(G26=$AC$9,ANASAYFA!$B$22,IF(G26=$AC$10,ANASAYFA!$B$28,IF(G26=$AC$11,ANASAYFA!$B$31,""))) ->  | W26: =IF(G26=$AC$9,ANASAYFA!$B$23,IF(G26=$AC$10,ANASAYFA!$B$29,IF(G26=$AC$11,ANASAYFA!$B$32,""))) ->  | Y26: 15:25-16:05 16:15-16:55
B27: =IF(L27>0,COUNTIF($B$9:B26,">0")+1,0) -> 0 | C27: =IF(L27>0,veriler!D23,"") ->  | D27: =IF(L27>0,veriler!C23,"") ->  | E27: =IF(L27>0,veriler!F23,"") ->  | F27: =IF(L27>0,veriler!E23,"") ->  | G27: =IF(L27>0,veriler!G23,"") ->  | H27: Matematik 20 | I27: =IFERROR(IF(L27>0,IF(veriler!K23<veriler!AF23,veriler!K23+veriler!AG23,veriler!AF23),0),"") -> 0 | J27: =IF(L27>0,IF(veriler!AJ23>0,veriler!AJ23,""),0) -> 0 | K27: =IF(L27>0,veriler!V23,0) -> 0 | L27: 0 | M27: 0 | N27: =IFERROR(IF(L27>0,veriler!AO23,0),"") -> 0 | O27: =IF(L27>0,veriler!AL23+veriler!O23,"") ->  | P27: =IF(L27>0,veriler!AT23,"") ->  | Q27: =IF(L27>0,veriler!AU23+veriler!AV23,"") ->  | R27: 03.10.2019 04.06.2029 | S27: Destekleme ve Yetiştirme Kursu | T27: Cumartesi | U27: =IF(G27=$AC$9,ANASAYFA!$B$22,IF(G27=$AC$10,ANASAYFA!$B$28,IF(G27=$AC$11,ANASAYFA!$B$31,""))) ->  | W27: =IF(G27=$AC$9,ANASAYFA!$B$23,IF(G27=$AC$10,ANASAYFA!$B$29,IF(G27=$AC$11,ANASAYFA!$B$32,""))) ->  | Y27: 15:25-16:05 16:15-16:55
B28: =IF(L28>0,COUNTIF($B$9:B27,">0")+1,0) -> 0 | C28: =IF(L28>0,veriler!D24,"") ->  | D28: =IF(L28>0,veriler!C24,"") ->  | E28: =IF(L28>0,veriler!F24,"") ->  | F28: =IF(L28>0,veriler!E24,"") ->  | G28: =IF(L28>0,veriler!G24,"") ->  | H28: İngilizce 9,İngilizce 20 | I28: =IFERROR(IF(L28>0,IF(veriler!K24<veriler!AF24,veriler!K24+veriler!AG24,veriler!AF24),0),"") -> 0 | J28: =IF(L28>0,IF(veriler!AJ24>0,veriler!AJ24,""),0) -> 0 | K28: =IF(L28>0,veriler!V24,0) -> 0 | L28: 0 | M28: 0 | N28: =IFERROR(IF(L28>0,veriler!AO24,0),"") -> 0 | O28: =IF(L28>0,veriler!AL24+veriler!O24,"") ->  | P28: =IF(L28>0,veriler!AT24,"") ->  | Q28: =IF(L28>0,veriler!AU24+veriler!AV24,"") ->  | R28: 03.10.2019 05.06.2029 | S28: Destekleme ve Yetiştirme Kursu | T28: Perşembe Cuma | U28: =IF(G28=$AC$9,ANASAYFA!$B$22,IF(G28=$AC$10,ANASAYFA!$B$28,IF(G28=$AC$11,ANASAYFA!$B$31,""))) ->  | W28: =IF(G28=$AC$9,ANASAYFA!$B$23,IF(G28=$AC$10,ANASAYFA!$B$29,IF(G28=$AC$11,ANASAYFA!$B$32,""))) ->  | Y28: 15:25-16:05 16:15-16:55
B29: =IF(L29>0,COUNTIF($B$9:B28,">0")+1,0) -> 0 | C29: =IF(L29>0,veriler!D25,"") ->  | D29: =IF(L29>0,veriler!C25,"") ->  | E29: =IF(L29>0,veriler!F25,"") ->  | F29: =IF(L29>0,veriler!E25,"") ->  | G29: =IF(L29>0,veriler!G25,"") ->  | H29: Matematik 21 | I29: =IFERROR(IF(L29>0,IF(veriler!K25<veriler!AF25,veriler!K25+veriler!AG25,veriler!AF25),0),"") -> 0 | J29: =IF(L29>0,IF(veriler!AJ25>0,veriler!AJ25,""),0) -> 0 | K29: =IF(L29>0,veriler!V25,0) -> 0 | L29: 0 | M29: 0 | N29: =IFERROR(IF(L29>0,veriler!AO25,0),"") -> 0 | O29: =IF(L29>0,veriler!AL25+veriler!O25,"") ->  | P29: =IF(L29>0,veriler!AT25,"") ->  | Q29: =IF(L29>0,veriler!AU25+veriler!AV25,"") ->  | R29: 03.10.2019 04.06.2030 | S29: Destekleme ve Yetiştirme Kursu | T29: Pazar | U29: =IF(G29=$AC$9,ANASAYFA!$B$22,IF(G29=$AC$10,ANASAYFA!$B$28,IF(G29=$AC$11,ANASAYFA!$B$31,""))) ->  | W29: =IF(G29=$AC$9,ANASAYFA!$B$23,IF(G29=$AC$10,ANASAYFA!$B$29,IF(G29=$AC$11,ANASAYFA!$B$32,""))) ->  | Y29: 15:25-16:05 16:15-16:55
B30: =IF(L30>0,COUNTIF($B$9:B29,">0")+1,0) -> 0 | C30: =IF(L30>0,veriler!D26,"") ->  | D30: =IF(L30>0,veriler!C26,"") ->  | E30: =IF(L30>0,veriler!F26,"") ->  | F30: =IF(L30>0,veriler!E26,"") ->  | G30: =IF(L30>0,veriler!G26,"") ->  | H30: İngilizce 9,İngilizce 21 | I30: =IFERROR(IF(L30>0,IF(veriler!K26<veriler!AF26,veriler!K26+veriler!AG26,veriler!AF26),0),"") -> 0 | J30: =IF(L30>0,IF(veriler!AJ26>0,veriler!AJ26,""),0) -> 0 | K30: =IF(L30>0,veriler!V26,0) -> 0 | L30: 0 | M30: 0 | N30: =IFERROR(IF(L30>0,veriler!AO26,0),"") -> 0 | O30: =IF(L30>0,veriler!AL26+veriler!O26,"") ->  | P30: =IF(L30>0,veriler!AT26,"") ->  | Q30: =IF(L30>0,veriler!AU26+veriler!AV26,"") ->  | R30: 03.10.2019 05.06.2030 | S30: Destekleme ve Yetiştirme Kursu | T30: Perşembe Cuma | U30: =IF(G30=$AC$9,ANASAYFA!$B$22,IF(G30=$AC$10,ANASAYFA!$B$28,IF(G30=$AC$11,ANASAYFA!$B$31,""))) ->  | W30: =IF(G30=$AC$9,ANASAYFA!$B$23,IF(G30=$AC$10,ANASAYFA!$B$29,IF(G30=$AC$11,ANASAYFA!$B$32,""))) ->  | Y30: 15:25-16:05 16:15-16:55
B31: =IF(L31>0,COUNTIF($B$9:B30,">0")+1,0) -> 0 | C31: =IF(L31>0,veriler!D27,"") ->  | D31: =IF(L31>0,veriler!C27,"") ->  | E31: =IF(L31>0,veriler!F27,"") ->  | F31: =IF(L31>0,veriler!E27,"") ->  | G31: =IF(L31>0,veriler!G27,"") ->  | H31: Matematik 22 | I31: =IFERROR(IF(L31>0,IF(veriler!K27<veriler!AF27,veriler!K27+veriler!AG27,veriler!AF27),0),"") -> 0 | J31: =IF(L31>0,IF(veriler!AJ27>0,veriler!AJ27,""),0) -> 0 | K31: =IF(L31>0,veriler!V27,0) -> 0 | L31: 0 | M31: 0 | N31: =IFERROR(IF(L31>0,veriler!AO27,0),"") -> 0 | O31: =IF(L31>0,veriler!AL27+veriler!O27,"") ->  | P31: =IF(L31>0,veriler!AT27,"") ->  | Q31: =IF(L31>0,veriler!AU27+veriler!AV27,"") ->  | R31: 03.10.2019 04.06.2031 | S31: Destekleme ve Yetiştirme Kursu | T31: Pazartesi | U31: =IF(G31=$AC$9,ANASAYFA!$B$22,IF(G31=$AC$10,ANASAYFA!$B$28,IF(G31=$AC$11,ANASAYFA!$B$31,""))) ->  | W31: =IF(G31=$AC$9,ANASAYFA!$B$23,IF(G31=$AC$10,ANASAYFA!$B$29,IF(G31=$AC$11,ANASAYFA!$B$32,""))) ->  | Y31: 15:25-16:05 16:15-16:55
B32: =IF(L32>0,COUNTIF($B$9:B31,">0")+1,0) -> 0 | C32: =IF(L32>0,veriler!D28,"") ->  | D32: =IF(L32>0,veriler!C28,"") ->  | E32: =IF(L32>0,veriler!F28,"") ->  | F32: =IF(L32>0,veriler!E28,"") ->  | G32: =IF(L32>0,veriler!G28,"") ->  | H32: İngilizce 9,İngilizce 22 | I32: =IFERROR(IF(L32>0,IF(veriler!K28<veriler!AF28,veriler!K28+veriler!AG28,veriler!AF28),0),"") -> 0 | J32: =IF(L32>0,IF(veriler!AJ28>0,veriler!AJ28,""),0) -> 0 | K32: =IF(L32>0,veriler!V28,0) -> 0 | L32: 0 | M32: 0 | N32: =IFERROR(IF(L32>0,veriler!AO28,0),"") -> 0 | O32: =IF(L32>0,veriler!AL28+veriler!O28,"") ->  | P32: =IF(L32>0,veriler!AT28,"") ->  | Q32: =IF(L32>0,veriler!AU28+veriler!AV28,"") ->  | R32: 03.10.2019 05.06.2031 | S32: Destekleme ve Yetiştirme Kursu | T32: Perşembe Cuma | U32: =IF(G32=$AC$9,ANASAYFA!$B$22,IF(G32=$AC$10,ANASAYFA!$B$28,IF(G32=$AC$11,ANASAYFA!$B$31,""))) ->  | W32: =IF(G32=$AC$9,ANASAYFA!$B$23,IF(G32=$AC$10,ANASAYFA!$B$29,IF(G32=$AC$11,ANASAYFA!$B$32,""))) ->  | Y32: 15:25-16:05 16:15-16:55
B33: =IF(L33>0,COUNTIF($B$9:B32,">0")+1,0) -> 0 | C33: =IF(L33>0,veriler!D29,"") ->  | D33: =IF(L33>0,veriler!C29,"") ->  | E33: =IF(L33>0,veriler!F29,"") ->  | F33: =IF(L33>0,veriler!E29,"") ->  | G33: =IF(L33>0,veriler!G29,"") ->  | H33: Matematik 23 | I33: =IFERROR(IF(L33>0,IF(veriler!K29<veriler!AF29,veriler!K29+veriler!AG29,veriler!AF29),0),"") -> 0 | J33: =IF(L33>0,IF(veriler!AJ29>0,veriler!AJ29,""),0) -> 0 | K33: =IF(L33>0,veriler!V29,0) -> 0 | L33: 0 | M33: 0 | N33: =IFERROR(IF(L33>0,veriler!AO29,0),"") -> 0 | O33: =IF(L33>0,veriler!AL29+veriler!O29,"") ->  | P33: =IF(L33>0,veriler!AT29,"") ->  | Q33: =IF(L33>0,veriler!AU29+veriler!AV29,"") ->  | R33: 03.10.2019 04.06.2032 | S33: Destekleme ve Yetiştirme Kursu | T33: Salı | U33: =IF(G33=$AC$9,ANASAYFA!$B$22,IF(G33=$AC$10,ANASAYFA!$B$28,IF(G33=$AC$11,ANASAYFA!$B$31,""))) ->  | W33: =IF(G33=$AC$9,ANASAYFA!$B$23,IF(G33=$AC$10,ANASAYFA!$B$29,IF(G33=$AC$11,ANASAYFA!$B$32,""))) ->  | Y33: 15:25-16:05 16:15-16:55
B34: =IF(L34>0,COUNTIF($B$9:B33,">0")+1,0) -> 0 | C34: =IF(L34>0,veriler!D30,"") ->  | D34: =IF(L34>0,veriler!C30,"") ->  | E34: =IF(L34>0,veriler!F30,"") ->  | F34: =IF(L34>0,veriler!E30,"") ->  | G34: =IF(L34>0,veriler!G30,"") ->  | H34: İngilizce 9,İngilizce 23 | I34: =IFERROR(IF(L34>0,IF(veriler!K30<veriler!AF30,veriler!K30+veriler!AG30,veriler!AF30),0),"") -> 0 | J34: =IF(L34>0,IF(veriler!AJ30>0,veriler!AJ30,""),0) -> 0 | K34: =IF(L34>0,veriler!V30,0) -> 0 | L34: 0 | M34: 0 | N34: =IFERROR(IF(L34>0,veriler!AO30,0),"") -> 0 | O34: =IF(L34>0,veriler!AL30+veriler!O30,"") ->  | P34: =IF(L34>0,veriler!AT30,"") ->  | Q34: =IF(L34>0,veriler!AU30+veriler!AV30,"") ->  | R34: 03.10.2019 05.06.2032 | S34: Destekleme ve Yetiştirme Kursu | T34: Perşembe Cuma | U34: =IF(G34=$AC$9,ANASAYFA!$B$22,IF(G34=$AC$10,ANASAYFA!$B$28,IF(G34=$AC$11,ANASAYFA!$B$31,""))) ->  | W34: =IF(G34=$AC$9,ANASAYFA!$B$23,IF(G34=$AC$10,ANASAYFA!$B$29,IF(G34=$AC$11,ANASAYFA!$B$32,""))) ->  | Y34: 15:25-16:05 16:15-16:55
B35: =IF(L35>0,COUNTIF($B$9:B34,">0")+1,0) -> 0 | C35: =IF(L35>0,veriler!D31,"") ->  | D35: =IF(L35>0,veriler!C31,"") ->  | E35: =IF(L35>0,veriler!F31,"") ->  | F35: =IF(L35>0,veriler!E31,"") ->  | G35: =IF(L35>0,veriler!G31,"") ->  | H35: Matematik 24 | I35: =IFERROR(IF(L35>0,IF(veriler!K31<veriler!AF31,veriler!K31+veriler!AG31,veriler!AF31),0),"") -> 0 | J35: =IF(L35>0,IF(veriler!AJ31>0,veriler!AJ31,""),0) -> 0 | K35: =IF(L35>0,veriler!V31,0) -> 0 | L35: 0 | M35: 0 | N35: =IFERROR(IF(L35>0,veriler!AO31,0),"") -> 0 | O35: =IF(L35>0,veriler!AL31+veriler!O31,"") ->  | P35: =IF(L35>0,veriler!AT31,"") ->  | Q35: =IF(L35>0,veriler!AU31+veriler!AV31,"") ->  | R35: 03.10.2019 04.06.2033 | S35: Destekleme ve Yetiştirme Kursu | T35: Çarşamba | U35: =IF(G35=$AC$9,ANASAYFA!$B$22,IF(G35=$AC$10,ANASAYFA!$B$28,IF(G35=$AC$11,ANASAYFA!$B$31,""))) ->  | W35: =IF(G35=$AC$9,ANASAYFA!$B$23,IF(G35=$AC$10,ANASAYFA!$B$29,IF(G35=$AC$11,ANASAYFA!$B$32,""))) ->  | Y35: 15:25-16:05 16:15-16:55
B36: =IF(L36>0,COUNTIF($B$9:B35,">0")+1,0) -> 0 | C36: =IF(L36>0,veriler!D32,"") ->  | D36: =IF(L36>0,veriler!C32,"") ->  | E36: =IF(L36>0,veriler!F32,"") ->  | F36: =IF(L36>0,veriler!E32,"") ->  | G36: =IF(L36>0,veriler!G32,"") ->  | H36: İngilizce 9,İngilizce 24 | I36: =IFERROR(IF(L36>0,IF(veriler!K32<veriler!AF32,veriler!K32+veriler!AG32,veriler!AF32),0),"") -> 0 | J36: =IF(L36>0,IF(veriler!AJ32>0,veriler!AJ32,""),0) -> 0 | K36: =IF(L36>0,veriler!V32,0) -> 0 | L36: 0 | M36: 0 | N36: =IFERROR(IF(L36>0,veriler!AO32,0),"") -> 0 | O36: =IF(L36>0,veriler!AL32+veriler!O32,"") ->  | P36: =IF(L36>0,veriler!AT32,"") ->  | Q36: =IF(L36>0,veriler!AU32+veriler!AV32,"") ->  | R36: 03.10.2019 05.06.2033 | S36: Destekleme ve Yetiştirme Kursu | T36: Perşembe Cuma | U36: =IF(G36=$AC$9,ANASAYFA!$B$22,IF(G36=$AC$10,ANASAYFA!$B$28,IF(G36=$AC$11,ANASAYFA!$B$31,""))) ->  | W36: =IF(G36=$AC$9,ANASAYFA!$B$23,IF(G36=$AC$10,ANASAYFA!$B$29,IF(G36=$AC$11,ANASAYFA!$B$32,""))) ->  | Y36: 15:25-16:05 16:15-16:55
B37: =IF(L37>0,COUNTIF($B$9:B36,">0")+1,0) -> 0 | C37: =IF(L37>0,veriler!D33,"") ->  | D37: =IF(L37>0,veriler!C33,"") ->  | E37: =IF(L37>0,veriler!F33,"") ->  | F37: =IF(L37>0,veriler!E33,"") ->  | G37: =IF(L37>0,veriler!G33,"") ->  | H37: Matematik 25 | I37: =IFERROR(IF(L37>0,IF(veriler!K33<veriler!AF33,veriler!K33+veriler!AG33,veriler!AF33),0),"") -> 0 | J37: =IF(L37>0,IF(veriler!AJ33>0,veriler!AJ33,""),0) -> 0 | K37: =IF(L37>0,veriler!V33,0) -> 0 | L37: 0 | M37: 0 | N37: =IFERROR(IF(L37>0,veriler!AO33,0),"") -> 0 | O37: =IF(L37>0,veriler!AL33+veriler!O33,"") ->  | P37: =IF(L37>0,veriler!AT33,"") ->  | Q37: =IF(L37>0,veriler!AU33+veriler!AV33,"") ->  | R37: 03.10.2019 04.06.2034 | S37: Destekleme ve Yetiştirme Kursu | T37: Perşembe | U37: =IF(G37=$AC$9,ANASAYFA!$B$22,IF(G37=$AC$10,ANASAYFA!$B$28,IF(G37=$AC$11,ANASAYFA!$B$31,""))) ->  | W37: =IF(G37=$AC$9,ANASAYFA!$B$23,IF(G37=$AC$10,ANASAYFA!$B$29,IF(G37=$AC$11,ANASAYFA!$B$32,""))) ->  | Y37: 15:25-16:05 16:15-16:55
B38: =IF(L38>0,COUNTIF($B$9:B37,">0")+1,0) -> 0 | C38: =IF(L38>0,veriler!D34,"") ->  | D38: =IF(L38>0,veriler!C34,"") ->  | E38: =IF(L38>0,veriler!F34,"") ->  | F38: =IF(L38>0,veriler!E34,"") ->  | G38: =IF(L38>0,veriler!G34,"") ->  | H38: İngilizce 9,İngilizce 25 | I38: =IFERROR(IF(L38>0,IF(veriler!K34<veriler!AF34,veriler!K34+veriler!AG34,veriler!AF34),0),"") -> 0 | J38: =IF(L38>0,IF(veriler!AJ34>0,veriler!AJ34,""),0) -> 0 | K38: =IF(L38>0,veriler!V34,0) -> 0 | L38: 0 | M38: 0 | N38: =IFERROR(IF(L38>0,veriler!AO34,0),"") -> 0 | O38: =IF(L38>0,veriler!AL34+veriler!O34,"") ->  | P38: =IF(L38>0,veriler!AT34,"") ->  | Q38: =IF(L38>0,veriler!AU34+veriler!AV34,"") ->  | R38: 03.10.2019 05.06.2034 | S38: Destekleme ve Yetiştirme Kursu | T38: Perşembe Cuma | U38: =IF(G38=$AC$9,ANASAYFA!$B$22,IF(G38=$AC$10,ANASAYFA!$B$28,IF(G38=$AC$11,ANASAYFA!$B$31,""))) ->  | W38: =IF(G38=$AC$9,ANASAYFA!$B$23,IF(G38=$AC$10,ANASAYFA!$B$29,IF(G38=$AC$11,ANASAYFA!$B$32,""))) ->  | Y38: 15:25-16:05 16:15-16:55
B40: T.C.
B41: ULUBORLU KAYMAKAMLIĞI
B42: Uluborlu Mesleki ve Teknik Anadolu Lisesi Müdürlüğü
B44: Sayı : | C44: 82452652-20-E.20434281 | W44: 2019-10-21
B45: Konu : | C45: Kurs Ücret Onayı
B47: ULUBORLU İLÇE MİLLİ EĞİTİM MÜDÜRLÜĞÜNE
B49: İlgi : | C49: a) 657 Sayılı Devlet Memurları Kanunu.
C50: b) 439 Sayılı Kanun
C51: c) Millî Eğitim Bakanlığı Örgün ve Yaygın Eğitimi Destekleme ve Yetiştirme Kursları Yönergesi.
C52: d) Destekleme ve Yetiştirme Kursları e-klavuzu.
C54: Bakanlığımızın, ilgi (c) yönergesi ve ilgi (d) klavuzu doğrultusunda okulumuzda açılan Destekleme ve Yetiştirme Kurslarında görev alacak yönetici ve öğretmenlerin durumları yukarıdaki çizelgede sunulmuştur.
B55: İlgi (b) Kanun ve Milli Eğitim Bakanlığı Yönetici ve Öğretmenlerin Ders ve Ek Ders Saatlerine İlişkin Karar doğrultusunda, okulumuzdaki takviye kurslarında ekders ücreti karşılığında görev alan yönetici ve öğretmenlerin ücretlerinin, Müdürlüğümüzce düzenlenecek aylık ücret tahakkuk cetveline göre, ilgi (a) Kanun'un 176. maddesi kapsamında ek ders ücreti olarak ödenmesi Müdürlüğümüzce uygun görülmektedir.
C56: Makamınızca da uygun görüldüğü taktirde olurlarınıza arz ederim.
U57: =ANASAYFA!B35 -> Ruhi İLHAN
U58: Okul Müdürü
U59: =ANASAYFA!C35 -> Okul Müdürü
B61: Uygun görüşle arz ederim.
B63: =ANASAYFA!B38 -> Ramazan GÜLMEZ
B64: =ANASAYFA!C38 -> Şube Müdürü
B66: O L U R
B67: …..//10/2019
B69: =ANASAYFA!B36 -> Mustafa KABASAKAL
B70: =ANASAYFA!C36 -> İlçe Milli Eğitim Müdürü
